Departmental Family,Entity,Date,Expense type,Expense area,Description,Supplier,Transaction Number,Amount
Department for Education,DEPARTMENT FOR EDUCATION,31/12/2015,Redactions,Various,"The total redacted transactions, including funding payment to Education Funding Agency. See Technical Notes for further information.",Various,Various,4856746132.82
Department for Education,DEPARTMENT FOR EDUCATION,11/12/2015,Grants,Assessment and Curriculum and General Qualifications Group,Current grant funding to other government departments for DfE's contribution to jointly funded programmes ,DEPARTMENT FOR CULTURE MEDIA & SPORT,2001195,19158560.25
Department for Education,DEPARTMENT FOR EDUCATION,08/12/2015,Grants,Assessment and Curriculum and General Qualifications Group,Grants to educational establishments or not for profit organisations including other businesses,CHOIR SCHOOLS ASSOCIATION BURSARY TRUST LTD,4000223809,9638658.00
Department for Education,DEPARTMENT FOR EDUCATION,09/12/2015,Facilities,Property Asset Management Group,Rent,GVA GRIMLEY LTD,4000223914,3769890.62
Department for Education,DEPARTMENT FOR EDUCATION,18/12/2015,Programme costs,"Childcare, Special Educational Needs and Children's Strategy Group",Funding to deliver policies (excluding consultancy) paid to third parties via a service delivery contract,NCB,4000224950,2626945.20
Department for Education,DEPARTMENT FOR EDUCATION,17/12/2015,Grants,Adoption and Children in Care Division,Grants to educational establishments or not for profit organisations including other businesses,CAMBRIDGE EDUCATION,4000224844,2000000.00
Department for Education,DEPARTMENT FOR EDUCATION,01/12/2015,Grants,"Childcare, Special Educational Needs and Children's Strategy Group",Grants to educational establishments or not for profit organisations including other businesses,THE FAMILY FUND TRUST,4000222992,1864681.00
Department for Education,NATIONAL COLLEGE FOR TEACHING AND LEADERSHIP AGENCY,02/12/2015,Programme costs,Delivery Directorate,Funding to deliver policies (excluding consultancy) paid to third parties via a service delivery contract,Teach First Initial Teacher Development,4000223109,1798257.33
Department for Education,DEPARTMENT FOR EDUCATION,04/12/2015,Grants,Children's Services and Departmental Strategy Group,Current grants paid to organisations including arms length bodies and educational establishments,EHRC GBS CITI,2001190,1724300.00
Department for Education,DEPARTMENT FOR EDUCATION,23/12/2015,Programme costs,Teachers and Teaching Group,Contract payment to deliver the administration of the Teachers' Pension Scheme,CAPITA LIFE & PENSIONS SERVICES LTD,4000225294,1703921.56
Department for Education,DEPARTMENT FOR EDUCATION,07/12/2015,Grants,System Reform Group,Current grant funding to other government departments for DfE's contribution to jointly funded programmes ,DEPARTMENT FOR COMMUNITIES & LOCAL GOVERNMENT,2001191,1590689.00
Department for Education,DEPARTMENT FOR EDUCATION,11/12/2015,Programme costs,Teachers and Teaching Group,Contract payment to deliver the administration of the Teachers' Pension Scheme,CAPITA LIFE & PENSIONS SERVICES LTD,4000224101,1470092.92
Department for Education,DEPARTMENT FOR EDUCATION,09/12/2015,Programme costs,Post 16 and Disadvantage Group,Funding to deliver policies (excluding consultancy) paid to third parties via a service delivery contract,CHILDRENS FOOD TRUST,4000223936,1206499.20
Department for Education,DEPARTMENT FOR EDUCATION,18/12/2015,Professional Services Other,Finance and Commercial Group,"Fees / expenses of professionals, for example to implement advice or changes",DELOITTE LLP,4000224897,1100700.00
Department for Education,DEPARTMENT FOR EDUCATION,11/12/2015,Grants,Assessment and Curriculum and General Qualifications Group,Current grant funding to other government departments for DfE's contribution to jointly funded programmes ,DEPARTMENT FOR CULTURE MEDIA & SPORT,2001195,1021880.00
Department for Education,NATIONAL COLLEGE FOR TEACHING AND LEADERSHIP AGENCY,24/12/2015,Communications,Operations Directorate,"Publicity, advertising, media advertising campaigns (excluding recruitment adverts)",CARAT,4000225501,948542.99
Department for Education,STANDARDS AND TESTING AGENCY,24/12/2015,Programme costs,Test Operations Division,Funding to deliver policies (excluding consultancy) paid to third parties via a service delivery contract,EDEXCEL,4000225477,891957.00
Department for Education,DEPARTMENT FOR EDUCATION,16/12/2015,Grants,Children's Services and Departmental Strategy Safeguarding Group,Grants to local authorities outside aggregate external funding or aggregate exchequer grant,LEEDS CITY COUNCIL,4000224536,836632.00
Department for Education,NATIONAL COLLEGE FOR TEACHING AND LEADERSHIP AGENCY,02/12/2015,Grants,Operations Directorate,Grants to educational establishments or not for profit organisations including other businesses,UCL INSTITUTE OF EDUCATION,4000223350,818603.91
Department for Education,DEPARTMENT FOR EDUCATION,16/12/2015,Grants,Children's Services and Departmental Strategy Safeguarding Group,Grants to local authorities outside aggregate external funding or aggregate exchequer grant,HERTFORDSHIRE COUNTY COUNCIL,4000224549,805135.00
Department for Education,DEPARTMENT FOR EDUCATION,16/12/2015,Grants,Children's Services and Departmental Strategy Safeguarding Group,Grants to local authorities outside aggregate external funding or aggregate exchequer grant,GLOUCESTERSHIRE COUNTY COUNCIL,4000224562,762000.00
Department for Education,DEPARTMENT FOR EDUCATION,11/12/2015,Funding to pay Teachers' Pensions,Teachers and Teaching Group,Pension related payments to retired teachers where liability has transferred to SoS,TPS GOVERNMENT BANKING SERVICE ACCOUNT,2001196,731425.55
Department for Education,DEPARTMENT FOR EDUCATION,16/12/2015,Grants,Children's Services and Departmental Strategy Safeguarding Group,Grants to local authorities outside aggregate external funding or aggregate exchequer grant,LONDON BOROUGH OF HACKNEY,4000224581,730305.00
Department for Education,NATIONAL COLLEGE FOR TEACHING AND LEADERSHIP AGENCY,07/12/2015,Professional Services Other,Delivery Directorate,"Fees / expenses of professionals, for example to implement advice or changes",TEACHING LEADERS,4000223633,708510.00
Department for Education,NATIONAL COLLEGE FOR TEACHING AND LEADERSHIP AGENCY,02/12/2015,Grants,Operations Directorate,Grants to educational establishments or not for profit organisations including other businesses,MANCHESTER METROPOLITAN UNIVERSITY,4000223185,701702.19
Department for Education,DEPARTMENT FOR EDUCATION,16/12/2015,Grants,Children's Services and Departmental Strategy Safeguarding Group,Grants to local authorities outside aggregate external funding or aggregate exchequer grant,LONDON BOROUGH OF ISLINGTON COUNCIL,4000224534,697242.00
Department for Education,NATIONAL COLLEGE FOR TEACHING AND LEADERSHIP AGENCY,02/12/2015,Grants,Operations Directorate,Grants to educational establishments or not for profit organisations including other businesses,EDGE HILL UNIVERSITY,4000223299,652509.81
Department for Education,DEPARTMENT FOR EDUCATION,16/12/2015,Grants,Children's Services and Departmental Strategy Safeguarding Group,Grants to local authorities outside aggregate external funding or aggregate exchequer grant,HAMPSHIRE COUNTY COUNCIL,4000224522,620929.00
Department for Education,DEPARTMENT FOR EDUCATION,16/12/2015,Grants,Children's Services and Departmental Strategy Safeguarding Group,Grants to local authorities outside aggregate external funding or aggregate exchequer grant,LONDON BOROUGH OF EALING COUNCIL,4000224540,606500.00
Department for Education,NATIONAL COLLEGE FOR TEACHING AND LEADERSHIP AGENCY,23/12/2015,Grants,Operations Directorate,Current grant funding to other government departments for DfE's contribution to jointly funded programmes ,WELSH ASSEMBLY GOVERNMENT,2001201,592274.00
Department for Education,DEPARTMENT FOR EDUCATION,15/12/2015,Programme costs,Systems and Accountability Group,Funding to deliver policies (excluding consultancy) paid to third parties via a service delivery contract,RESEARCH MACHINES PLC,4000224490,592028.40
Department for Education,NATIONAL COLLEGE FOR TEACHING AND LEADERSHIP AGENCY,04/12/2015,Grants,Operations Directorate,Grants to educational establishments or not for profit organisations including other businesses,THE OPEN UNIVERSITY,4000223596,575050.00
Department for Education,DEPARTMENT FOR EDUCATION,03/12/2015,Grants,Children's Services and Departmental Strategy Safeguarding Group,Grants to local authorities / other establishments within aggregate external funding or aggregate exchequer grant,SLOUGH BOROUGH COUNCIL,4000223457,573778.80
Department for Education,DEPARTMENT FOR EDUCATION,16/12/2015,Grants,Children's Services and Departmental Strategy Safeguarding Group,Grants to local authorities outside aggregate external funding or aggregate exchequer grant,DURHAM COUNTY COUNCIL,4000224521,568456.00
Department for Education,DEPARTMENT FOR EDUCATION,16/12/2015,Grants,Children's Services and Departmental Strategy Safeguarding Group,Grants to educational establishments or not for profit organisations including other businesses,ACTION FOR CHILDREN,4000224631,559992.00
Department for Education,DEPARTMENT FOR EDUCATION,24/12/2015,ICT,Information Technology Group,ICT Software,CSA WAVERLEY LTD,4000225407,544853.78
Department for Education,NATIONAL COLLEGE FOR TEACHING AND LEADERSHIP AGENCY,30/12/2015,Professional Services Other,Delivery Directorate,"Fees / expenses of professionals, for example to implement advice or changes",TEACHING LEADERS,4000225648,518174.00
Department for Education,NATIONAL COLLEGE FOR TEACHING AND LEADERSHIP AGENCY,23/12/2015,Programme costs,Delivery Directorate,Funding to deliver policies (excluding consultancy) paid to third parties via a service delivery contract,THE PRINCES TEACHING INSTITUTE,4000225277,512400.00
Department for Education,DEPARTMENT FOR EDUCATION,17/12/2015,Facilities,Property Asset Management Group,Business rates,GVA GRIMLEY LTD,4000224856,512160.70
Department for Education,DEPARTMENT FOR EDUCATION,01/12/2015,Grants,Adoption and Children in Care Division,Grants to educational establishments or not for profit organisations including other businesses,CONSORTIUM OF VOLUNTARY ADOPTION AGENCIES UK LTD,4000223012,501297.00
Department for Education,DEPARTMENT FOR EDUCATION,16/12/2015,Grants,Children's Services and Departmental Strategy Safeguarding Group,Grants to local authorities outside aggregate external funding or aggregate exchequer grant,LONDON BOROUGH OF ENFIELD COUNCIL,4000224541,491250.00
Department for Education,DEPARTMENT FOR EDUCATION,24/12/2015,Programme costs,Systems and Accountability Group,Funding to deliver policies (excluding consultancy) paid to third parties via a service delivery contract,RESEARCH MACHINES PLC,4000225471,488959.20
Department for Education,DEPARTMENT FOR EDUCATION,14/12/2015,ICT,Information Technology Group,ICT Services,EDUSERV,4000224256,482405.26
Department for Education,DEPARTMENT FOR EDUCATION,24/12/2015,Grants,Adoption and Children in Care Division,Grants to educational establishments or not for profit organisations including other businesses,CONSORTIUM OF VOLUNTARY ADOPTION AGENCIES UK LTD,4000225316,476675.10
Department for Education,DEPARTMENT FOR EDUCATION,16/12/2015,Grants,Children's Services and Departmental Strategy Safeguarding Group,Grants to local authorities outside aggregate external funding or aggregate exchequer grant,STOCKPORT MBC,4000224545,475447.00
Department for Education,DEPARTMENT FOR EDUCATION,10/12/2015,ICT,Property Asset Management Group,Partial payment for IT hardware / consumables,MACE LTD,4000224091,474540.00
Department for Education,DEPARTMENT FOR EDUCATION,23/12/2015,Professional Services Other,Strategic Analysis and Research Group,Research and evaluation activities,RM EDUCATION,4000225281,472879.00
Department for Education,DEPARTMENT FOR EDUCATION,15/12/2015,Programme costs,Assessment and Curriculum and General Qualifications Group,Funding to deliver policies (excluding consultancy) paid to third parties via a service delivery contract,MATHEMATICS IN EDUCATION & INDUSTRY,4000224487,472000.00
Department for Education,DEPARTMENT FOR EDUCATION,16/12/2015,Grants,Children's Services and Departmental Strategy Safeguarding Group,Grants to local authorities outside aggregate external funding or aggregate exchequer grant,LONDON BOROUGH OF HACKNEY,4000224550,467540.00
Department for Education,DEPARTMENT FOR EDUCATION,07/12/2015,ICT,Information Technology Group,ICT Services,EDUSERV,4000223632,451617.98
Department for Education,NATIONAL COLLEGE FOR TEACHING AND LEADERSHIP AGENCY,24/12/2015,Grants,Delivery Directorate,Grants to educational establishments or not for profit organisations including other businesses,THE UNIVERSITY OF MANCHESTER,4000225453,443300.00
Department for Education,DEPARTMENT FOR EDUCATION,24/12/2015,Grants,Children's Services and Departmental Strategy Safeguarding Group,Grants to educational establishments or not for profit organisations including other businesses,PRIORY EDUCATION SERVICES LTD,4000225319,437925.00
Department for Education,NATIONAL COLLEGE FOR TEACHING AND LEADERSHIP AGENCY,02/12/2015,Grants,Operations Directorate,Grants to educational establishments or not for profit organisations including other businesses,THE UNIVERSITY OF MANCHESTER,4000223303,432732.33
Department for Education,DEPARTMENT FOR EDUCATION,16/12/2015,Grants,Children's Services and Departmental Strategy Safeguarding Group,Grants to local authorities outside aggregate external funding or aggregate exchequer grant,WIGAN MBC,4000224546,413894.00
Department for Education,NATIONAL COLLEGE FOR TEACHING AND LEADERSHIP AGENCY,02/12/2015,Grants,Operations Directorate,Grants to educational establishments or not for profit organisations including other businesses,SHEFFIELD HALLAM UNIVERSITY,4000223221,412623.63
Department for Education,NATIONAL COLLEGE FOR TEACHING AND LEADERSHIP AGENCY,02/12/2015,Grants,Operations Directorate,Grants to educational establishments or not for profit organisations including other businesses,KINGS COLLEGE GUILDFORD,4000223151,412498.62
Department for Education,NATIONAL COLLEGE FOR TEACHING AND LEADERSHIP AGENCY,03/12/2015,Professional Services Other,Delivery Directorate,"Fees / expenses of professionals, for example to implement advice or changes",TELEPERFORMANCE LTD,4000223503,406943.04
Department for Education,DEPARTMENT FOR EDUCATION,16/12/2015,Grants,Children's Services and Departmental Strategy Safeguarding Group,Grants to local authorities outside aggregate external funding or aggregate exchequer grant,NEWCASTLE CITY COUNCIL,4000224548,395004.00
Department for Education,DEPARTMENT FOR EDUCATION,22/12/2015,Professional Services Other,Finance and Commercial Group,Shared corporate accounting services,SHARED SERVICES CONNECTED LTD,4000225081,389613.16
Department for Education,NATIONAL COLLEGE FOR TEACHING AND LEADERSHIP AGENCY,02/12/2015,Grants,Operations Directorate,Grants to educational establishments or not for profit organisations including other businesses,UNIVERSITY OF EAST LONDON,4000223030,388047.51
Department for Education,DEPARTMENT FOR EDUCATION,04/12/2015,Travel,Finance and Commercial Group,"Staff business travel including air, coach, ferry, rail, taxi and car hire",REDFERN TRAVEL LTD,4000223627,382524.40
Department for Education,DEPARTMENT FOR EDUCATION,10/12/2015,Programme costs,Children's Services and Departmental Strategy Safeguarding Group,Funding to deliver policies (excluding consultancy) paid to third parties via a service delivery contract,KPMG LLP,4000224039,382152.85
Department for Education,DEPARTMENT FOR EDUCATION,16/12/2015,Grants,Children's Services and Departmental Strategy Safeguarding Group,Grants to local authorities outside aggregate external funding or aggregate exchequer grant,LEEDS CITY COUNCIL,4000224572,380000.00
Department for Education,DEPARTMENT FOR EDUCATION,16/12/2015,Grants,Assessment and Curriculum and General Qualifications Group,Grants to educational establishments or not for profit organisations including other businesses,THE HOLOCAUST EDUCATIONAL TRUST,4000224594,371931.00
Department for Education,DEPARTMENT FOR EDUCATION,30/12/2015,Grants,Office of the Schools Commissioner Group,Grants to educational establishments or not for profit organisations including other businesses,BRIGHT TRIBE TRUST LTD,4000225646,370000.00
Department for Education,DEPARTMENT FOR EDUCATION,16/12/2015,Grants,Children's Services and Departmental Strategy Safeguarding Group,Grants to local authorities outside aggregate external funding or aggregate exchequer grant,CALDERDALE MBC,4000224580,363500.00
Department for Education,NATIONAL COLLEGE FOR TEACHING AND LEADERSHIP AGENCY,02/12/2015,Grants,Operations Directorate,Grants to educational establishments or not for profit organisations including other businesses,UNIVERSITY OF NOTTINGHAM,4000223200,338552.55
Department for Education,NATIONAL COLLEGE FOR TEACHING AND LEADERSHIP AGENCY,02/12/2015,Grants,Operations Directorate,Grants to educational establishments or not for profit organisations including other businesses,UNIVERSITY OF BRISTOL,4000223074,328392.63
Department for Education,DEPARTMENT FOR EDUCATION,16/12/2015,Grants,Adoption and Children in Care Division,Grants to educational establishments or not for profit organisations including other businesses,CONSORTIUM OF VOLUNTARY ADOPTION AGENCIES UK LTD,4000224629,323978.00
Department for Education,DEPARTMENT FOR EDUCATION,16/12/2015,Programme costs,Assessment and Curriculum and General Qualifications Group,Funding to deliver policies (excluding consultancy) paid to third parties via a service delivery contract,MATHEMATICS IN EDUCATION & INDUSTRY,4000224593,315000.00
Department for Education,NATIONAL COLLEGE FOR TEACHING AND LEADERSHIP AGENCY,02/12/2015,Grants,Operations Directorate,Grants to educational establishments or not for profit organisations including other businesses,UNIVERSITY OF EXETER,4000223280,304924.26
Department for Education,NATIONAL COLLEGE FOR TEACHING AND LEADERSHIP AGENCY,02/12/2015,Grants,Operations Directorate,Grants to educational establishments or not for profit organisations including other businesses,UNIVERSITY OF CUMBRIA,4000223104,302374.72
Department for Education,DEPARTMENT FOR EDUCATION,15/12/2015,Grants,Assessment and Curriculum and General Qualifications Group,Grants to educational establishments or not for profit organisations including other businesses,SPORT ENGLAND,4000224458,300000.00
Department for Education,NATIONAL COLLEGE FOR TEACHING AND LEADERSHIP AGENCY,18/12/2015,Professional Services Other,Delivery Directorate,"Fees / expenses of professionals, for example to implement advice or changes",FUTURE LEADERS LTD,4000224936,300000.00
Department for Education,DEPARTMENT FOR EDUCATION,24/12/2015,Facilities,Property Asset Management Group,"Building maintenance and repair, including repainting, replacing flooring, etc.",INTERSERVE FACILITIES MANAGEMENT LTD,4000225494,292977.98
Department for Education,DEPARTMENT FOR EDUCATION,15/12/2015,Grants,Children's Services and Departmental Strategy Safeguarding Group,Grants to educational establishments or not for profit organisations including other businesses,ACHIEVING FOR CHILDREN,4000224449,292048.00
Department for Education,NATIONAL COLLEGE FOR TEACHING AND LEADERSHIP AGENCY,02/12/2015,Grants,Operations Directorate,Grants to educational establishments or not for profit organisations including other businesses,UNIVERSITY OF OXFORD,4000223360,290105.73
Department for Education,NATIONAL COLLEGE FOR TEACHING AND LEADERSHIP AGENCY,02/12/2015,Grants,Operations Directorate,Grants to educational establishments or not for profit organisations including other businesses,UNIVERSITY OF BRIGHTON,4000223220,285174.00
Department for Education,NATIONAL COLLEGE FOR TEACHING AND LEADERSHIP AGENCY,01/12/2015,Communications,Operations Directorate,"Publicity, advertising, media advertising campaigns (excluding recruitment adverts)",CARAT,4000222991,282555.36
Department for Education,NATIONAL COLLEGE FOR TEACHING AND LEADERSHIP AGENCY,02/12/2015,Grants,Operations Directorate,Grants to educational establishments or not for profit organisations including other businesses,UNIVERSITY OF WARWICK,4000223362,281004.48
Department for Education,NATIONAL COLLEGE FOR TEACHING AND LEADERSHIP AGENCY,02/12/2015,Grants,Operations Directorate,Grants to educational establishments or not for profit organisations including other businesses,UNIVERSITY OF SUSSEX,4000223155,280022.67
Department for Education,DEPARTMENT FOR EDUCATION,11/12/2015,Funding to pay Teachers' Pensions,Teachers and Teaching Group,Pension related payments to retired teachers where liability has transferred to SoS,TPS GOVERNMENT BANKING SERVICE ACCOUNT,2001197,270750.41
Department for Education,DEPARTMENT FOR EDUCATION,21/12/2015,Grants,Children's Services and Departmental Strategy Safeguarding Group,Grants to educational establishments or not for profit organisations including other businesses,TBAP TRUST,4000225008,267915.59
Department for Education,DEPARTMENT FOR EDUCATION,02/12/2015,Grants,Children's Services and Departmental Strategy Safeguarding Group,Current grants paid to organisations including arms length bodies and educational establishments,OFFICE OF THE CHILDRENS COMMISSIONER,2001189,261654.70
Department for Education,DEPARTMENT FOR EDUCATION,09/12/2015,Personnel Related,Human Resources Group,Staff costs for the Civil Service Fast Stream Programme,HMRC,4000223953,261158.14
Department for Education,NATIONAL COLLEGE FOR TEACHING AND LEADERSHIP AGENCY,02/12/2015,Grants,Operations Directorate,Grants to educational establishments or not for profit organisations including other businesses,NEWMAN COLLEGE,4000223292,259877.17
Department for Education,NATIONAL COLLEGE FOR TEACHING AND LEADERSHIP AGENCY,02/12/2015,Grants,Operations Directorate,Grants to educational establishments or not for profit organisations including other businesses,UNIVERSITY OF CAMBRIDGE,4000223325,258184.65
Department for Education,NATIONAL COLLEGE FOR TEACHING AND LEADERSHIP AGENCY,02/12/2015,Grants,Operations Directorate,Grants to educational establishments or not for profit organisations including other businesses,CANTERBURY CHRIST CHURCH UNIVERSITY,4000223253,255173.97
Department for Education,DEPARTMENT FOR EDUCATION,10/12/2015,Grants,Adoption and Children in Care Division,Grants to local authorities / other establishments within aggregate external funding or aggregate exchequer grant,SOUTHAMPTON CITY COUNCIL,4000224057,253000.00
Department for Education,NATIONAL COLLEGE FOR TEACHING AND LEADERSHIP AGENCY,02/12/2015,Grants,Operations Directorate,Grants to educational establishments or not for profit organisations including other businesses,LEEDS TRINITY UNIVERSITY COLLEGE,4000223271,251141.94
Department for Education,NATIONAL COLLEGE FOR TEACHING AND LEADERSHIP AGENCY,02/12/2015,Grants,Operations Directorate,Grants to educational establishments or not for profit organisations including other businesses,LIVERPOOL HOPE UNIVERSITY,4000223338,250258.02
Department for Education,DEPARTMENT FOR EDUCATION,16/12/2015,Grants,Children's Services and Departmental Strategy Safeguarding Group,Grants to local authorities outside aggregate external funding or aggregate exchequer grant,TORBAY COUNCIL,4000224527,250000.00
Department for Education,DEPARTMENT FOR EDUCATION,16/12/2015,Grants,Children's Services and Departmental Strategy Safeguarding Group,Grants to local authorities outside aggregate external funding or aggregate exchequer grant,SHEFFIELD CITY COUNCIL,4000224537,250000.00
Department for Education,NATIONAL COLLEGE FOR TEACHING AND LEADERSHIP AGENCY,02/12/2015,Grants,Operations Directorate,Grants to educational establishments or not for profit organisations including other businesses,UNIVERSITY OF CHESTER,4000223105,249140.43
Department for Education,DEPARTMENT FOR EDUCATION,30/12/2015,Programme costs,Assessment and Curriculum and General Qualifications Group,Funding to deliver policies (excluding consultancy) paid to third parties via a service delivery contract,BCS,4000225625,246396.00
Department for Education,DEPARTMENT FOR EDUCATION,16/12/2015,Programme costs,Assessment and Curriculum and General Qualifications Group,Funding to deliver policies (excluding consultancy) paid to third parties via a service delivery contract,UNIVERSITY COLLEGE LONDON,4000224661,244547.41
Department for Education,DEPARTMENT FOR EDUCATION,22/12/2015,Grants,Children's Services and Departmental Strategy Safeguarding Group,Grants to educational establishments or not for profit organisations including other businesses,RESOLUTIONS CONSULTANCY PTY LTD,4000225177,244187.37
Department for Education,STANDARDS AND TESTING AGENCY,09/12/2015,Professional Services Other,Test Operations Division,"Fees / expenses of professionals, for example to implement advice or changes",EDEXCEL,4000223909,240000.00
Department for Education,DEPARTMENT FOR EDUCATION,03/12/2015,Grants,Children's Services and Departmental Strategy Safeguarding Group,Grants to educational establishments or not for profit organisations including other businesses,THE FRONTLINE ORGANISATION,4000223476,235041.19
Department for Education,DEPARTMENT FOR EDUCATION,21/12/2015,Grants,Children's Services and Departmental Strategy Safeguarding Group,Grants to educational establishments or not for profit organisations including other businesses,NSPCC,4000225002,234125.04
Department for Education,DEPARTMENT FOR EDUCATION,16/12/2015,Grants,Children's Services and Departmental Strategy Safeguarding Group,Grants to local authorities outside aggregate external funding or aggregate exchequer grant,NORTH EAST LINCOLNSHIRE COUNCIL,4000224517,227591.00
Department for Education,DEPARTMENT FOR EDUCATION,03/12/2015,Programme costs,Adoption and Children in Care Division,Funding to deliver policies (excluding consultancy) paid to third parties via a service delivery contract,ACTION FOR CHILDREN,4000223479,223390.25
Department for Education,DEPARTMENT FOR EDUCATION,16/12/2015,Grants,Children's Services and Departmental Strategy Safeguarding Group,Grants to local authorities outside aggregate external funding or aggregate exchequer grant,NORTH YORKSHIRE COUNTY COUNCIL,4000224518,222873.00
Department for Education,NATIONAL COLLEGE FOR TEACHING AND LEADERSHIP AGENCY,02/12/2015,Grants,Operations Directorate,Grants to educational establishments or not for profit organisations including other businesses,UNIVERSITY OF SHEFFIELD,4000223319,221142.96
Department for Education,NATIONAL COLLEGE FOR TEACHING AND LEADERSHIP AGENCY,02/12/2015,Grants,Operations Directorate,Grants to educational establishments or not for profit organisations including other businesses,ST MARYS UNIVERSITY COLLEGE,4000223183,220493.70
Department for Education,NATIONAL COLLEGE FOR TEACHING AND LEADERSHIP AGENCY,02/12/2015,Grants,Operations Directorate,Grants to educational establishments or not for profit organisations including other businesses,UNIVERSITY OF HERTFORDSHIRE,4000223052,218141.46
Department for Education,NATIONAL COLLEGE FOR TEACHING AND LEADERSHIP AGENCY,02/12/2015,Grants,Operations Directorate,Grants to educational establishments or not for profit organisations including other businesses,BRUNEL UNIVERSITY,4000223204,212681.88
Department for Education,NATIONAL COLLEGE FOR TEACHING AND LEADERSHIP AGENCY,02/12/2015,Grants,Operations Directorate,Grants to educational establishments or not for profit organisations including other businesses,UNIVERSITY OF HULL,4000223075,210510.54
Department for Education,DEPARTMENT FOR EDUCATION,09/12/2015,Grants,Adoption and Children in Care Division,Grants to local authorities / other establishments within aggregate external funding or aggregate exchequer grant,BIRMINGHAM CITY COUNCIL,4000223861,210000.00
Department for Education,DEPARTMENT FOR EDUCATION,02/12/2015,Programme costs,Strategic Analysis and Research and Policy Impact Group,Funding to deliver policies (excluding consultancy) paid to third parties via a service delivery contract,4 CHILDREN EARLY INTERVENTION,4000223089,208332.00
Department for Education,DEPARTMENT FOR EDUCATION,16/12/2015,Grants,Children's Services and Departmental Strategy Safeguarding Group,Grants to local authorities outside aggregate external funding or aggregate exchequer grant,SUFFOLK COUNTY COUNCIL,4000224575,207871.00
Department for Education,NATIONAL COLLEGE FOR TEACHING AND LEADERSHIP AGENCY,02/12/2015,Grants,Operations Directorate,Grants to educational establishments or not for profit organisations including other businesses,BATH SPA UNIVERSITY,4000223265,202918.50
Department for Education,DEPARTMENT FOR EDUCATION,16/12/2015,Grants,Children's Services and Departmental Strategy Safeguarding Group,Grants to local authorities outside aggregate external funding or aggregate exchequer grant,CHESHIRE EAST COUNCIL,4000224523,199133.00
Department for Education,NATIONAL COLLEGE FOR TEACHING AND LEADERSHIP AGENCY,02/12/2015,Grants,Operations Directorate,Grants to educational establishments or not for profit organisations including other businesses,UNIVERSITY OF DURHAM,4000223272,198235.17
Department for Education,NATIONAL COLLEGE FOR TEACHING AND LEADERSHIP AGENCY,24/12/2015,Grants,Delivery Directorate,Grants to educational establishments or not for profit organisations including other businesses,UNIVERSITY COLLEGE LONDON,4000225351,197633.30
Department for Education,DEPARTMENT FOR EDUCATION,09/12/2015,Programme costs,International Education Group,Funding to deliver policies (excluding consultancy) paid to third parties via a service delivery contract,FOREIGN & COMMONWEALTH OFFICE,4000223884,190000.00
Department for Education,NATIONAL COLLEGE FOR TEACHING AND LEADERSHIP AGENCY,02/12/2015,Grants,Operations Directorate,Grants to educational establishments or not for profit organisations including other businesses,THE UNIVERSITY OF READING,4000223134,186733.35
Department for Education,NATIONAL COLLEGE FOR TEACHING AND LEADERSHIP AGENCY,02/12/2015,Grants,Operations Directorate,Grants to educational establishments or not for profit organisations including other businesses,UNIVERSITY OF YORK,4000223275,184914.63
Department for Education,DEPARTMENT FOR EDUCATION,21/12/2015,Grants,Assessment and Curriculum and General Qualifications Group,Grants to educational establishments or not for profit organisations including other businesses,NATIONAL SOCIETY C OF E,4000225055,184450.00
Department for Education,DEPARTMENT FOR EDUCATION,01/12/2015,Grants,Adoption and Children in Care Division,Grants to local authorities / other establishments within aggregate external funding or aggregate exchequer grant,SHEFFIELD CITY COUNCIL,4000222993,183000.00
Department for Education,DEPARTMENT FOR EDUCATION,23/12/2015,Facilities,Property Asset Management Group,Property management,INTERSERVE FACILITIES MANAGEMENT LTD,4000225303,182292.67
Department for Education,DEPARTMENT FOR EDUCATION,18/12/2015,Programme costs,"Childcare, Special Educational Needs and Children's Strategy Group",Funding to deliver policies (excluding consultancy) paid to third parties via a service delivery contract,MOTT MACDONALD LTD,4000224951,179978.40
Department for Education,NATIONAL COLLEGE FOR TEACHING AND LEADERSHIP AGENCY,29/12/2015,Communications,Operations Directorate,"Publicity, advertising, media advertising campaigns (excluding recruitment adverts)",CARAT,4000225583,179843.19
Department for Education,DEPARTMENT FOR EDUCATION,16/12/2015,Grants,Children's Services and Departmental Strategy Safeguarding Group,Grants to local authorities outside aggregate external funding or aggregate exchequer grant,SURREY COUNTY COUNCIL,4000224529,179250.00
Department for Education,DEPARTMENT FOR EDUCATION,16/12/2015,Grants,Children's Services and Departmental Strategy Safeguarding Group,Grants to local authorities outside aggregate external funding or aggregate exchequer grant,SEFTON COUNCIL,4000224544,179000.00
Department for Education,DEPARTMENT FOR EDUCATION,11/12/2015,ICT,Information Technology Group,ICT Services,REDWEB,4000224204,178662.00
Department for Education,NATIONAL COLLEGE FOR TEACHING AND LEADERSHIP AGENCY,17/12/2015,Programme costs,Delivery Directorate,Funding to external organisations to deliver policies (excluding consultancy),SELT,4000224763,177960.75
Department for Education,DEPARTMENT FOR EDUCATION,16/12/2015,Grants,Children's Services and Departmental Strategy Safeguarding Group,Grants to educational establishments or not for profit organisations including other businesses,THE FOSTERING NETWORK,4000224595,176318.43
Department for Education,DEPARTMENT FOR EDUCATION,10/12/2015,Programme costs,Children's Services and Departmental Strategy Group,Funding to deliver policies (excluding consultancy) paid to third parties via a service delivery contract,SITEL UK LTD,4000224026,175590.53
Department for Education,NATIONAL COLLEGE FOR TEACHING AND LEADERSHIP AGENCY,02/12/2015,Grants,Operations Directorate,Grants to educational establishments or not for profit organisations including other businesses,UNIVERSITY OF LEICESTER,4000223301,170205.21
Department for Education,NATIONAL COLLEGE FOR TEACHING AND LEADERSHIP AGENCY,02/12/2015,Grants,Operations Directorate,Grants to educational establishments or not for profit organisations including other businesses,UNIVERSITY OF EAST ANGLIA,4000223133,169680.51
Department for Education,DEPARTMENT FOR EDUCATION,08/12/2015,Miscellaneous Expenditure,"Childcare, Special Educational Needs and Children's Strategy Group",Tribunals and trials service fees,HMCTS HM COURTS & TRIBUNALS SERVICE,4000223715,165640.00
Department for Education,DEPARTMENT FOR EDUCATION,16/12/2015,Grants,Children's Services and Departmental Strategy Safeguarding Group,Grants to local authorities outside aggregate external funding or aggregate exchequer grant,KENT COUNTY COUNCIL,4000224559,162000.00
Department for Education,DEPARTMENT FOR EDUCATION,16/12/2015,Grants,Children's Services and Departmental Strategy Safeguarding Group,Grants to local authorities outside aggregate external funding or aggregate exchequer grant,COVENTRY CITY COUNCIL,4000224561,162000.00
Department for Education,NATIONAL COLLEGE FOR TEACHING AND LEADERSHIP AGENCY,02/12/2015,Grants,Operations Directorate,Grants to educational establishments or not for profit organisations including other businesses,UNIVERSITY OF GREENWICH,4000223083,161366.82
Department for Education,NATIONAL COLLEGE FOR TEACHING AND LEADERSHIP AGENCY,02/12/2015,Grants,Operations Directorate,Grants to educational establishments or not for profit organisations including other businesses,LONDON METROPOLITAN UNIVERSITY,4000223056,160724.16
Department for Education,NATIONAL COLLEGE FOR TEACHING AND LEADERSHIP AGENCY,02/12/2015,Grants,Operations Directorate,Grants to educational establishments or not for profit organisations including other businesses,UNIVERSITY OF PORTSMOUTH,4000223295,160477.65
Department for Education,NATIONAL COLLEGE FOR TEACHING AND LEADERSHIP AGENCY,02/12/2015,Grants,Operations Directorate,Grants to educational establishments or not for profit organisations including other businesses,ROEHAMPTON CORPORATE INITIATIVES LTD,4000223118,158049.72
Department for Education,DEPARTMENT FOR EDUCATION,07/12/2015,Grants,Adoption and Children in Care Division,Grants to local authorities / other establishments within aggregate external funding or aggregate exchequer grant,BLACKBURN WITH DARWEN BOROUGH COUNCIL,4000223681,157000.00
Department for Education,NATIONAL COLLEGE FOR TEACHING AND LEADERSHIP AGENCY,02/12/2015,Grants,Operations Directorate,Grants to educational establishments or not for profit organisations including other businesses,UNIVERSITY OF BIRMINGHAM,4000223228,154962.54
Department for Education,NATIONAL COLLEGE FOR TEACHING AND LEADERSHIP AGENCY,16/12/2015,Communications,Operations Directorate,"Publicity, advertising, media advertising campaigns (excluding recruitment adverts)",CARAT,4000224639,153886.35
Department for Education,DEPARTMENT FOR EDUCATION,09/12/2015,Facilities,Property Asset Management Group,Building management,GVA GRIMLEY LTD,4000223914,151745.21
Department for Education,NATIONAL COLLEGE FOR TEACHING AND LEADERSHIP AGENCY,02/12/2015,Grants,Operations Directorate,Grants to educational establishments or not for profit organisations including other businesses,NOTTINGHAM TRENT UNIVERSITY,4000223054,150799.32
Department for Education,DEPARTMENT FOR EDUCATION,24/12/2015,ICT,Information Technology Group,ICT Services,BIS DEPARTMENT FOR BUSINESS INNOVATION & SKILLS,4000225448,150000.00
Department for Education,DEPARTMENT FOR EDUCATION,18/12/2015,Programme costs,Assessment and Curriculum and General Qualifications Group,Funding to deliver policies (excluding consultancy) paid to third parties via a service delivery contract,TRIBAL EDUCATION LIMITED,4000224970,147780.00
Department for Education,DEPARTMENT FOR EDUCATION,16/12/2015,Grants,Children's Services and Departmental Strategy Safeguarding Group,Grants to local authorities outside aggregate external funding or aggregate exchequer grant,STOKE ON TRENT CITY COUNCIL,4000224524,147000.00
Department for Education,DEPARTMENT FOR EDUCATION,11/12/2015,Professional Services Other,Children's Services and Departmental Strategy Safeguarding Group,Research and evaluation activities,UNIVERSITY OF EAST ANGLIA,4000224190,145566.00
Department for Education,DEPARTMENT FOR EDUCATION,24/12/2015,Programme costs,Teachers and Teaching Group,Contract payment to deliver the administration of the Teachers' Pension Scheme,CAPITA LIFE & PENSIONS SERVICES LTD,4000225469,144395.05
Department for Education,NATIONAL COLLEGE FOR TEACHING AND LEADERSHIP AGENCY,02/12/2015,Grants,Operations Directorate,Grants to educational establishments or not for profit organisations including other businesses,UNIVERSITY OF THE WEST OF ENGLAND,4000223298,143665.68
Department for Education,DEPARTMENT FOR EDUCATION,24/12/2015,Programme costs,Assessment and Curriculum and General Qualifications Group,Funding to deliver policies (excluding consultancy) paid to third parties via a service delivery contract,IOP INSTITUTE OF PHYSICS,4000225458,140883.94
Department for Education,NATIONAL COLLEGE FOR TEACHING AND LEADERSHIP AGENCY,02/12/2015,Grants,Operations Directorate,Grants to educational establishments or not for profit organisations including other businesses,BISHOP GROSSETESTE COLLEGE,4000223268,140204.34
Department for Education,NATIONAL COLLEGE FOR TEACHING AND LEADERSHIP AGENCY,02/12/2015,Grants,Operations Directorate,Grants to educational establishments or not for profit organisations including other businesses,UNIVERSITY OF NEWCASTLE UPON TYNE,4000223274,139002.30
Department for Education,DEPARTMENT FOR EDUCATION,16/12/2015,Grants,Children's Services and Departmental Strategy Safeguarding Group,Grants to local authorities outside aggregate external funding or aggregate exchequer grant,LONDON BOROUGH OF HAMMERSMITH & FULHAM COUNCIL,4000224532,138800.00
Department for Education,NATIONAL COLLEGE FOR TEACHING AND LEADERSHIP AGENCY,29/12/2015,Professional Services Other,Operations Directorate,"Fees / expenses of professionals, for example to implement advice or changes",NABARRO LLP,4000225536,136967.64
Department for Education,DEPARTMENT FOR EDUCATION,24/12/2015,ICT,Systems and Accountability Group,ICT Services,CAPGEMINI UK PLC,4000225428,136263.62
Department for Education,NATIONAL COLLEGE FOR TEACHING AND LEADERSHIP AGENCY,02/12/2015,Grants,Operations Directorate,Grants to educational establishments or not for profit organisations including other businesses,UNIVERSITY OF WORCESTER,4000223053,135053.64
Department for Education,DEPARTMENT FOR EDUCATION,09/12/2015,Programme costs,Adoption and Children in Care Division,Funding to deliver policies (excluding consultancy) paid to third parties via a service delivery contract,CATCH 22,4000223912,134275.92
Department for Education,NATIONAL COLLEGE FOR TEACHING AND LEADERSHIP AGENCY,02/12/2015,Grants,Operations Directorate,Grants to educational establishments or not for profit organisations including other businesses,BIRMINGHAM CITY UNIVERSITY,4000223344,130626.00
Department for Education,DEPARTMENT FOR EDUCATION,16/12/2015,Grants,Children's Services and Departmental Strategy Safeguarding Group,Grants to local authorities outside aggregate external funding or aggregate exchequer grant,CAMBRIDGESHIRE COUNTY COUNCIL,4000224526,129842.00
Department for Education,NATIONAL COLLEGE FOR TEACHING AND LEADERSHIP AGENCY,01/12/2015,Grants,Delivery Directorate,Grants to educational establishments or not for profit organisations including other businesses,BISHOP CHALLONER CATHOLIC COLLEGE,4000222920,125000.00
Department for Education,DEPARTMENT FOR EDUCATION,16/12/2015,ICT,Information Technology Group,ICT Services,ATKINS LTD,4000224672,124029.00
Department for Education,DEPARTMENT FOR EDUCATION,16/12/2015,Grants,Children's Services and Departmental Strategy Safeguarding Group,Grants to local authorities outside aggregate external funding or aggregate exchequer grant,KINGSTON UPON HULL COUNCIL,4000224516,122501.00
Department for Education,DEPARTMENT FOR EDUCATION,16/12/2015,Grants,Children's Services and Departmental Strategy Safeguarding Group,Grants to local authorities outside aggregate external funding or aggregate exchequer grant,DERBYSHIRE COUNTY COUNCIL,4000224520,122501.00
Department for Education,DEPARTMENT FOR EDUCATION,17/12/2015,Programme costs,"Childcare, Special Educational Needs and Children's Strategy Group",Funding to deliver policies (excluding consultancy) paid to third parties via a service delivery contract,CONTACT A FAMILY,4000224799,120762.91
Department for Education,DEPARTMENT FOR EDUCATION,16/12/2015,Grants,Children's Services and Departmental Strategy Safeguarding Group,Grants to local authorities outside aggregate external funding or aggregate exchequer grant,NORTH YORKSHIRE COUNTY COUNCIL,4000224551,120580.00
Department for Education,DEPARTMENT FOR EDUCATION,16/12/2015,Grants,Children's Services and Departmental Strategy Safeguarding Group,Grants to local authorities outside aggregate external funding or aggregate exchequer grant,LONDON BOROUGH OF HARROW COUNCIL,4000224542,118051.00
Department for Education,NATIONAL COLLEGE FOR TEACHING AND LEADERSHIP AGENCY,02/12/2015,Grants,Operations Directorate,Grants to educational establishments or not for profit organisations including other businesses,UNIVERSITY OF SOUTHAMPTON,4000223116,118048.41
Department for Education,NATIONAL COLLEGE FOR TEACHING AND LEADERSHIP AGENCY,02/12/2015,Grants,Operations Directorate,Grants to educational establishments or not for profit organisations including other businesses,UNIVERSITY OF WOLVERHAMPTON,4000223273,115198.83
Department for Education,DEPARTMENT FOR EDUCATION,16/12/2015,Grants,Children's Services and Departmental Strategy Safeguarding Group,Grants to local authorities outside aggregate external funding or aggregate exchequer grant,STAFFORDSHIRE COUNCIL,4000224553,115000.00
Department for Education,DEPARTMENT FOR EDUCATION,24/12/2015,Grants,Children's Services and Departmental Strategy Safeguarding Group,Grants to educational establishments or not for profit organisations including other businesses,THE FRONTLINE ORGANISATION,4000225325,114832.39
Department for Education,NATIONAL COLLEGE FOR TEACHING AND LEADERSHIP AGENCY,02/12/2015,Grants,Operations Directorate,Grants to educational establishments or not for profit organisations including other businesses,THE OAKS SCITT,4000223213,114666.66
Department for Education,DEPARTMENT FOR EDUCATION,16/12/2015,Grants,Children's Services and Departmental Strategy Safeguarding Group,Grants to local authorities outside aggregate external funding or aggregate exchequer grant,PLYMOUTH CITY COUNCIL,4000224558,113182.00
Department for Education,DEPARTMENT FOR EDUCATION,01/12/2015,Grants,Adoption and Children in Care Division,Grants to local authorities / other establishments within aggregate external funding or aggregate exchequer grant,THE ROYAL BOROUGH OF WINDSOR & MAIDENHEAD,4000222951,113000.00
Department for Education,DEPARTMENT FOR EDUCATION,21/12/2015,Professional Services Consultancy and Contingent Labour,Information Technology Group,Costs related to temporary workers,RUSSAM GMS LTD,4000225010,112964.04
Department for Education,DEPARTMENT FOR EDUCATION,16/12/2015,Grants,Children's Services and Departmental Strategy Safeguarding Group,Grants to local authorities outside aggregate external funding or aggregate exchequer grant,CITY OF WESTMINSTER,4000224538,110150.00
Department for Education,NATIONAL COLLEGE FOR TEACHING AND LEADERSHIP AGENCY,15/12/2015,Grants,Delivery Directorate,Grants to educational establishments or not for profit organisations including other businesses,THE HERTFORDSHIRE & ESSEX HIGH SCHOOL & SCIENCE COLLEGE,4000224383,110000.00
Department for Education,NATIONAL COLLEGE FOR TEACHING AND LEADERSHIP AGENCY,24/12/2015,Professional Services Other,Delivery Directorate,"Fees / expenses of professionals, for example to implement advice or changes",TEACHING LEADERS,4000225392,109075.00
Department for Education,DEPARTMENT FOR EDUCATION,16/12/2015,Grants,Children's Services and Departmental Strategy Safeguarding Group,Grants to local authorities outside aggregate external funding or aggregate exchequer grant,THE ROYAL BOROUGH OF WINDSOR & MAIDENHEAD,4000224525,109000.00
Department for Education,DEPARTMENT FOR EDUCATION,09/12/2015,Facilities,Property Asset Management Group,Programme management for construction work,BAM CONSTRUCTION LTD,4000223979,108091.20
Department for Education,DEPARTMENT FOR EDUCATION,18/12/2015,Energy and Fuels,Property Asset Management Group,Electricity supply,EDF ENERGY LTD,4000224983,106022.13
Department for Education,DEPARTMENT FOR EDUCATION,11/12/2015,Communications,Information Technology Group,Digital media and web production,PROLOG,4000224223,105143.84
Department for Education,DEPARTMENT FOR EDUCATION,01/12/2015,Grants,Free School Group,Grants to educational establishments or not for profit organisations including other businesses,BELLEVUE EDUCATION TRUST,4000222917,105000.00
Department for Education,NATIONAL COLLEGE FOR TEACHING AND LEADERSHIP AGENCY,23/12/2015,Professional Services Other,Delivery Directorate,"Fees / expenses of professionals, for example to implement advice or changes",Teach First Initial Teacher Development,4000225298,104420.44
Department for Education,DEPARTMENT FOR EDUCATION,18/12/2015,Programme costs,Strategic Analysis and Research and Policy Impact Group,Funding to deliver policies (excluding consultancy) paid to third parties via a service delivery contract,4 CHILDREN EARLY INTERVENTION,4000224880,104166.00
Department for Education,NATIONAL COLLEGE FOR TEACHING AND LEADERSHIP AGENCY,02/12/2015,Grants,Operations Directorate,Grants to educational establishments or not for profit organisations including other businesses,MIDDLESEX UNIVERSITY,4000223333,103634.82
Department for Education,NATIONAL COLLEGE FOR TEACHING AND LEADERSHIP AGENCY,02/12/2015,Grants,Operations Directorate,Grants to educational establishments or not for profit organisations including other businesses,UNIVERSITY OF SUNDERLAND,4000223252,103278.89
Department for Education,NATIONAL COLLEGE FOR TEACHING AND LEADERSHIP AGENCY,03/12/2015,Programme costs,Delivery Directorate,Funding to deliver policies (excluding consultancy) paid to third parties via a service delivery contract,FUTURE LEADERS CHARITABLE TRUST SCHOLARSHIPS,4000223434,103000.00
Department for Education,DEPARTMENT FOR EDUCATION,16/12/2015,Grants,Children's Services and Departmental Strategy Safeguarding Group,Grants to local authorities outside aggregate external funding or aggregate exchequer grant,BUCKINGHAMSHIRE COUNTY COUNCIL,4000224519,102906.00
Department for Education,DEPARTMENT FOR EDUCATION,16/12/2015,Grants,Children's Services and Departmental Strategy Safeguarding Group,Grants to local authorities outside aggregate external funding or aggregate exchequer grant,LONDON BOROUGH OF SOUTHWARK COUNCIL,4000224531,102876.00
Department for Education,DEPARTMENT FOR EDUCATION,24/12/2015,Grants,Free School Group,Grants to educational establishments or not for profit organisations including other businesses,NEW SCHOOLS NETWORK,4000225382,101269.59
Department for Education,NATIONAL COLLEGE FOR TEACHING AND LEADERSHIP AGENCY,02/12/2015,Grants,Operations Directorate,Grants to educational establishments or not for profit organisations including other businesses,KENT & MEDWAY TRAINING,4000223208,100991.88
Department for Education,DEPARTMENT FOR EDUCATION,04/12/2015,Grants,Academies Delivery Group,Grants to educational establishments or not for profit organisations including other businesses,NINESTILES SCHOOL,4000223591,100000.00
Department for Education,DEPARTMENT FOR EDUCATION,16/12/2015,Professional Services Other,Children's Services and Departmental Strategy Safeguarding Group,Research and evaluation activities,CARDIFF UNIVERSITY,4000224660,100000.00
Department for Education,STANDARDS AND TESTING AGENCY,09/12/2015,Office Solutions,Test Operations Division,Post and courier services,PARCELFORCE WORLDWIDE,4000223889,99824.69
Department for Education,DEPARTMENT FOR EDUCATION,16/12/2015,Programme costs,Assessment and Curriculum and General Qualifications Group,Funding to deliver policies (excluding consultancy) paid to third parties via a service delivery contract,MYSCIENCE CO LTD,4000224592,99675.19
Department for Education,DEPARTMENT FOR EDUCATION,18/12/2015,Professional Services Other,Children's Services and Departmental Strategy Safeguarding Group,"Fees / expenses of professionals, for example to implement advice or changes",DELOITTE LLP,4000224897,99141.41
Department for Education,NATIONAL COLLEGE FOR TEACHING AND LEADERSHIP AGENCY,02/12/2015,Grants,Operations Directorate,Grants to educational establishments or not for profit organisations including other businesses,UNIVERSITY OF CHICHESTER,4000223119,98739.91
Department for Education,NATIONAL COLLEGE FOR TEACHING AND LEADERSHIP AGENCY,04/12/2015,Communications,Operations Directorate,"Publicity, advertising, media advertising campaigns (excluding recruitment adverts)",INFERNO LTD,4000223559,98468.75
Department for Education,NATIONAL COLLEGE FOR TEACHING AND LEADERSHIP AGENCY,02/12/2015,Grants,Operations Directorate,Grants to educational establishments or not for profit organisations including other businesses,KINGSTON UNIVERSITY,4000223197,97864.56
Department for Education,DEPARTMENT FOR EDUCATION,01/12/2015,Grants,Adoption and Children in Care Division,Grants to local authorities / other establishments within aggregate external funding or aggregate exchequer grant,BUCKINGHAMSHIRE COUNTY COUNCIL,4000222949,97000.00
Department for Education,DEPARTMENT FOR EDUCATION,01/12/2015,Grants,Adoption and Children in Care Division,Grants to local authorities / other establishments within aggregate external funding or aggregate exchequer grant,ROTHERHAM MBC,4000222998,97000.00
Department for Education,DEPARTMENT FOR EDUCATION,07/12/2015,Grants,Adoption and Children in Care Division,Grants to local authorities / other establishments within aggregate external funding or aggregate exchequer grant,DEVON COUNTY COUNCIL,4000223680,97000.00
Department for Education,DEPARTMENT FOR EDUCATION,15/12/2015,Programme costs,Families Group,Funding to deliver policies (excluding consultancy) paid to third parties via a service delivery contract,Barnardo's,4000224358,96843.39
Department for Education,DEPARTMENT FOR EDUCATION,04/12/2015,ICT,Information Technology Group,ICT Services,EDUSERV,4000223622,95930.74
Department for Education,NATIONAL COLLEGE FOR TEACHING AND LEADERSHIP AGENCY,10/12/2015,Programme costs,Delivery Directorate,Funding to deliver policies (excluding consultancy) paid to third parties via a service delivery contract,CFBT EDUCATION TRUST,4000224045,95113.20
Department for Education,DEPARTMENT FOR EDUCATION,07/12/2015,Communications,Information Technology Group,Digital media and web production,PROLOG,4000223643,94920.45
Department for Education,NATIONAL COLLEGE FOR TEACHING AND LEADERSHIP AGENCY,02/12/2015,Grants,Operations Directorate,Grants to educational establishments or not for profit organisations including other businesses,THE MORLEY ACADEMY,4000223205,93997.26
Department for Education,DEPARTMENT FOR EDUCATION,08/12/2015,Energy and Fuels,Property Asset Management Group,Electricity supply,EDF ENERGY LTD,4000223765,93262.76
Department for Education,NATIONAL COLLEGE FOR TEACHING AND LEADERSHIP AGENCY,02/12/2015,Grants,Operations Directorate,Grants to educational establishments or not for profit organisations including other businesses,CARMEL TEACHER TRAINING PARTNERSHIP,4000223135,92864.25
Department for Education,DEPARTMENT FOR EDUCATION,01/12/2015,Grants,Children's Services and Departmental Strategy Safeguarding Group,Grants to educational establishments or not for profit organisations including other businesses,SAFE FAMILIES FOR CHILDREN,4000222997,91630.00
Department for Education,NATIONAL COLLEGE FOR TEACHING AND LEADERSHIP AGENCY,02/12/2015,Grants,Operations Directorate,Grants to educational establishments or not for profit organisations including other businesses,HIBERNIA COLLEGE UK,4000223353,91323.90
Department for Education,NATIONAL COLLEGE FOR TEACHING AND LEADERSHIP AGENCY,17/12/2015,Programme costs,Delivery Directorate,Funding to deliver policies (excluding consultancy) paid to third parties via a service delivery contract,UNIVERSITY OF NOTTINGHAM,4000224767,91191.47
Department for Education,DEPARTMENT FOR EDUCATION,24/12/2015,ICT,Information Technology Group,ICT Services - hardware maintenance and support,CAPGEMINI UK PLC,4000225428,90002.76
Department for Education,DEPARTMENT FOR EDUCATION,09/12/2015,Programme costs,Adoption and Children in Care Division,Funding to deliver policies (excluding consultancy) paid to third parties via a service delivery contract,DELOITTE,4000223858,88876.80
Department for Education,DEPARTMENT FOR EDUCATION,23/12/2015,Programme costs,Adoption and Children in Care Division,Funding to deliver policies (excluding consultancy) paid to third parties via a service delivery contract,DELOITTE,4000225289,88876.80
Department for Education,DEPARTMENT FOR EDUCATION,17/12/2015,Grants,Children's Services and Departmental Strategy Safeguarding Group,Grants to local authorities / other establishments within aggregate external funding or aggregate exchequer grant,LEEDS CITY COUNCIL,4000224758,88000.00
Department for Education,NATIONAL COLLEGE FOR TEACHING AND LEADERSHIP AGENCY,02/12/2015,Grants,Operations Directorate,Grants to educational establishments or not for profit organisations including other businesses,BRADFORD COLLEGE,4000223339,87197.00
Department for Education,NATIONAL COLLEGE FOR TEACHING AND LEADERSHIP AGENCY,02/12/2015,Grants,Operations Directorate,Grants to educational establishments or not for profit organisations including other businesses,UNIVERSITY OF PLYMOUTH,4000223172,87185.61
Department for Education,NATIONAL COLLEGE FOR TEACHING AND LEADERSHIP AGENCY,02/12/2015,Grants,Operations Directorate,Grants to educational establishments or not for profit organisations including other businesses,UNIVERSITY OF HUDDERSFIELD,4000223249,86845.50
Department for Education,DEPARTMENT FOR EDUCATION,10/12/2015,ICT,Information Technology Group,Telecoms facilities and services - telecom rentals,BRITISH TELECOMMUNICATIONS PLC,1001792,86222.50
Department for Education,NATIONAL COLLEGE FOR TEACHING AND LEADERSHIP AGENCY,18/12/2015,Grants,Delivery Directorate,Grants to educational establishments or not for profit organisations including other businesses,BEST PRACTISE NETWORK LTD SHOLARSHIPS,4000224956,86041.00
Department for Education,DEPARTMENT FOR EDUCATION,17/12/2015,Grants,Adoption and Children in Care Division,Grants to local authorities / other establishments within aggregate external funding or aggregate exchequer grant,MEDWAY COUNCIL,4000224722,86000.00
Department for Education,NATIONAL COLLEGE FOR TEACHING AND LEADERSHIP AGENCY,18/12/2015,Grants,Delivery Directorate,Grants to educational establishments or not for profit organisations including other businesses,EDGE HILL UNIVERSITY,4000224985,85884.00
Department for Education,NATIONAL COLLEGE FOR TEACHING AND LEADERSHIP AGENCY,02/12/2015,Grants,Delivery Directorate,Grants to educational establishments or not for profit organisations including other businesses,EDGE HILL UNIVERSITY,4000223299,85680.00
Department for Education,NATIONAL COLLEGE FOR TEACHING AND LEADERSHIP AGENCY,02/12/2015,Grants,Operations Directorate,Grants to educational establishments or not for profit organisations including other businesses,BROMLEY SCHOOLS COLLEGIATE,4000223112,85580.41
Department for Education,DEPARTMENT FOR EDUCATION,09/12/2015,Grants,Academies Delivery Group,Grants to educational establishments or not for profit organisations including other businesses,UNITED LEARNING TRUST,4000223987,85000.00
Department for Education,NATIONAL COLLEGE FOR TEACHING AND LEADERSHIP AGENCY,02/12/2015,Grants,Operations Directorate,Grants to educational establishments or not for profit organisations including other businesses,NORTHAMPTON TEACHER TRAINING,4000223313,84960.00
Department for Education,NATIONAL COLLEGE FOR TEACHING AND LEADERSHIP AGENCY,02/12/2015,Grants,Operations Directorate,Grants to educational establishments or not for profit organisations including other businesses,YORK ST JOHN UNIVERSITY,4000223359,83488.59
Department for Education,NATIONAL COLLEGE FOR TEACHING AND LEADERSHIP AGENCY,01/12/2015,Grants,Delivery Directorate,Grants to educational establishments or not for profit organisations including other businesses,ST JOHN VIANNEY SCHOOL,4000222994,83387.00
Department for Education,NATIONAL COLLEGE FOR TEACHING AND LEADERSHIP AGENCY,07/12/2015,Programme costs,Delivery Directorate,Funding to deliver policies (excluding consultancy) paid to third parties via a service delivery contract,CFBT EDUCATION TRUST,4000223664,82042.80
Department for Education,DEPARTMENT FOR EDUCATION,16/12/2015,Grants,Children's Services and Departmental Strategy Safeguarding Group,Grants to local authorities outside aggregate external funding or aggregate exchequer grant,THE ROYAL BOROUGH OF KENSINGTON & CHELSEA COUNCIL,4000224530,81550.00
Department for Education,NATIONAL COLLEGE FOR TEACHING AND LEADERSHIP AGENCY,02/12/2015,Grants,Operations Directorate,Grants to educational establishments or not for profit organisations including other businesses,UNIVERSITY OF DERBY,4000223131,81381.89
Department for Education,DEPARTMENT FOR EDUCATION,09/12/2015,Grants,"Childcare, Special Educational Needs and Children's Strategy Group",Grants to educational establishments or not for profit organisations including other businesses,THE CHILDRENS TRUST,4000223959,80465.00
Department for Education,DEPARTMENT FOR EDUCATION,09/12/2015,Grants,Academies Delivery Group,Capital grants paid to a private sector organisation,BRIGHT TRIBE TRUST LTD,4000223944,80000.00
Department for Education,DEPARTMENT FOR EDUCATION,16/12/2015,Grants,Children's Services and Departmental Strategy Safeguarding Group,Grants to local authorities outside aggregate external funding or aggregate exchequer grant,OXFORDSHIRE COUNTY COUNCIL,4000224564,80000.00
Department for Education,DEPARTMENT FOR EDUCATION,16/12/2015,Grants,Academies Delivery Group,Grants to educational establishments or not for profit organisations including other businesses,BRIGHT TRIBE TRUST LTD,4000224688,80000.00
Department for Education,DEPARTMENT FOR EDUCATION,21/12/2015,Grants,Academies Delivery Group,Grants to educational establishments or not for profit organisations including other businesses,THE EDUCATION PARTNERSHIP TRUST,4000225021,80000.00
Department for Education,NATIONAL COLLEGE FOR TEACHING AND LEADERSHIP AGENCY,02/12/2015,Grants,Operations Directorate,Grants to educational establishments or not for profit organisations including other businesses,THE ACADEMY AT SHOTTON HALL,4000223067,79762.68
Department for Education,DEPARTMENT FOR EDUCATION,16/12/2015,Grants,Children's Services and Departmental Strategy Safeguarding Group,Grants to local authorities outside aggregate external funding or aggregate exchequer grant,MANCHESTER CITY COUNCIL,4000224578,77500.00
Department for Education,NATIONAL COLLEGE FOR TEACHING AND LEADERSHIP AGENCY,02/12/2015,Grants,Operations Directorate,Grants to educational establishments or not for profit organisations including other businesses,TRAIN TO TEACH AT SURREY & HANTS,4000223093,77400.00
Department for Education,DEPARTMENT FOR EDUCATION,09/12/2015,Grants,Children's Services and Departmental Strategy Safeguarding Group,Grants to educational establishments or not for profit organisations including other businesses,NORFOLK & SUFFOLK NHS FOUNDATION TRUST,4000223957,76874.29
Department for Education,NATIONAL COLLEGE FOR TEACHING AND LEADERSHIP AGENCY,03/12/2015,Grants,Operations Directorate,Grants to educational establishments or not for profit organisations including other businesses,HIBERNIA COLLEGE UK,4000223464,76865.00
Department for Education,STANDARDS AND TESTING AGENCY,03/12/2015,Programme costs,Test Development Division,Funding to deliver policies (excluding consultancy) paid to third parties via a service delivery contract,TRIBAL EDUCATION,4000223386,75795.00
Department for Education,DEPARTMENT FOR EDUCATION,15/12/2015,Personnel Related,Human Resources Group,Childcare voucher scheme for staff,FIDELITI LTD,4000224357,75639.44
Department for Education,DEPARTMENT FOR EDUCATION,22/12/2015,Professional Services Consultancy and Contingent Labour,Information Technology Group,Costs related to temporary workers,MICROSOFT LTD,4000225273,74382.00
Department for Education,NATIONAL COLLEGE FOR TEACHING AND LEADERSHIP AGENCY,11/12/2015,Grants,Delivery Directorate,Grants to educational establishments or not for profit organisations including other businesses,TRURO & PENWITH COLLEGE TS ACCOUNT,4000224098,73950.00
Department for Education,NATIONAL COLLEGE FOR TEACHING AND LEADERSHIP AGENCY,03/12/2015,Grants,Operations Directorate,Grants to educational establishments or not for profit organisations including other businesses,UNIVERSITY OF SUNDERLAND,4000223422,73400.00
Department for Education,NATIONAL COLLEGE FOR TEACHING AND LEADERSHIP AGENCY,02/12/2015,Grants,Operations Directorate,Grants to educational establishments or not for profit organisations including other businesses,ST JOSEPH'S COLLEGE,4000223189,73260.00
Department for Education,NATIONAL COLLEGE FOR TEACHING AND LEADERSHIP AGENCY,02/12/2015,Grants,Delivery Directorate,Grants to educational establishments or not for profit organisations including other businesses,E QUALITAS PROFESSIONAL SERVICES LTD,4000223157,72540.00
Department for Education,DEPARTMENT FOR EDUCATION,24/12/2015,Grants,Character and Disadvantage Division,Grants to educational establishments or not for profit organisations including other businesses,CHALLENGER TROOP,4000225439,71961.01
Department for Education,DEPARTMENT FOR EDUCATION,16/12/2015,Programme costs,International Education Group,Funding to deliver policies (excluding consultancy) paid to third parties via a service delivery contract,TRIBAL EDUCATION,4000224695,71940.00
Department for Education,NATIONAL COLLEGE FOR TEACHING AND LEADERSHIP AGENCY,02/12/2015,Grants,Operations Directorate,Grants to educational establishments or not for profit organisations including other businesses,UNIVERSITY OF WINCHESTER,4000223114,71822.25
Department for Education,NATIONAL COLLEGE FOR TEACHING AND LEADERSHIP AGENCY,02/12/2015,Grants,Operations Directorate,Grants to educational establishments or not for profit organisations including other businesses,NORTH BEDS SCITT CONSORTIUM,4000223311,71460.99
Department for Education,NATIONAL COLLEGE FOR TEACHING AND LEADERSHIP AGENCY,02/12/2015,Grants,Operations Directorate,Grants to educational establishments or not for profit organisations including other businesses,BOURNEMOUTH POOLE & DORSET EAST SECONDARY,4000223099,71369.82
Department for Education,DEPARTMENT FOR EDUCATION,04/12/2015,Grants,Character and Disadvantage Division,Grants to educational establishments or not for profit organisations including other businesses,COMMANDO JOES,4000223543,70996.50
Department for Education,DEPARTMENT FOR EDUCATION,17/12/2015,ICT,Information Technology Group,ICT Services,EDUSERV,4000224793,70728.68
Department for Education,NATIONAL COLLEGE FOR TEACHING AND LEADERSHIP AGENCY,02/12/2015,Grants,Operations Directorate,Grants to educational establishments or not for profit organisations including other businesses,ESSEX COUNTY COUNCIL,4000223079,70393.86
Department for Education,DEPARTMENT FOR EDUCATION,01/12/2015,Grants,Adoption and Children in Care Division,Grants to local authorities / other establishments within aggregate external funding or aggregate exchequer grant,WEST SUSSEX COUNTY COUNCIL,4000222983,70000.00
Department for Education,DEPARTMENT FOR EDUCATION,04/12/2015,Grants,Academies Delivery Group,Grants to educational establishments or not for profit organisations including other businesses,WAKEFIELD CITY MULTI ACADEMIES TRUST,4000223558,70000.00
Department for Education,DEPARTMENT FOR EDUCATION,08/12/2015,Grants,Academies Delivery Group,Grants to educational establishments or not for profit organisations including other businesses,PRIORSLEE MULTI ACADEMY TRUST,4000223760,70000.00
Department for Education,DEPARTMENT FOR EDUCATION,09/12/2015,Grants,Adoption and Children in Care Division,Grants to local authorities / other establishments within aggregate external funding or aggregate exchequer grant,MIDDLESBROUGH COUNCIL,4000223985,70000.00
Department for Education,DEPARTMENT FOR EDUCATION,09/12/2015,Grants,Adoption and Children in Care Division,Grants to local authorities / other establishments within aggregate external funding or aggregate exchequer grant,ISLE OF WIGHT COUNCIL,4000223996,70000.00
Department for Education,DEPARTMENT FOR EDUCATION,09/12/2015,Grants,Academies Delivery Group,Grants to educational establishments or not for profit organisations including other businesses,WELLSPRING ACADEMY TRUST,4000223999,70000.00
Department for Education,DEPARTMENT FOR EDUCATION,10/12/2015,Grants,Adoption and Children in Care Division,Grants to local authorities / other establishments within aggregate external funding or aggregate exchequer grant,TORBAY COUNCIL,4000224059,70000.00
Department for Education,DEPARTMENT FOR EDUCATION,16/12/2015,Grants,Children's Services and Departmental Strategy Safeguarding Group,Grants to local authorities outside aggregate external funding or aggregate exchequer grant,TRAFFORD MB COUNCIL,4000224582,70000.00
Department for Education,NATIONAL COLLEGE FOR TEACHING AND LEADERSHIP AGENCY,02/12/2015,Grants,Operations Directorate,Grants to educational establishments or not for profit organisations including other businesses,UNIVERSITY OF NORTHUMBRIA,4000223035,69933.66
Department for Education,DEPARTMENT FOR EDUCATION,21/12/2015,Programme costs,Post 16 and Disadvantage Group,Funding to deliver policies (excluding consultancy) paid to third parties via a service delivery contract,CHILDRENS FOOD TRUST,4000225012,69916.00
Department for Education,NATIONAL COLLEGE FOR TEACHING AND LEADERSHIP AGENCY,11/12/2015,Grants,Delivery Directorate,Grants to educational establishments or not for profit organisations including other businesses,ST MARY & ST THOMAS CE PRIMARY SCHOOL,4000224097,69000.00
Department for Education,NATIONAL COLLEGE FOR TEACHING AND LEADERSHIP AGENCY,11/12/2015,Grants,Delivery Directorate,Grants to educational establishments or not for profit organisations including other businesses,ST PAULS CATHOLIC COLLEGE TS ACC,4000224099,69000.00
Department for Education,NATIONAL COLLEGE FOR TEACHING AND LEADERSHIP AGENCY,11/12/2015,Grants,Delivery Directorate,Grants to educational establishments or not for profit organisations including other businesses,BELLEVILLE PRIMARY SCHOOL TS ACCOUNT,4000224100,69000.00
Department for Education,NATIONAL COLLEGE FOR TEACHING AND LEADERSHIP AGENCY,11/12/2015,Grants,Delivery Directorate,Grants to educational establishments or not for profit organisations including other businesses,MARY ROSE ACADEMY,4000224115,69000.00
Department for Education,NATIONAL COLLEGE FOR TEACHING AND LEADERSHIP AGENCY,11/12/2015,Grants,Delivery Directorate,Grants to educational establishments or not for profit organisations including other businesses,TRINITY ACADEMY HALIFAX,4000224119,69000.00
Department for Education,NATIONAL COLLEGE FOR TEACHING AND LEADERSHIP AGENCY,11/12/2015,Grants,Delivery Directorate,Grants to educational establishments or not for profit organisations including other businesses,THE HERTFORDSHIRE & ESSEX HIGH SCHOOL & SCIENCE COLLEGE,4000224121,69000.00
Department for Education,NATIONAL COLLEGE FOR TEACHING AND LEADERSHIP AGENCY,11/12/2015,Grants,Delivery Directorate,Grants to educational establishments or not for profit organisations including other businesses,HETHERSETT ACADEMY,4000224123,69000.00
Department for Education,NATIONAL COLLEGE FOR TEACHING AND LEADERSHIP AGENCY,11/12/2015,Grants,Delivery Directorate,Grants to educational establishments or not for profit organisations including other businesses,CARMEL COLLEGE A CATHOLIC ACADEMY,4000224128,69000.00
Department for Education,NATIONAL COLLEGE FOR TEACHING AND LEADERSHIP AGENCY,11/12/2015,Grants,Delivery Directorate,Grants to educational establishments or not for profit organisations including other businesses,HARROGATE GRAMMAR SCHOOL TS PAYMENTS,4000224130,69000.00
Department for Education,NATIONAL COLLEGE FOR TEACHING AND LEADERSHIP AGENCY,11/12/2015,Grants,Delivery Directorate,Grants to educational establishments or not for profit organisations including other businesses,HARRIS CITY ACADEMY,4000224131,69000.00
Department for Education,NATIONAL COLLEGE FOR TEACHING AND LEADERSHIP AGENCY,11/12/2015,Grants,Delivery Directorate,Grants to educational establishments or not for profit organisations including other businesses,GEORGE SPENCER ACADEMY,4000224142,69000.00
Department for Education,NATIONAL COLLEGE FOR TEACHING AND LEADERSHIP AGENCY,11/12/2015,Grants,Delivery Directorate,Grants to educational establishments or not for profit organisations including other businesses,PAINSLEY CATHOLIC ACADEMY,4000224144,69000.00
Department for Education,NATIONAL COLLEGE FOR TEACHING AND LEADERSHIP AGENCY,11/12/2015,Grants,Delivery Directorate,Grants to educational establishments or not for profit organisations including other businesses,SALOP TEACHING SCHOOL ALLIANCE,4000224153,69000.00
Department for Education,NATIONAL COLLEGE FOR TEACHING AND LEADERSHIP AGENCY,11/12/2015,Grants,Delivery Directorate,Grants to educational establishments or not for profit organisations including other businesses,BISHOP CHALLONER CATHOLIC COLLEGE,4000224155,69000.00
Department for Education,NATIONAL COLLEGE FOR TEACHING AND LEADERSHIP AGENCY,11/12/2015,Grants,Delivery Directorate,Grants to educational establishments or not for profit organisations including other businesses,BALCARRAS SCHOOL,4000224156,69000.00
Department for Education,NATIONAL COLLEGE FOR TEACHING AND LEADERSHIP AGENCY,11/12/2015,Grants,Delivery Directorate,Grants to educational establishments or not for profit organisations including other businesses,THE MINSTER SCHOOL,4000224178,69000.00
Department for Education,NATIONAL COLLEGE FOR TEACHING AND LEADERSHIP AGENCY,11/12/2015,Grants,Delivery Directorate,Grants to educational establishments or not for profit organisations including other businesses,CABOT LEARNING FEDERATION,4000224191,69000.00
Department for Education,NATIONAL COLLEGE FOR TEACHING AND LEADERSHIP AGENCY,11/12/2015,Grants,Delivery Directorate,Grants to educational establishments or not for profit organisations including other businesses,CHURCHILL COMMUNITY COLLEGE,4000224193,69000.00
Department for Education,NATIONAL COLLEGE FOR TEACHING AND LEADERSHIP AGENCY,11/12/2015,Grants,Delivery Directorate,Grants to educational establishments or not for profit organisations including other businesses,FOX PRIMARY SCHOOL,4000224206,69000.00
Department for Education,NATIONAL COLLEGE FOR TEACHING AND LEADERSHIP AGENCY,11/12/2015,Grants,Delivery Directorate,Grants to educational establishments or not for profit organisations including other businesses,ELMHURST PRIMARY SCHOOL,4000224212,69000.00
Department for Education,NATIONAL COLLEGE FOR TEACHING AND LEADERSHIP AGENCY,11/12/2015,Grants,Delivery Directorate,Grants to educational establishments or not for profit organisations including other businesses,WYCOMBE HIGH SCHOOL,4000224213,69000.00
Department for Education,NATIONAL COLLEGE FOR TEACHING AND LEADERSHIP AGENCY,11/12/2015,Grants,Delivery Directorate,Grants to educational establishments or not for profit organisations including other businesses,ST JOHN THE BAPTIST SCHOOL,4000224215,69000.00
Department for Education,NATIONAL COLLEGE FOR TEACHING AND LEADERSHIP AGENCY,11/12/2015,Grants,Delivery Directorate,Grants to educational establishments or not for profit organisations including other businesses,ST MARYLEBONE CE SCHOOL,4000224224,69000.00
Department for Education,NATIONAL COLLEGE FOR TEACHING AND LEADERSHIP AGENCY,11/12/2015,Grants,Delivery Directorate,Grants to educational establishments or not for profit organisations including other businesses,NOTRE DAME HIGH SCHOOL TS ACCOUNT,4000224227,69000.00
Department for Education,NATIONAL COLLEGE FOR TEACHING AND LEADERSHIP AGENCY,11/12/2015,Grants,Delivery Directorate,Grants to educational establishments or not for profit organisations including other businesses,THE WOODROFFE SCHOOL,4000224228,69000.00
Department for Education,NATIONAL COLLEGE FOR TEACHING AND LEADERSHIP AGENCY,11/12/2015,Grants,Delivery Directorate,Grants to educational establishments or not for profit organisations including other businesses,ASHTON ON MERSEY SCHOOL,4000224231,69000.00
Department for Education,NATIONAL COLLEGE FOR TEACHING AND LEADERSHIP AGENCY,11/12/2015,Grants,Delivery Directorate,Grants to educational establishments or not for profit organisations including other businesses,ALTRINCHAM GRAMMAR SCHOOL FOR GIRLS,4000224234,69000.00
Department for Education,NATIONAL COLLEGE FOR TEACHING AND LEADERSHIP AGENCY,11/12/2015,Grants,Delivery Directorate,Grants to educational establishments or not for profit organisations including other businesses,SIR JOSEPH WILLIAMSONS MATHEMATICAL SCHOOL,4000224235,69000.00
Department for Education,NATIONAL COLLEGE FOR TEACHING AND LEADERSHIP AGENCY,11/12/2015,Grants,Delivery Directorate,Grants to educational establishments or not for profit organisations including other businesses,OUTWOOD GRANGE ACADEMY TS ACCOUNT,4000224242,69000.00
Department for Education,DEPARTMENT FOR EDUCATION,16/12/2015,Grants,Children's Services and Departmental Strategy Safeguarding Group,Grants to local authorities outside aggregate external funding or aggregate exchequer grant,LONDON BOROUGH OF WALTHAM FOREST COUNCIL,4000224576,68125.00
Department for Education,NATIONAL COLLEGE FOR TEACHING AND LEADERSHIP AGENCY,02/12/2015,Grants,Operations Directorate,Grants to educational establishments or not for profit organisations including other businesses,PADDINGTON ACADEMY,4000223304,67772.07
Department for Education,DEPARTMENT FOR EDUCATION,08/12/2015,Facilities,Property Asset Management Group,"Building maintenance and repair, including repainting, replacing flooring, etc.",INTERSERVE FACILITIES MANAGEMENT LTD,4000223842,67652.00
Department for Education,DEPARTMENT FOR EDUCATION,03/12/2015,Grants,Free School Group,Grants to educational establishments or not for profit organisations including other businesses,NEW SCHOOLS NETWORK,4000223410,67613.36
Department for Education,DEPARTMENT FOR EDUCATION,09/12/2015,Grants,Adoption and Children in Care Division,Grants to local authorities / other establishments within aggregate external funding or aggregate exchequer grant,TAMESIDE MBC,4000223863,67500.00
Department for Education,DEPARTMENT FOR EDUCATION,04/12/2015,Grants,Children's Services and Departmental Strategy Safeguarding Group,Grants to educational establishments or not for profit organisations including other businesses,ARK UK PROGRAMMES,4000223554,67222.67
Department for Education,DEPARTMENT FOR EDUCATION,11/12/2015,Communications,Information Technology Group,Digital media and web production,PROLOG,4000224223,67105.50
Department for Education,DEPARTMENT FOR EDUCATION,18/12/2015,Programme costs,Teachers and Teaching Group,Funding to deliver policies (excluding consultancy) paid to third parties via a service delivery contract,GOVERNMENT ACTUARYS DEPARTMENT,4000224973,66931.05
Department for Education,DEPARTMENT FOR EDUCATION,15/12/2015,ICT,Systems and Accountability Group,ICT Services,SOFTWARE FOR DATA ANALYSIS LTD,4000224457,66904.80
Department for Education,NATIONAL COLLEGE FOR TEACHING AND LEADERSHIP AGENCY,02/12/2015,Grants,Operations Directorate,Grants to educational establishments or not for profit organisations including other businesses,SUTTON SCITT,4000223069,65868.57
Department for Education,NATIONAL COLLEGE FOR TEACHING AND LEADERSHIP AGENCY,02/12/2015,Grants,Operations Directorate,Grants to educational establishments or not for profit organisations including other businesses,CORNWALL SCITT,4000223115,65383.02
Department for Education,DEPARTMENT FOR EDUCATION,03/12/2015,Grants,Free School Group,Grants to educational establishments or not for profit organisations including other businesses,GEMS LEARNING TRUST,4000223416,65000.00
Department for Education,DEPARTMENT FOR EDUCATION,09/12/2015,Facilities,Property Asset Management Group,"Building maintenance and repair, including repainting, replacing flooring, etc.",SODEXO LTD,4000223968,64205.73
Department for Education,DEPARTMENT FOR EDUCATION,08/12/2015,Facilities,Property Asset Management Group,Property management,METHODS CONSULTING LTD,4000223848,63347.37
Department for Education,STANDARDS AND TESTING AGENCY,16/12/2015,Programme costs,Test Development Division,Funding to deliver policies (excluding consultancy) paid to third parties via a service delivery contract,RNIB,4000224626,63313.00
Department for Education,DEPARTMENT FOR EDUCATION,22/12/2015,Programme costs,Post 16 and Disadvantage Group,Funding to deliver policies (excluding consultancy) paid to third parties via a service delivery contract,ATKINS LTD,4000225193,63200.10
Department for Education,DEPARTMENT FOR EDUCATION,18/12/2015,Programme costs,Post 16 and Disadvantage Group,Funding to deliver policies (excluding consultancy) paid to third parties via a service delivery contract,MAGIC BREAKFAST,4000224895,63056.26
Department for Education,NATIONAL COLLEGE FOR TEACHING AND LEADERSHIP AGENCY,02/12/2015,Grants,Operations Directorate,Grants to educational establishments or not for profit organisations including other businesses,ST GEORGES ACADEMY SCITT,4000223195,62907.00
Department for Education,DEPARTMENT FOR EDUCATION,10/12/2015,Grants,Adoption and Children in Care Division,Grants to educational establishments or not for profit organisations including other businesses,ADOPTION UK,4000224025,62760.00
Department for Education,DEPARTMENT FOR EDUCATION,18/12/2015,Programme costs,"Childcare, Special Educational Needs and Children's Strategy Group",Funding to deliver policies (excluding consultancy) paid to third parties via a service delivery contract,EUROPEAN AGENCY FOR DEVELOPMENT IN SEN,3000361,62544.77
Department for Education,NATIONAL COLLEGE FOR TEACHING AND LEADERSHIP AGENCY,01/12/2015,Grants,Delivery Directorate,"Grants paid to organisations including agencies, arms length bodies and educational establishments",BISHOP CHALLONER CATHOLIC COLLEGE,4000222920,62500.00
Department for Education,NATIONAL COLLEGE FOR TEACHING AND LEADERSHIP AGENCY,02/12/2015,Grants,Operations Directorate,Grants to educational establishments or not for profit organisations including other businesses,CHILTERN TRAINING GROUP,4000223136,62270.91
Department for Education,DEPARTMENT FOR EDUCATION,23/12/2015,ICT,Information Technology Group,Partial payment for IT hardware / consumables,ATKINS MANTIX LTD,4000225292,62130.12
Department for Education,NATIONAL COLLEGE FOR TEACHING AND LEADERSHIP AGENCY,02/12/2015,Grants,Operations Directorate,Grants to educational establishments or not for profit organisations including other businesses,OXFORD BROOKES UNIVERSITY,4000223224,61321.41
Department for Education,NATIONAL COLLEGE FOR TEACHING AND LEADERSHIP AGENCY,02/12/2015,Grants,Operations Directorate,Grants to educational establishments or not for profit organisations including other businesses,SOUTH WEST TEACHER TRAINING,4000223186,60007.50
Department for Education,NATIONAL COLLEGE FOR TEACHING AND LEADERSHIP AGENCY,01/12/2015,Grants,Delivery Directorate,Grants to educational establishments or not for profit organisations including other businesses,SPRINGFILED JUNIOR SHCOOL,4000222883,60000.00
Department for Education,NATIONAL COLLEGE FOR TEACHING AND LEADERSHIP AGENCY,01/12/2015,Grants,Delivery Directorate,Grants to educational establishments or not for profit organisations including other businesses,SIR CHRISTOPHER HATTON ACADEMY,4000222892,60000.00
Department for Education,NATIONAL COLLEGE FOR TEACHING AND LEADERSHIP AGENCY,01/12/2015,Grants,Delivery Directorate,Grants to educational establishments or not for profit organisations including other businesses,BISHOP CHALLONER CATHOLIC COLLEGE,4000222920,60000.00
Department for Education,DEPARTMENT FOR EDUCATION,01/12/2015,Grants,Adoption and Children in Care Division,Grants to local authorities / other establishments within aggregate external funding or aggregate exchequer grant,HALTON BOROUGH COUNCIL,4000222958,60000.00
Department for Education,NATIONAL COLLEGE FOR TEACHING AND LEADERSHIP AGENCY,01/12/2015,Grants,Delivery Directorate,Grants to educational establishments or not for profit organisations including other businesses,LOXFORD SCHOOL TRUST,4000222963,60000.00
Department for Education,DEPARTMENT FOR EDUCATION,03/12/2015,Grants,Free School Group,Grants to educational establishments or not for profit organisations including other businesses,DEYES HIGH SCHOOL,4000223401,60000.00
Department for Education,NATIONAL COLLEGE FOR TEACHING AND LEADERSHIP AGENCY,08/12/2015,Grants,Delivery Directorate,Grants to educational establishments or not for profit organisations including other businesses,ST JOHN & ST MONICA SCHOOLS,4000223717,60000.00
Department for Education,NATIONAL COLLEGE FOR TEACHING AND LEADERSHIP AGENCY,08/12/2015,Grants,Delivery Directorate,Grants to educational establishments or not for profit organisations including other businesses,CHRIST THE KING PRIMARY SCHOOL,4000223737,60000.00
Department for Education,NATIONAL COLLEGE FOR TEACHING AND LEADERSHIP AGENCY,08/12/2015,Grants,Delivery Directorate,Grants to educational establishments or not for profit organisations including other businesses,THE GRANTHAM SANDON SCHOOL,4000223738,60000.00
Department for Education,NATIONAL COLLEGE FOR TEACHING AND LEADERSHIP AGENCY,08/12/2015,Grants,Delivery Directorate,Grants to educational establishments or not for profit organisations including other businesses,DYKE HOUSE SPORTS & TECHNOLOGY COLLEGE,4000223778,60000.00
Department for Education,NATIONAL COLLEGE FOR TEACHING AND LEADERSHIP AGENCY,08/12/2015,Grants,Delivery Directorate,Grants to educational establishments or not for profit organisations including other businesses,THE SOUTHWATER INFANT ACADEMY,4000223803,60000.00
Department for Education,DEPARTMENT FOR EDUCATION,16/12/2015,Grants,Children's Services and Departmental Strategy Safeguarding Group,Grants to local authorities outside aggregate external funding or aggregate exchequer grant,READING BOROUGH COUNCIL,4000224555,60000.00
Department for Education,DEPARTMENT FOR EDUCATION,16/12/2015,Grants,Children's Services and Departmental Strategy Safeguarding Group,Grants to local authorities outside aggregate external funding or aggregate exchequer grant,NORTHAMPTONSHIRE COUNTY COUNCIL,4000224563,60000.00
Department for Education,DEPARTMENT FOR EDUCATION,17/12/2015,Grants,Adoption and Children in Care Division,Grants to local authorities / other establishments within aggregate external funding or aggregate exchequer grant,DERBYSHIRE COUNTY COUNCIL,4000224829,60000.00
Department for Education,DEPARTMENT FOR EDUCATION,17/12/2015,Grants,Children's Services and Departmental Strategy Safeguarding Group,Grants to local authorities / other establishments within aggregate external funding or aggregate exchequer grant,CAMBRIDGESHIRE COUNTY COUNCIL,4000224863,60000.00
Department for Education,NATIONAL COLLEGE FOR TEACHING AND LEADERSHIP AGENCY,22/12/2015,Grants,Delivery Directorate,Grants to educational establishments or not for profit organisations including other businesses,OKEHAMPTON COLLEGE,4000225087,60000.00
Department for Education,NATIONAL COLLEGE FOR TEACHING AND LEADERSHIP AGENCY,22/12/2015,Grants,Delivery Directorate,Grants to educational establishments or not for profit organisations including other businesses,REDHILL SCHOOL & SPECIALIST LANGUAGE COLLEGE,4000225157,60000.00
Department for Education,NATIONAL COLLEGE FOR TEACHING AND LEADERSHIP AGENCY,22/12/2015,Grants,Delivery Directorate,Grants to educational establishments or not for profit organisations including other businesses,KING EDWARD VI SCHOOL,4000225205,60000.00
Department for Education,NATIONAL COLLEGE FOR TEACHING AND LEADERSHIP AGENCY,22/12/2015,Grants,Delivery Directorate,Grants to educational establishments or not for profit organisations including other businesses,BISHOP LUFFA COFE SCHOOL,4000225267,60000.00
Department for Education,DEPARTMENT FOR EDUCATION,23/12/2015,Grants,Adoption and Children in Care Division,Grants to educational establishments or not for profit organisations including other businesses,THE SHARE FOUNDATION 3RD PARTY TRUST,4000225308,59800.00
Department for Education,NATIONAL COLLEGE FOR TEACHING AND LEADERSHIP AGENCY,02/12/2015,Grants,Operations Directorate,Grants to educational establishments or not for profit organisations including other businesses,LOUGHBOROUGH UNIVERSITY ENTERPRISE LTD,4000223341,59422.50
Department for Education,DEPARTMENT FOR EDUCATION,11/12/2015,ICT,Systems and Accountability Group,ICT Services,PROLOG,4000224223,58906.20
Department for Education,NATIONAL COLLEGE FOR TEACHING AND LEADERSHIP AGENCY,02/12/2015,Grants,Operations Directorate,Grants to educational establishments or not for profit organisations including other businesses,BILLERICAY EDUCATIONAL CONSORTIUM,4000223266,58779.09
Department for Education,DEPARTMENT FOR EDUCATION,10/12/2015,Professional Services Other,Strategic Analysis and Research Group,Research and evaluation activities,L G FUTURES LTD,4000224022,58318.75
Department for Education,NATIONAL COLLEGE FOR TEACHING AND LEADERSHIP AGENCY,10/12/2015,Professional Services Other,Delivery Directorate,"Fees / expenses of professionals, for example to implement advice or changes",MM TELEPERFORMANCE,4000224085,58275.00
Department for Education,DEPARTMENT FOR EDUCATION,11/12/2015,Professional Services Consultancy and Contingent Labour,Information Technology Group,"Fees / expenses of professionals such as auditors, accountants, lawyers, etc. engaged to provide advice or opinion on how to affect something",CAPGEMINI UK PLC,4000224167,57991.00
Department for Education,NATIONAL COLLEGE FOR TEACHING AND LEADERSHIP AGENCY,02/12/2015,Grants,Operations Directorate,Grants to educational establishments or not for profit organisations including other businesses,DURHAM SECONDARY APPLIED SCITT,4000223146,57796.29
Department for Education,DEPARTMENT FOR EDUCATION,17/12/2015,Grants,Adoption and Children in Care Division,Grants to local authorities / other establishments within aggregate external funding or aggregate exchequer grant,POOLE BOROUGH COUNCIL,4000224831,57600.00
Department for Education,NATIONAL COLLEGE FOR TEACHING AND LEADERSHIP AGENCY,02/12/2015,Grants,Operations Directorate,Grants to educational establishments or not for profit organisations including other businesses,UNIVERSITY OF BOLTON,4000223124,57420.00
Department for Education,DEPARTMENT FOR EDUCATION,21/12/2015,Professional Services Consultancy and Contingent Labour,Information Technology Group,Costs related to temporary workers,RUSSAM GMS LTD,4000225010,57115.32
Department for Education,NATIONAL COLLEGE FOR TEACHING AND LEADERSHIP AGENCY,02/12/2015,Grants,Operations Directorate,Grants to educational establishments or not for profit organisations including other businesses,UNIVERSITY OF BEDFORDSHIRE,4000223342,56230.56
Department for Education,DEPARTMENT FOR EDUCATION,15/12/2015,Grants,Adoption and Children in Care Division,Grants to educational establishments or not for profit organisations including other businesses,THE SHARE FOUNDATION 3RD PARTY TRUST,4000224437,56000.00
Department for Education,NATIONAL COLLEGE FOR TEACHING AND LEADERSHIP AGENCY,18/12/2015,Grants,Delivery Directorate,Grants to educational establishments or not for profit organisations including other businesses,INSPIRING LEADERS SCHOLARSHIPS,4000224940,55985.00
Department for Education,NATIONAL COLLEGE FOR TEACHING AND LEADERSHIP AGENCY,02/12/2015,Grants,Operations Directorate,Grants to educational establishments or not for profit organisations including other businesses,UNIVERSITY OF GLOUCESTERSHIRE,4000223321,55628.10
Department for Education,NATIONAL COLLEGE FOR TEACHING AND LEADERSHIP AGENCY,02/12/2015,Grants,Operations Directorate,Grants to educational establishments or not for profit organisations including other businesses,GRAND UNION TRAINING PARTNERSHIP,4000223142,55259.91
Department for Education,DEPARTMENT FOR EDUCATION,24/12/2015,Grants,Academies Delivery Group,Grants to educational establishments or not for profit organisations including other businesses,FEATHERSTONE HIGH SCHOOL,4000225375,55000.00
Department for Education,NATIONAL COLLEGE FOR TEACHING AND LEADERSHIP AGENCY,02/12/2015,Grants,Operations Directorate,Grants to educational establishments or not for profit organisations including other businesses,GOLDSMITH COLLEGE,4000223141,54329.04
Department for Education,NATIONAL COLLEGE FOR TEACHING AND LEADERSHIP AGENCY,02/12/2015,Grants,Operations Directorate,Grants to educational establishments or not for profit organisations including other businesses,SUFFOLK COUNTY COUNCIL,4000223322,54187.74
Department for Education,DEPARTMENT FOR EDUCATION,03/12/2015,Programme costs,"Childcare, Special Educational Needs and Children's Strategy Group",Funding to deliver policies (excluding consultancy) paid to third parties via a service delivery contract,NATIONAL AUTISTIC SOCIETY,4000223411,54166.66
Department for Education,NATIONAL COLLEGE FOR TEACHING AND LEADERSHIP AGENCY,02/12/2015,Grants,Operations Directorate,Grants to educational establishments or not for profit organisations including other businesses,LEEDS BECKETT UNIVERSITY,4000223129,54004.50
Department for Education,DEPARTMENT FOR EDUCATION,07/12/2015,Grants,Adoption and Children in Care Division,Grants to local authorities / other establishments within aggregate external funding or aggregate exchequer grant,LONDON BOROUGH OF LEWISHAM,4000223639,54000.00
Department for Education,DEPARTMENT FOR EDUCATION,10/12/2015,Grants,Adoption and Children in Care Division,Grants to local authorities / other establishments within aggregate external funding or aggregate exchequer grant,WALSALL MBC,4000224068,54000.00
Department for Education,DEPARTMENT FOR EDUCATION,17/12/2015,Grants,Adoption and Children in Care Division,Grants to local authorities / other establishments within aggregate external funding or aggregate exchequer grant,ROCHDALE MBC,4000224835,54000.00
Department for Education,DEPARTMENT FOR EDUCATION,23/12/2015,Professional Services Consultancy and Contingent Labour,Adoption and Children in Care Division,"Advisory services including fees, travel and expenses",METHODS CONSULTING LTD,4000225279,53695.20
Department for Education,DEPARTMENT FOR EDUCATION,15/12/2015,Grants,"Childcare, Special Educational Needs and Children's Strategy Group",Grants to educational establishments or not for profit organisations including other businesses,BRITISH DYSLEXIA ASSOCIATION,4000224361,53443.66
Department for Education,DEPARTMENT FOR EDUCATION,22/12/2015,Grants,"Childcare, Special Educational Needs and Children's Strategy Group",Grants to educational establishments or not for profit organisations including other businesses,CONTACT A FAMILY,4000225262,53224.93
Department for Education,NATIONAL COLLEGE FOR TEACHING AND LEADERSHIP AGENCY,18/12/2015,Grants,Delivery Directorate,Grants to educational establishments or not for profit organisations including other businesses,LEADING SCHOOLS SOUTH WEST,4000224913,51813.00
Department for Education,NATIONAL COLLEGE FOR TEACHING AND LEADERSHIP AGENCY,02/12/2015,Grants,Operations Directorate,Grants to educational establishments or not for profit organisations including other businesses,COLCHESTER SCHOOLS SCITT CONSORTIUM,4000223137,51534.00
Department for Education,DEPARTMENT FOR EDUCATION,14/12/2015,Personnel Related,International Education Group,Additional pension contributions paid to teachers working in European schools following a European Court judgement.,TEACHERS PENSIONS,4000224304,50948.59
Department for Education,NATIONAL COLLEGE FOR TEACHING AND LEADERSHIP AGENCY,18/12/2015,Grants,Delivery Directorate,Grants to educational establishments or not for profit organisations including other businesses,FUTURE LEADERS CHARITABLE TRUST SCHOLARSHIPS,4000224957,50871.00
Department for Education,DEPARTMENT FOR EDUCATION,07/12/2015,Grants,Adoption and Children in Care Division,Grants to educational establishments or not for profit organisations including other businesses,THE SHARE FOUNDATION 3RD PARTY TRUST,4000223695,50800.00
Department for Education,NATIONAL COLLEGE FOR TEACHING AND LEADERSHIP AGENCY,02/12/2015,Grants,Operations Directorate,Grants to educational establishments or not for profit organisations including other businesses,UCL INSTITUTE OF EDUCATION,4000223350,50600.00
Department for Education,STANDARDS AND TESTING AGENCY,04/12/2015,Programme costs,Test Development Division,Funding to deliver policies (excluding consultancy) paid to third parties via a service delivery contract,LEARN DIRECT,4000223577,50553.88
Department for Education,DEPARTMENT FOR EDUCATION,24/12/2015,Grants,Adoption and Children in Care Division,Grants to educational establishments or not for profit organisations including other businesses,PAC UK,4000225320,50224.76
Department for Education,NATIONAL COLLEGE FOR TEACHING AND LEADERSHIP AGENCY,01/12/2015,Grants,Delivery Directorate,Grants to educational establishments or not for profit organisations including other businesses,HAMPTON HILL JUNIOR SCHOOL,4000222902,50000.00
Department for Education,NATIONAL COLLEGE FOR TEACHING AND LEADERSHIP AGENCY,01/12/2015,Grants,Delivery Directorate,Grants to educational establishments or not for profit organisations including other businesses,ST ANTHONYS GIRLS SCHOOL,4000222939,50000.00
Department for Education,NATIONAL COLLEGE FOR TEACHING AND LEADERSHIP AGENCY,01/12/2015,Grants,Delivery Directorate,Grants to educational establishments or not for profit organisations including other businesses,HUNTINGDON NURSERY SCHOOL,4000222978,50000.00
Department for Education,NATIONAL COLLEGE FOR TEACHING AND LEADERSHIP AGENCY,01/12/2015,Grants,Delivery Directorate,Grants to educational establishments or not for profit organisations including other businesses,ST MARYS CATHOLIC PRIMARY SCHOOL,4000222979,50000.00
Department for Education,NATIONAL COLLEGE FOR TEACHING AND LEADERSHIP AGENCY,01/12/2015,Grants,Delivery Directorate,Grants to educational establishments or not for profit organisations including other businesses,ST MARYS CATHOLIC PRIMARY SCHOOL,4000223007,50000.00
Department for Education,DEPARTMENT FOR EDUCATION,04/12/2015,Grants,Academies Delivery Group,Grants to educational establishments or not for profit organisations including other businesses,ST EDMUNDSBURY & IPSWICH DIOCESAN ACADEMY TRUST,4000223581,50000.00
Department for Education,NATIONAL COLLEGE FOR TEACHING AND LEADERSHIP AGENCY,08/12/2015,Grants,Delivery Directorate,Grants to educational establishments or not for profit organisations including other businesses,PIPER HILL SPECIALIST SUPPORT SCHOOL,4000223713,50000.00
Department for Education,NATIONAL COLLEGE FOR TEACHING AND LEADERSHIP AGENCY,08/12/2015,Grants,Delivery Directorate,Grants to educational establishments or not for profit organisations including other businesses,THE SPINNEY PRIMARY SCHOOL,4000223723,50000.00
Department for Education,NATIONAL COLLEGE FOR TEACHING AND LEADERSHIP AGENCY,08/12/2015,Grants,Delivery Directorate,Grants to educational establishments or not for profit organisations including other businesses,HOLYHEAD SCHOOL,4000223730,50000.00
Department for Education,NATIONAL COLLEGE FOR TEACHING AND LEADERSHIP AGENCY,08/12/2015,Grants,Delivery Directorate,Grants to educational establishments or not for profit organisations including other businesses,BARR BEACON LANGUAGE COLLEGE,4000223734,50000.00
Department for Education,NATIONAL COLLEGE FOR TEACHING AND LEADERSHIP AGENCY,08/12/2015,Grants,Delivery Directorate,Grants to educational establishments or not for profit organisations including other businesses,CHIPSTEAD VALLEY PRIMARY SCHOOL,4000223743,50000.00
Department for Education,NATIONAL COLLEGE FOR TEACHING AND LEADERSHIP AGENCY,08/12/2015,Grants,Delivery Directorate,Grants to educational establishments or not for profit organisations including other businesses,HAREFIELD PRIMARY SCHOOL,4000223753,50000.00
Department for Education,NATIONAL COLLEGE FOR TEACHING AND LEADERSHIP AGENCY,08/12/2015,Grants,Delivery Directorate,Grants to educational establishments or not for profit organisations including other businesses,TAPTON SCHOOL BCAP,4000223788,50000.00
Department for Education,NATIONAL COLLEGE FOR TEACHING AND LEADERSHIP AGENCY,08/12/2015,Grants,Delivery Directorate,Grants to educational establishments or not for profit organisations including other businesses,GRAZEBROOK PRIMARY SCHOOL,4000223804,50000.00
Department for Education,NATIONAL COLLEGE FOR TEACHING AND LEADERSHIP AGENCY,08/12/2015,Grants,Delivery Directorate,Grants to educational establishments or not for profit organisations including other businesses,GREY COURT SCHOOL,4000223815,50000.00
Department for Education,NATIONAL COLLEGE FOR TEACHING AND LEADERSHIP AGENCY,08/12/2015,Grants,Delivery Directorate,Grants to educational establishments or not for profit organisations including other businesses,ST JOSEPHS CATHOLIC PRIMARY SCHOOL,4000223832,50000.00
Department for Education,NATIONAL COLLEGE FOR TEACHING AND LEADERSHIP AGENCY,08/12/2015,Grants,Delivery Directorate,Grants to educational establishments or not for profit organisations including other businesses,THE PRIORY ACADEMY LSST,4000223836,50000.00
Department for Education,NATIONAL COLLEGE FOR TEACHING AND LEADERSHIP AGENCY,15/12/2015,Grants,Delivery Directorate,Grants to educational establishments or not for profit organisations including other businesses,GREAT SANKEY HIGH SCHOOL TS ACCOUNT,4000224346,50000.00
Department for Education,NATIONAL COLLEGE FOR TEACHING AND LEADERSHIP AGENCY,15/12/2015,Grants,Delivery Directorate,Grants to educational establishments or not for profit organisations including other businesses,SPRING COMMON SCHOOL,4000224406,50000.00
Department for Education,NATIONAL COLLEGE FOR TEACHING AND LEADERSHIP AGENCY,15/12/2015,Grants,Delivery Directorate,Grants to educational establishments or not for profit organisations including other businesses,LARK RISE ACADEMY,4000224412,50000.00
Department for Education,NATIONAL COLLEGE FOR TEACHING AND LEADERSHIP AGENCY,15/12/2015,Grants,Delivery Directorate,Grants to educational establishments or not for profit organisations including other businesses,CHURCHEND SCHOOL,4000224420,50000.00
Department for Education,NATIONAL COLLEGE FOR TEACHING AND LEADERSHIP AGENCY,15/12/2015,Grants,Delivery Directorate,Grants to educational establishments or not for profit organisations including other businesses,ST THOMAS MORE RC PRIMARY SCHOOL,4000224444,50000.00
Department for Education,DEPARTMENT FOR EDUCATION,16/12/2015,Grants,Children's Services and Departmental Strategy Safeguarding Group,Grants to local authorities outside aggregate external funding or aggregate exchequer grant,LONDON BOROUGH OF SOUTHWARK COUNCIL,4000224568,50000.00
Department for Education,NATIONAL COLLEGE FOR TEACHING AND LEADERSHIP AGENCY,22/12/2015,Grants,Delivery Directorate,Grants to educational establishments or not for profit organisations including other businesses,POWERS HALL ACADEMY,4000225117,50000.00
Department for Education,NATIONAL COLLEGE FOR TEACHING AND LEADERSHIP AGENCY,22/12/2015,Grants,Delivery Directorate,Grants to educational establishments or not for profit organisations including other businesses,WOODRUSH HIGH SCHOOL,4000225153,50000.00
Department for Education,NATIONAL COLLEGE FOR TEACHING AND LEADERSHIP AGENCY,22/12/2015,Grants,Delivery Directorate,Grants to educational establishments or not for profit organisations including other businesses,THE SYDNEY RUSSELL SCHOOL,4000225154,50000.00
Department for Education,NATIONAL COLLEGE FOR TEACHING AND LEADERSHIP AGENCY,22/12/2015,Grants,Delivery Directorate,Grants to educational establishments or not for profit organisations including other businesses,VAUXHALL SCHOOL,4000225199,50000.00
Department for Education,NATIONAL COLLEGE FOR TEACHING AND LEADERSHIP AGENCY,22/12/2015,Grants,Delivery Directorate,Grants to educational establishments or not for profit organisations including other businesses,ASHMOUNT SCHOOL,4000225242,50000.00
Department for Education,NATIONAL COLLEGE FOR TEACHING AND LEADERSHIP AGENCY,15/12/2015,Grants,Delivery Directorate,Grants to educational establishments or not for profit organisations including other businesses,ST FRANCIS CATHOLIC PRIMARY SCHOOL,4000224382,49550.00
Department for Education,NATIONAL COLLEGE FOR TEACHING AND LEADERSHIP AGENCY,02/12/2015,Grants,Operations Directorate,Grants to educational establishments or not for profit organisations including other businesses,BUILE HILL VISUAL ARTS COLLEGE,4000223254,49320.00
Department for Education,DEPARTMENT FOR EDUCATION,03/12/2015,ICT,Systems and Accountability Group,ICT Services,SOFTWARE FOR DATA ANALYSIS LTD,4000223455,49200.00
Department for Education,DEPARTMENT FOR EDUCATION,24/12/2015,Programme costs,Systems and Accountability Group,Funding to deliver policies (excluding consultancy) paid to third parties via a service delivery contract,RM EDUCATION PLC,4000225479,48833.57
Department for Education,DEPARTMENT FOR EDUCATION,30/12/2015,Grants,Children's Services and Departmental Strategy Safeguarding Group,Grants to local authorities / other establishments within aggregate external funding or aggregate exchequer grant,DONCASTER METROPOLITAN BOROUGH COUNCIL,4000225607,48312.00
Department for Education,NATIONAL COLLEGE FOR TEACHING AND LEADERSHIP AGENCY,08/12/2015,Grants,Delivery Directorate,Grants to educational establishments or not for profit organisations including other businesses,THE BRIDGE SCHOOL TS ACCOUNT,4000223830,47700.00
Department for Education,DEPARTMENT FOR EDUCATION,22/12/2015,Grants,Assessment and Curriculum and General Qualifications Group,Grants to educational establishments or not for profit organisations including other businesses,ASSOCIATION FOR LANGUAGE LEARNING,4000225171,47541.59
Department for Education,DEPARTMENT FOR EDUCATION,30/12/2015,Programme costs,Assessment and Curriculum and General Qualifications Group,Funding to deliver policies (excluding consultancy) paid to third parties via a service delivery contract,MYSCIENCE CO LTD,4000225592,47512.33
Department for Education,DEPARTMENT FOR EDUCATION,01/12/2015,Programme costs,"Childcare, Special Educational Needs and Children's Strategy Group",Funding to deliver policies (excluding consultancy) paid to third parties via a service delivery contract,MOTT MACDONALD LTD,4000222913,46222.80
Department for Education,DEPARTMENT FOR EDUCATION,16/12/2015,Grants,"Childcare, Special Educational Needs and Children's Strategy Group",Grants to educational establishments or not for profit organisations including other businesses,DRIVER YOUTH TRUST,4000224630,46057.03
Department for Education,DEPARTMENT FOR EDUCATION,03/12/2015,Professional Services Other,Strategic Analysis and Research Group,Research and evaluation activities,Payment to individual,4000223450,45900.00
Department for Education,NATIONAL COLLEGE FOR TEACHING AND LEADERSHIP AGENCY,02/12/2015,Grants,Operations Directorate,Grants to educational establishments or not for profit organisations including other businesses,KEELE AND NORTH STAFFS PRIMARY SCITT,4000223216,45864.09
Department for Education,NATIONAL COLLEGE FOR TEACHING AND LEADERSHIP AGENCY,22/12/2015,Grants,Delivery Directorate,Grants to educational establishments or not for profit organisations including other businesses,CHORLTON PARK PRIMARY SCHOOL,4000225243,45630.00
Department for Education,NATIONAL COLLEGE FOR TEACHING AND LEADERSHIP AGENCY,02/12/2015,Grants,Operations Directorate,Grants to educational establishments or not for profit organisations including other businesses,LEICESTERSHIRE SECONDARY SCITT,4000223107,45450.00
Department for Education,DEPARTMENT FOR EDUCATION,16/12/2015,Grants,Children's Services and Departmental Strategy Safeguarding Group,Grants to local authorities outside aggregate external funding or aggregate exchequer grant,CHESHIRE WEST & CHESTER COUNCIL,4000224552,45000.00
Department for Education,DEPARTMENT FOR EDUCATION,16/12/2015,Grants,Children's Services and Departmental Strategy Safeguarding Group,Grants to local authorities outside aggregate external funding or aggregate exchequer grant,NOTTINGHAM CITY COUNCIL,4000224560,45000.00
Department for Education,DEPARTMENT FOR EDUCATION,16/12/2015,Grants,Children's Services and Departmental Strategy Safeguarding Group,Grants to local authorities outside aggregate external funding or aggregate exchequer grant,LEICESTER CITY COUNCIL,4000224583,45000.00
Department for Education,DEPARTMENT FOR EDUCATION,16/12/2015,Grants,Children's Services and Departmental Strategy Safeguarding Group,Grants to local authorities outside aggregate external funding or aggregate exchequer grant,WEST SUSSEX COUNTY COUNCIL,4000224584,45000.00
Department for Education,DEPARTMENT FOR EDUCATION,17/12/2015,Grants,Children's Services and Departmental Strategy Safeguarding Group,Grants to local authorities / other establishments within aggregate external funding or aggregate exchequer grant,LONDON BOROUGH OF HAMMERSMITH & FULHAM COUNCIL,4000224783,45000.00
Department for Education,STANDARDS AND TESTING AGENCY,30/12/2015,Programme costs,Test Development Division,Funding to deliver policies (excluding consultancy) paid to third parties via a service delivery contract,NFER,4000225608,44769.50
Department for Education,DEPARTMENT FOR EDUCATION,01/12/2015,Grants,Children's Services and Departmental Strategy Safeguarding Group,Grants to educational establishments or not for profit organisations including other businesses,UNIVERSITY OF KENT,4000222961,44516.17
Department for Education,NATIONAL COLLEGE FOR TEACHING AND LEADERSHIP AGENCY,04/12/2015,Grants,Operations Directorate,Grants to educational establishments or not for profit organisations including other businesses,LANDAU FORTE COLLEGE DERBY SCITT,4000223582,44280.00
Department for Education,NATIONAL COLLEGE FOR TEACHING AND LEADERSHIP AGENCY,02/12/2015,Grants,Delivery Directorate,Grants to educational establishments or not for profit organisations including other businesses,MIDDLESEX UNIVERSITY,4000223333,44070.00
Department for Education,DEPARTMENT FOR EDUCATION,03/12/2015,Grants,Free School Group,Grants to educational establishments or not for profit organisations including other businesses,ST JEROME CHURCH OF ENGLAND BILINGUAL PRIMARY SCHOOL,4000223438,44000.00
Department for Education,DEPARTMENT FOR EDUCATION,24/12/2015,Grants,Free School Group,Grants to educational establishments or not for profit organisations including other businesses,SOLIHULL ALTERNATIVE PROVISION ACADEMY LTD,4000225326,44000.00
Department for Education,NATIONAL COLLEGE FOR TEACHING AND LEADERSHIP AGENCY,02/12/2015,Grants,Operations Directorate,Grants to educational establishments or not for profit organisations including other businesses,STAFFORDSHIRE UNIVERSITY,4000223130,43929.18
Department for Education,DEPARTMENT FOR EDUCATION,16/12/2015,Grants,Children's Services and Departmental Strategy Safeguarding Group,Grants to educational establishments or not for profit organisations including other businesses,DAYBREAK FAMILY GROUP CONFERENCES,4000224640,43772.66
Department for Education,DEPARTMENT FOR EDUCATION,24/12/2015,Professional Services Other,Strategic Analysis and Research Group,Research and evaluation activities,RM EDUCATION,4000225383,43702.00
Department for Education,NATIONAL COLLEGE FOR TEACHING AND LEADERSHIP AGENCY,02/12/2015,Grants,Operations Directorate,Grants to educational establishments or not for profit organisations including other businesses,ST JOHN THE BAPTIST SCHOOL,4000223257,43200.09
Department for Education,NATIONAL COLLEGE FOR TEACHING AND LEADERSHIP AGENCY,29/12/2015,Grants,Operations Directorate,Grants to educational establishments or not for profit organisations including other businesses,GREENWICH LA SCHOOLS ACCOUNTING,4000225514,43200.00
Department for Education,NATIONAL COLLEGE FOR TEACHING AND LEADERSHIP AGENCY,02/12/2015,Grants,Operations Directorate,Grants to educational establishments or not for profit organisations including other businesses,ARK SCHOOLS,4000223149,43187.58
Department for Education,DEPARTMENT FOR EDUCATION,01/12/2015,Grants,Adoption and Children in Care Division,Grants to local authorities / other establishments within aggregate external funding or aggregate exchequer grant,HAMPSHIRE COUNTY COUNCIL,4000222950,43000.00
Department for Education,DEPARTMENT FOR EDUCATION,07/12/2015,Grants,Adoption and Children in Care Division,Grants to local authorities / other establishments within aggregate external funding or aggregate exchequer grant,YORK CITY COUNCIL,4000223671,43000.00
Department for Education,DEPARTMENT FOR EDUCATION,09/12/2015,Grants,Adoption and Children in Care Division,Grants to local authorities / other establishments within aggregate external funding or aggregate exchequer grant,LONDON BOROUGH OF LAMBETH COUNCIL,4000224018,43000.00
Department for Education,DEPARTMENT FOR EDUCATION,10/12/2015,Grants,Adoption and Children in Care Division,Grants to local authorities / other establishments within aggregate external funding or aggregate exchequer grant,DARLINGTON BOROUGH COUNCIL,4000224056,43000.00
Department for Education,DEPARTMENT FOR EDUCATION,15/12/2015,Grants,Adoption and Children in Care Division,Grants to local authorities / other establishments within aggregate external funding or aggregate exchequer grant,BURY MBC,4000224489,43000.00
Department for Education,DEPARTMENT FOR EDUCATION,17/12/2015,Grants,Adoption and Children in Care Division,Grants to local authorities / other establishments within aggregate external funding or aggregate exchequer grant,SEFTON COUNCIL,4000224827,43000.00
Department for Education,DEPARTMENT FOR EDUCATION,17/12/2015,Grants,Adoption and Children in Care Division,Grants to local authorities / other establishments within aggregate external funding or aggregate exchequer grant,SWINDON BOROUGH COUNCIL,4000224861,43000.00
Department for Education,NATIONAL COLLEGE FOR TEACHING AND LEADERSHIP AGENCY,18/12/2015,Grants,Delivery Directorate,Grants to educational establishments or not for profit organisations including other businesses,BEST PRACTISE NETWORK LTD SHOLARSHIPS,4000224956,42897.00
Department for Education,NATIONAL COLLEGE FOR TEACHING AND LEADERSHIP AGENCY,22/12/2015,Grants,Delivery Directorate,"Grants paid to organisations including agencies, arms length bodies and educational establishments",ELMS BANK SPECIALIST ARTS COLLEGE CF ACCOUNT,4000225208,42500.00
Department for Education,NATIONAL COLLEGE FOR TEACHING AND LEADERSHIP AGENCY,02/12/2015,Grants,Operations Directorate,Grants to educational establishments or not for profit organisations including other businesses,GEORGE SPENCER TRAINING SCHOOL,4000223160,42416.37
Department for Education,NATIONAL COLLEGE FOR TEACHING AND LEADERSHIP AGENCY,02/12/2015,Grants,Operations Directorate,Grants to educational establishments or not for profit organisations including other businesses,ESSEX PRY SCHOOLS TRAINING GROUP,4000223158,42030.00
Department for Education,NATIONAL COLLEGE FOR TEACHING AND LEADERSHIP AGENCY,02/12/2015,Grants,Operations Directorate,Grants to educational establishments or not for profit organisations including other businesses,KING EDWARDS CONSORTIUM,4000223165,41901.39
Department for Education,NATIONAL COLLEGE FOR TEACHING AND LEADERSHIP AGENCY,08/12/2015,Grants,Delivery Directorate,Grants to educational establishments or not for profit organisations including other businesses,EMMANUEL COLLEGE,4000223744,41500.00
Department for Education,NATIONAL COLLEGE FOR TEACHING AND LEADERSHIP AGENCY,18/12/2015,Grants,Delivery Directorate,Grants to educational establishments or not for profit organisations including other businesses,LEEDS BECKETT UNIVERSITY,4000224899,41271.00
Department for Education,NATIONAL COLLEGE FOR TEACHING AND LEADERSHIP AGENCY,18/12/2015,Grants,Delivery Directorate,Grants to educational establishments or not for profit organisations including other businesses,GEORGE SPENCER ACADEMY TRUST SCHOLARSHIPS,4000224941,41271.00
Department for Education,DEPARTMENT FOR EDUCATION,16/12/2015,Grants,Children's Services and Departmental Strategy Safeguarding Group,Grants to local authorities outside aggregate external funding or aggregate exchequer grant,LONDON BOROUGH OF TOWER HAMLETS COUNCIL,4000224571,41250.00
Department for Education,NATIONAL COLLEGE FOR TEACHING AND LEADERSHIP AGENCY,02/12/2015,Grants,Operations Directorate,Grants to educational establishments or not for profit organisations including other businesses,THE ARTHUR TERRY SCHOOL SCITT,4000223234,41175.00
Department for Education,DEPARTMENT FOR EDUCATION,16/12/2015,Professional Services Consultancy and Contingent Labour,Information Technology Group,Costs related to temporary workers,ALPINE RESOURCING LTD,4000224603,41066.26
Department for Education,DEPARTMENT FOR EDUCATION,17/12/2015,Grants,Children's Services and Departmental Strategy Safeguarding Group,Grants to local authorities / other establishments within aggregate external funding or aggregate exchequer grant,HAMPSHIRE C C,4000224821,41000.00
Department for Education,NATIONAL COLLEGE FOR TEACHING AND LEADERSHIP AGENCY,02/12/2015,Grants,Operations Directorate,Grants to educational establishments or not for profit organisations including other businesses,GLOUCESTERSHIRE ITE PARTNERSHIP,4000223180,40953.69
Department for Education,DEPARTMENT FOR EDUCATION,16/12/2015,Grants,Free School Group,Grants to educational establishments or not for profit organisations including other businesses,LONDON DESIGN & ENGINEERING UTC,4000224601,40925.00
Department for Education,NATIONAL COLLEGE FOR TEACHING AND LEADERSHIP AGENCY,02/12/2015,Grants,Operations Directorate,Grants to educational establishments or not for profit organisations including other businesses,LONDON SOUTH BANK UNIVERSITY,4000223117,40919.81
Department for Education,NATIONAL COLLEGE FOR TEACHING AND LEADERSHIP AGENCY,02/12/2015,Grants,Operations Directorate,Grants to educational establishments or not for profit organisations including other businesses,THE COLLEGE OF ST MARK & ST JOHN,4000223270,40819.22
Department for Education,NATIONAL COLLEGE FOR TEACHING AND LEADERSHIP AGENCY,18/12/2015,Grants,Delivery Directorate,Grants to educational establishments or not for profit organisations including other businesses,EDGE HILL UNIVERSITY,4000224985,40598.00
Department for Education,NATIONAL COLLEGE FOR TEACHING AND LEADERSHIP AGENCY,18/12/2015,Grants,Delivery Directorate,Grants to educational establishments or not for profit organisations including other businesses,SURREY TEACHING SCHOOLS NETWORK,4000224875,40542.00
Department for Education,DEPARTMENT FOR EDUCATION,07/12/2015,Grants,Adoption and Children in Care Division,Grants to local authorities / other establishments within aggregate external funding or aggregate exchequer grant,WIGAN MBC,4000223661,40500.00
Department for Education,DEPARTMENT FOR EDUCATION,21/12/2015,ICT,Systems and Accountability Group,ICT Services,SCISYS UK LTD,4000225000,40375.20
Department for Education,NATIONAL COLLEGE FOR TEACHING AND LEADERSHIP AGENCY,02/12/2015,Grants,Operations Directorate,Grants to educational establishments or not for profit organisations including other businesses,UNIVERSITY OF NORTHAMPTON,4000223182,40117.86
Department for Education,NATIONAL COLLEGE FOR TEACHING AND LEADERSHIP AGENCY,01/12/2015,Grants,Delivery Directorate,Grants to educational establishments or not for profit organisations including other businesses,CHIPPING VIEW PRIMARY ACADEMY,4000222861,40000.00
Department for Education,NATIONAL COLLEGE FOR TEACHING AND LEADERSHIP AGENCY,01/12/2015,Grants,Delivery Directorate,Grants to educational establishments or not for profit organisations including other businesses,PRESTOLEE PRIMARY SCHOOL,4000222862,40000.00
Department for Education,NATIONAL COLLEGE FOR TEACHING AND LEADERSHIP AGENCY,01/12/2015,Grants,Delivery Directorate,Grants to educational establishments or not for profit organisations including other businesses,TRANSFORM TEACHING SCHOOL ALLIANCE,4000222865,40000.00
Department for Education,NATIONAL COLLEGE FOR TEACHING AND LEADERSHIP AGENCY,01/12/2015,Grants,Delivery Directorate,Grants to educational establishments or not for profit organisations including other businesses,HARTSHOLME ACADEMY TS ACCOUNT,4000222881,40000.00
Department for Education,NATIONAL COLLEGE FOR TEACHING AND LEADERSHIP AGENCY,01/12/2015,Grants,Delivery Directorate,Grants to educational establishments or not for profit organisations including other businesses,GURU NANAK SIKH ACADEMY TS ACCOUNT,4000222882,40000.00
Department for Education,NATIONAL COLLEGE FOR TEACHING AND LEADERSHIP AGENCY,01/12/2015,Grants,Delivery Directorate,Grants to educational establishments or not for profit organisations including other businesses,HERONSGATE PRIMARY SCHOOL TS ACCOUNT,4000222894,40000.00
Department for Education,NATIONAL COLLEGE FOR TEACHING AND LEADERSHIP AGENCY,01/12/2015,Grants,Delivery Directorate,Grants to educational establishments or not for profit organisations including other businesses,SHIRELAND COLLEGIATE ACADEMY TS ACCOUNT,4000222896,40000.00
Department for Education,NATIONAL COLLEGE FOR TEACHING AND LEADERSHIP AGENCY,01/12/2015,Grants,Delivery Directorate,Grants to educational establishments or not for profit organisations including other businesses,LADYWOOD SCHOOL TS ACCOUNT,4000222912,40000.00
Department for Education,NATIONAL COLLEGE FOR TEACHING AND LEADERSHIP AGENCY,01/12/2015,Grants,Delivery Directorate,Grants to educational establishments or not for profit organisations including other businesses,ROYAL WOOTTON BASSETT ACADEMY,4000222918,40000.00
Department for Education,NATIONAL COLLEGE FOR TEACHING AND LEADERSHIP AGENCY,01/12/2015,Grants,Delivery Directorate,Grants to educational establishments or not for profit organisations including other businesses,PALLISTER PARK PRIMARY SCHOOL,4000222933,40000.00
Department for Education,NATIONAL COLLEGE FOR TEACHING AND LEADERSHIP AGENCY,01/12/2015,Grants,Delivery Directorate,Grants to educational establishments or not for profit organisations including other businesses,MOUNT STREET INFANT & NURSERY SCHOOL,4000222945,40000.00
Department for Education,NATIONAL COLLEGE FOR TEACHING AND LEADERSHIP AGENCY,01/12/2015,Grants,Delivery Directorate,Grants to educational establishments or not for profit organisations including other businesses,WICKERSLEY SCHOOL & SPORTS COLLEGE,4000222964,40000.00
Department for Education,NATIONAL COLLEGE FOR TEACHING AND LEADERSHIP AGENCY,01/12/2015,Grants,Delivery Directorate,Grants to educational establishments or not for profit organisations including other businesses,WEST MIDLANDS CONSORTIUM,4000222971,40000.00
Department for Education,DEPARTMENT FOR EDUCATION,03/12/2015,Grants,Free School Group,Grants to educational establishments or not for profit organisations including other businesses,HARRIS FEDERATION,4000223501,40000.00
Department for Education,NATIONAL COLLEGE FOR TEACHING AND LEADERSHIP AGENCY,08/12/2015,Grants,Delivery Directorate,Grants to educational establishments or not for profit organisations including other businesses,ASKWITH COMMUNITY PRIMARY SCHOOL,4000223716,40000.00
Department for Education,NATIONAL COLLEGE FOR TEACHING AND LEADERSHIP AGENCY,08/12/2015,Grants,Delivery Directorate,Grants to educational establishments or not for profit organisations including other businesses,FOREST WAY SCHOOL,4000223720,40000.00
Department for Education,NATIONAL COLLEGE FOR TEACHING AND LEADERSHIP AGENCY,08/12/2015,Grants,Delivery Directorate,Grants to educational establishments or not for profit organisations including other businesses,DANE COURT GRAMMAR SCHOOL CF ACCOUNT,4000223739,40000.00
Department for Education,NATIONAL COLLEGE FOR TEACHING AND LEADERSHIP AGENCY,08/12/2015,Grants,Delivery Directorate,Grants to educational establishments or not for profit organisations including other businesses,LYONS HALL PRIMARY SCHOOL TS,4000223762,40000.00
Department for Education,NATIONAL COLLEGE FOR TEACHING AND LEADERSHIP AGENCY,08/12/2015,Grants,Delivery Directorate,Grants to educational establishments or not for profit organisations including other businesses,ALEXANDRA PARK SCHOOL,4000223768,40000.00
Department for Education,NATIONAL COLLEGE FOR TEACHING AND LEADERSHIP AGENCY,08/12/2015,Grants,Delivery Directorate,Grants to educational establishments or not for profit organisations including other businesses,ELMRIDGE PRIMARY SCHOOL TS ACCOUNT,4000223775,40000.00
Department for Education,NATIONAL COLLEGE FOR TEACHING AND LEADERSHIP AGENCY,08/12/2015,Grants,Delivery Directorate,Grants to educational establishments or not for profit organisations including other businesses,CHALLNEY HIGH SCHOOL FOR BOYS,4000223776,40000.00
Department for Education,NATIONAL COLLEGE FOR TEACHING AND LEADERSHIP AGENCY,08/12/2015,Grants,Delivery Directorate,Grants to educational establishments or not for profit organisations including other businesses,ASHLEY DOWN PRIMARY SCHOOL TS ACCOUNT,4000223781,40000.00
Department for Education,NATIONAL COLLEGE FOR TEACHING AND LEADERSHIP AGENCY,08/12/2015,Grants,Delivery Directorate,Grants to educational establishments or not for profit organisations including other businesses,WOOLACOMBE SCHOOL TS ACCOUNT,4000223782,40000.00
Department for Education,NATIONAL COLLEGE FOR TEACHING AND LEADERSHIP AGENCY,08/12/2015,Grants,Delivery Directorate,Grants to educational establishments or not for profit organisations including other businesses,TIDEMILL ACADEMY TS ACCOUNT,4000223786,40000.00
Department for Education,NATIONAL COLLEGE FOR TEACHING AND LEADERSHIP AGENCY,08/12/2015,Grants,Delivery Directorate,Grants to educational establishments or not for profit organisations including other businesses,BOLDMERE JUNIOR SCHOOL TS ACCOUNT,4000223787,40000.00
Department for Education,NATIONAL COLLEGE FOR TEACHING AND LEADERSHIP AGENCY,08/12/2015,Grants,Delivery Directorate,Grants to educational establishments or not for profit organisations including other businesses,THE BRIDGE SCHOOL BCAP ACC,4000223790,40000.00
Department for Education,NATIONAL COLLEGE FOR TEACHING AND LEADERSHIP AGENCY,08/12/2015,Grants,Delivery Directorate,Grants to educational establishments or not for profit organisations including other businesses,BEAL MULTI ACADEMY TRUST,4000223822,40000.00
Department for Education,NATIONAL COLLEGE FOR TEACHING AND LEADERSHIP AGENCY,08/12/2015,Grants,Delivery Directorate,Grants to educational establishments or not for profit organisations including other businesses,SACRED HEART CATHOLIC HIGH SCHOOL,4000223826,40000.00
Department for Education,NATIONAL COLLEGE FOR TEACHING AND LEADERSHIP AGENCY,08/12/2015,Grants,Delivery Directorate,Grants to educational establishments or not for profit organisations including other businesses,REDCLIFFE CHILDRENS CENTRE,4000223831,40000.00
Department for Education,NATIONAL COLLEGE FOR TEACHING AND LEADERSHIP AGENCY,15/12/2015,Grants,Delivery Directorate,Grants to educational establishments or not for profit organisations including other businesses,SKIPTON GIRLS HIGH SCHOOL TS ACCOUNT,4000224347,40000.00
Department for Education,NATIONAL COLLEGE FOR TEACHING AND LEADERSHIP AGENCY,15/12/2015,Grants,Delivery Directorate,Grants to educational establishments or not for profit organisations including other businesses,NINESTILES ACADEMY TRUST,4000224359,40000.00
Department for Education,NATIONAL COLLEGE FOR TEACHING AND LEADERSHIP AGENCY,15/12/2015,Grants,Delivery Directorate,Grants to educational establishments or not for profit organisations including other businesses,GRAFTON PRIMARY SCHOOL TS ACCOUNT,4000224512,40000.00
Department for Education,DEPARTMENT FOR EDUCATION,17/12/2015,Grants,Academies Delivery Group,Capital grants paid to educational establishments,PARALLEL LEARNING TRUST,4000224865,40000.00
Department for Education,NATIONAL COLLEGE FOR TEACHING AND LEADERSHIP AGENCY,22/12/2015,Grants,Delivery Directorate,Grants to educational establishments or not for profit organisations including other businesses,MILLAIS SCHOOL,4000225093,40000.00
Department for Education,NATIONAL COLLEGE FOR TEACHING AND LEADERSHIP AGENCY,22/12/2015,Grants,Delivery Directorate,Grants to educational establishments or not for profit organisations including other businesses,AFFINITY TEACHING SCHOOL,4000225119,40000.00
Department for Education,NATIONAL COLLEGE FOR TEACHING AND LEADERSHIP AGENCY,22/12/2015,Grants,Delivery Directorate,Grants to educational establishments or not for profit organisations including other businesses,HAMPDEN WAY NURSERY SCHOOL,4000225183,40000.00
Department for Education,NATIONAL COLLEGE FOR TEACHING AND LEADERSHIP AGENCY,22/12/2015,Grants,Delivery Directorate,Grants to educational establishments or not for profit organisations including other businesses,SHERINGHAM COMMUNITY PRIMARY SCHOOL,4000225218,40000.00
Department for Education,NATIONAL COLLEGE FOR TEACHING AND LEADERSHIP AGENCY,22/12/2015,Grants,Delivery Directorate,Grants to educational establishments or not for profit organisations including other businesses,FOSSE WAY SCHOOL,4000225259,40000.00
Department for Education,NATIONAL COLLEGE FOR TEACHING AND LEADERSHIP AGENCY,22/12/2015,Grants,Delivery Directorate,Grants to educational establishments or not for profit organisations including other businesses,ST THOMAS MORE CATHOLIC SCHOOL,4000225266,40000.00
Department for Education,NATIONAL COLLEGE FOR TEACHING AND LEADERSHIP AGENCY,22/12/2015,Grants,Delivery Directorate,Grants to educational establishments or not for profit organisations including other businesses,BISHOP LUFFA COFE SCHOOL,4000225267,40000.00
Department for Education,DEPARTMENT FOR EDUCATION,03/12/2015,Programme costs,Systems and Accountability Group,Funding to deliver policies (excluding consultancy) paid to third parties via a service delivery contract,RM EDUCATION PLC,4000223508,39969.17
Department for Education,DEPARTMENT FOR EDUCATION,15/12/2015,Professional Services Consultancy and Contingent Labour,Children's Services and Departmental Strategy Safeguarding Group,"Fees / expenses of professionals such as auditors, accountants, lawyers, etc. engaged to provide advice or opinion on how to affect something",E & E SIMPSON LTD,4000224425,39770.94
Department for Education,NATIONAL COLLEGE FOR TEACHING AND LEADERSHIP AGENCY,02/12/2015,Grants,Operations Directorate,Grants to educational establishments or not for profit organisations including other businesses,SURREY COUNTY COUNCIL,4000223276,39494.40
Department for Education,DEPARTMENT FOR EDUCATION,30/12/2015,Grants,Adoption and Children in Care Division,Grants to educational establishments or not for profit organisations including other businesses,THE SHARE FOUNDATION 3RD PARTY TRUST,4000225609,39200.00
Department for Education,DEPARTMENT FOR EDUCATION,14/12/2015,Professional Services Consultancy and Contingent Labour,Information Technology Group,Costs related to temporary workers,RUSSAM GMS LTD,4000224288,39060.00
Department for Education,DEPARTMENT FOR EDUCATION,11/12/2015,ICT,Information Technology Group,ICT Services - pen testing and user research services,PROLOG,4000224223,38825.11
Department for Education,NATIONAL COLLEGE FOR TEACHING AND LEADERSHIP AGENCY,18/12/2015,Grants,Delivery Directorate,Grants to educational establishments or not for profit organisations including other businesses,ST BEDE'S CATHOLIC SCHOOL & SIXTH FORM CENTRE,4000224900,38712.00
Department for Education,DEPARTMENT FOR EDUCATION,22/12/2015,Programme costs,Adoption and Children in Care Division,Funding to deliver policies (excluding consultancy) paid to third parties via a service delivery contract,ATKINS LTD,4000225193,38525.76
Department for Education,NATIONAL COLLEGE FOR TEACHING AND LEADERSHIP AGENCY,16/12/2015,Programme costs,Delivery Directorate,Funding to deliver policies (excluding consultancy) paid to third parties via a service delivery contract,FUTURE LEADERS CHARITABLE TRUST SCHOLARSHIPS,4000224703,38284.00
Department for Education,DEPARTMENT FOR EDUCATION,03/12/2015,Grants,Free School Group,Grants to educational establishments or not for profit organisations including other businesses,EALING FIELDS ACADEMY TRUST,4000223516,38000.00
Department for Education,DEPARTMENT FOR EDUCATION,07/12/2015,Professional Services Consultancy and Contingent Labour,Information Technology Group,Costs related to temporary workers,RUSSAM GMS LTD,4000223687,37976.16
Department for Education,DEPARTMENT FOR EDUCATION,18/12/2015,ICT,Information Technology Group,ICT Software,LOCKHEED MARTIN,4000224903,37690.39
Department for Education,DEPARTMENT FOR EDUCATION,16/12/2015,Grants,Children's Services and Departmental Strategy Safeguarding Group,Grants to local authorities outside aggregate external funding or aggregate exchequer grant,OXFORDSHIRE COUNTY COUNCIL,4000224528,37650.00
Department for Education,NATIONAL COLLEGE FOR TEACHING AND LEADERSHIP AGENCY,18/12/2015,Grants,Delivery Directorate,Grants to educational establishments or not for profit organisations including other businesses,BEST PRACTISE NETWORK LTD SHOLARSHIPS,4000224956,37528.00
Department for Education,DEPARTMENT FOR EDUCATION,23/12/2015,Professional Services Other,Strategic Analysis and Research Group,Research and evaluation activities,RESEARCH IN PRACTICE,4000225299,37512.50
Department for Education,DEPARTMENT FOR EDUCATION,11/12/2015,Communications,Information Technology Group,Digital media and web production,PROLOG,4000224223,37344.54
Department for Education,NATIONAL COLLEGE FOR TEACHING AND LEADERSHIP AGENCY,11/12/2015,Communications,Operations Directorate,"Publicity, advertising, media advertising campaigns (excluding recruitment adverts)",CARAT,4000224126,37221.12
Department for Education,DEPARTMENT FOR EDUCATION,17/12/2015,Grants,Children's Services and Departmental Strategy Safeguarding Group,Grants to local authorities / other establishments within aggregate external funding or aggregate exchequer grant,DERBYSHIRE COUNTY COUNCIL,4000224829,37000.00
Department for Education,NATIONAL COLLEGE FOR TEACHING AND LEADERSHIP AGENCY,18/12/2015,Grants,Delivery Directorate,Grants to educational establishments or not for profit organisations including other businesses,TAUHEEDUL ISLAM BOYS HIGH SCHOOL,4000224960,36807.00
Department for Education,NATIONAL COLLEGE FOR TEACHING AND LEADERSHIP AGENCY,01/12/2015,Grants,Delivery Directorate,Grants to educational establishments or not for profit organisations including other businesses,ST JOHN VIANNEY SCHOOL,4000222994,36667.00
Department for Education,NATIONAL COLLEGE FOR TEACHING AND LEADERSHIP AGENCY,08/12/2015,Grants,Delivery Directorate,Grants to educational establishments or not for profit organisations including other businesses,CASTLE HILL SCHOOL,4000223707,36666.00
Department for Education,NATIONAL COLLEGE FOR TEACHING AND LEADERSHIP AGENCY,08/12/2015,Grants,Delivery Directorate,Grants to educational establishments or not for profit organisations including other businesses,ST JOHN VIANNEY SCHOOL,4000223766,36666.00
Department for Education,NATIONAL COLLEGE FOR TEACHING AND LEADERSHIP AGENCY,08/12/2015,Grants,Delivery Directorate,Grants to educational establishments or not for profit organisations including other businesses,SIR JOSEPH WILLIAMSONS MATHEMATICAL SCHOOL,4000223771,36666.00
Department for Education,NATIONAL COLLEGE FOR TEACHING AND LEADERSHIP AGENCY,08/12/2015,Grants,Delivery Directorate,Grants to educational establishments or not for profit organisations including other businesses,COTGRAVE CANDLEBY LANE SCHOOL,4000223774,36666.00
Department for Education,NATIONAL COLLEGE FOR TEACHING AND LEADERSHIP AGENCY,08/12/2015,Grants,Delivery Directorate,Grants to educational establishments or not for profit organisations including other businesses,TRURO & PENWITH COLLEGE TS ACCOUNT,4000223783,36666.00
Department for Education,NATIONAL COLLEGE FOR TEACHING AND LEADERSHIP AGENCY,08/12/2015,Grants,Delivery Directorate,Grants to educational establishments or not for profit organisations including other businesses,BELGRAVE ST BARTHOLOMEWS ACADEMY TS ACCOUNT,4000223796,36666.00
Department for Education,NATIONAL COLLEGE FOR TEACHING AND LEADERSHIP AGENCY,08/12/2015,Grants,Delivery Directorate,Grants to educational establishments or not for profit organisations including other businesses,THE COMPTON SCHOOL TS ACC,4000223800,36666.00
Department for Education,NATIONAL COLLEGE FOR TEACHING AND LEADERSHIP AGENCY,08/12/2015,Grants,Delivery Directorate,Grants to educational establishments or not for profit organisations including other businesses,CHORLTON PARK PRIMARY SCHOOL,4000223839,36666.00
Department for Education,NATIONAL COLLEGE FOR TEACHING AND LEADERSHIP AGENCY,08/12/2015,Grants,Delivery Directorate,Grants to educational establishments or not for profit organisations including other businesses,HISTON & IMPRINGTON JUNIOR SCHOOL,4000223847,36666.00
Department for Education,NATIONAL COLLEGE FOR TEACHING AND LEADERSHIP AGENCY,02/12/2015,Grants,Delivery Directorate,Grants to educational establishments or not for profit organisations including other businesses,UNIVERSITY OF BEDFORDSHIRE,4000223342,36620.00
Department for Education,NATIONAL COLLEGE FOR TEACHING AND LEADERSHIP AGENCY,18/12/2015,Grants,Delivery Directorate,Grants to educational establishments or not for profit organisations including other businesses,EASTERN LEADERSHIP CENTRE,4000224938,36542.00
Department for Education,NATIONAL COLLEGE FOR TEACHING AND LEADERSHIP AGENCY,02/12/2015,Grants,Operations Directorate,Grants to educational establishments or not for profit organisations including other businesses,HAVERING BEACON PARTNERSHIP,4000223162,36540.09
Department for Education,DEPARTMENT FOR EDUCATION,24/12/2015,Professional Services Other,Adoption and Children in Care Division,"Fees / expenses of professionals, for example to implement advice or changes",CAPGEMINI UK PLC,4000225428,36249.02
Department for Education,NATIONAL COLLEGE FOR TEACHING AND LEADERSHIP AGENCY,08/12/2015,Grants,Delivery Directorate,Grants to educational establishments or not for profit organisations including other businesses,BONNER PRIMARY SCHOOL,4000223773,36000.00
Department for Education,NATIONAL COLLEGE FOR TEACHING AND LEADERSHIP AGENCY,14/12/2015,Grants,Delivery Directorate,Grants to educational establishments or not for profit organisations including other businesses,BISHOP CHALLONER CATHOLIC COLLEGE,4000224251,36000.00
Department for Education,DEPARTMENT FOR EDUCATION,17/12/2015,Grants,Children's Services and Departmental Strategy Safeguarding Group,Grants to local authorities / other establishments within aggregate external funding or aggregate exchequer grant,HERTFORDSHIRE,4000224733,36000.00
Department for Education,DEPARTMENT FOR EDUCATION,17/12/2015,Grants,Children's Services and Departmental Strategy Safeguarding Group,Grants to local authorities / other establishments within aggregate external funding or aggregate exchequer grant,NORTHAMPTONSHIRE COUNTY COUNCIL,4000224740,36000.00
Department for Education,NATIONAL COLLEGE FOR TEACHING AND LEADERSHIP AGENCY,02/12/2015,Grants,Operations Directorate,Grants to educational establishments or not for profit organisations including other businesses,SOMERSET COUNTY COUNCIL,4000223082,35991.18
Department for Education,DEPARTMENT FOR EDUCATION,18/12/2015,Office Solutions,Information Technology Group,Office machines,VODAFONE CORPORATE,4000224959,35969.99
Department for Education,DEPARTMENT FOR EDUCATION,09/12/2015,Professional Services Consultancy and Contingent Labour,Information Technology Group,Costs related to temporary workers,LOCKHEED MARTIN,4000223983,35838.14
Department for Education,DEPARTMENT FOR EDUCATION,09/12/2015,Grants,"Childcare, Special Educational Needs and Children's Strategy Group",Grants to educational establishments or not for profit organisations including other businesses,NATIONAL DAY NURSERIES ASSOCIATION,4000224015,35695.09
Department for Education,NATIONAL COLLEGE FOR TEACHING AND LEADERSHIP AGENCY,18/12/2015,Grants,Delivery Directorate,Grants to educational establishments or not for profit organisations including other businesses,JOHN CABOT FEDERATION,4000224969,35585.00
Department for Education,DEPARTMENT FOR EDUCATION,24/12/2015,Professional Services Other,System Reform Group,"Fees / expenses of professionals, for example to implement advice or changes",WORKLIFE SUPPORT LTD,4000225478,35400.00
Department for Education,NATIONAL COLLEGE FOR TEACHING AND LEADERSHIP AGENCY,18/12/2015,Grants,Delivery Directorate,Grants to educational establishments or not for profit organisations including other businesses,WEST HERTFORDSHIRE TEACHING SCHOOLS PARTNERSHIP,4000224872,35360.00
Department for Education,DEPARTMENT FOR EDUCATION,30/12/2015,Grants,Adoption and Children in Care Division,Grants to educational establishments or not for profit organisations including other businesses,CORAM,4000225618,35123.68
Department for Education,NATIONAL COLLEGE FOR TEACHING AND LEADERSHIP AGENCY,01/12/2015,Grants,Delivery Directorate,"Grants paid to organisations including agencies, arms length bodies and educational establishments",ST JOSEPHS CATHOLIC PRIMARY SCHOOL,4000222975,35000.00
Department for Education,DEPARTMENT FOR EDUCATION,16/12/2015,Grants,Children's Services and Departmental Strategy Safeguarding Group,Grants to local authorities outside aggregate external funding or aggregate exchequer grant,WILTSHIRE COUNCIL,4000224554,35000.00
Department for Education,DEPARTMENT FOR EDUCATION,16/12/2015,Grants,Children's Services and Departmental Strategy Safeguarding Group,Grants to local authorities outside aggregate external funding or aggregate exchequer grant,WOLVERHAMPTON CITY COUNCIL,4000224557,35000.00
Department for Education,DEPARTMENT FOR EDUCATION,16/12/2015,Grants,Children's Services and Departmental Strategy Safeguarding Group,Grants to local authorities outside aggregate external funding or aggregate exchequer grant,SOMERSET COUNTY COUNCIL,4000224565,35000.00
Department for Education,DEPARTMENT FOR EDUCATION,16/12/2015,Grants,Children's Services and Departmental Strategy Safeguarding Group,Grants to local authorities outside aggregate external funding or aggregate exchequer grant,NORFOLK COUNTY COUNCIL,4000224566,35000.00
Department for Education,DEPARTMENT FOR EDUCATION,16/12/2015,Grants,Children's Services and Departmental Strategy Safeguarding Group,Grants to local authorities outside aggregate external funding or aggregate exchequer grant,SALFORD CITY COUNCIL,4000224579,35000.00
Department for Education,DEPARTMENT FOR EDUCATION,17/12/2015,Grants,Children's Services and Departmental Strategy Safeguarding Group,Grants to local authorities / other establishments within aggregate external funding or aggregate exchequer grant,SURREY COUNTY COUNCIL,4000224766,35000.00
Department for Education,NATIONAL COLLEGE FOR TEACHING AND LEADERSHIP AGENCY,18/12/2015,Grants,Delivery Directorate,Grants to educational establishments or not for profit organisations including other businesses,LEADING SCHOOLS SOUTH WEST,4000224913,34644.00
Department for Education,DEPARTMENT FOR EDUCATION,17/12/2015,Grants,Children's Services and Departmental Strategy Safeguarding Group,Grants to local authorities / other establishments within aggregate external funding or aggregate exchequer grant,WEST SUSSEX COUNTY COUNCIL,4000224774,34000.00
Department for Education,NATIONAL COLLEGE FOR TEACHING AND LEADERSHIP AGENCY,02/12/2015,Grants,Operations Directorate,Grants to educational establishments or not for profit organisations including other businesses,SOUTHFIELDS ACADEMY,4000223320,33480.00
Department for Education,DEPARTMENT FOR EDUCATION,16/12/2015,Grants,Children's Services and Departmental Strategy Safeguarding Group,Grants to local authorities outside aggregate external funding or aggregate exchequer grant,THE ROYAL BOROUGH OF KENSINGTON & CHELSEA COUNCIL,4000224567,33124.00
Department for Education,DEPARTMENT FOR EDUCATION,16/12/2015,Grants,Children's Services and Departmental Strategy Safeguarding Group,Grants to local authorities outside aggregate external funding or aggregate exchequer grant,LONDON BOROUGH OF HAMMERSMITH & FULHAM COUNCIL,4000224569,33124.00
Department for Education,DEPARTMENT FOR EDUCATION,16/12/2015,Grants,Children's Services and Departmental Strategy Safeguarding Group,Grants to local authorities outside aggregate external funding or aggregate exchequer grant,CITY OF WESTMINSTER,4000224574,33124.00
Department for Education,DEPARTMENT FOR EDUCATION,09/12/2015,Professional Services Other,Children's Services and Departmental Strategy Safeguarding Group,Research and evaluation activities,CHILD & FAMILY TRAINING LTD,4000223918,33060.00
Department for Education,NATIONAL COLLEGE FOR TEACHING AND LEADERSHIP AGENCY,18/12/2015,Grants,Delivery Directorate,Grants to educational establishments or not for profit organisations including other businesses,LEADING SCHOOLS SOUTH WEST,4000224913,33038.00
Department for Education,NATIONAL COLLEGE FOR TEACHING AND LEADERSHIP AGENCY,02/12/2015,Grants,Operations Directorate,Grants to educational establishments or not for profit organisations including other businesses,CANTERBURY CHRIST CHURCH UNIVERSITY,4000223253,33000.00
Department for Education,NATIONAL COLLEGE FOR TEACHING AND LEADERSHIP AGENCY,18/12/2015,Grants,Delivery Directorate,Grants to educational establishments or not for profit organisations including other businesses,FUTURE LEADERS CHARITABLE TRUST SCHOLARSHIPS,4000224957,32798.00
Department for Education,NATIONAL COLLEGE FOR TEACHING AND LEADERSHIP AGENCY,29/12/2015,Grants,Operations Directorate,Grants to educational establishments or not for profit organisations including other businesses,INSTITUTE OF MATHEMATICS & ITS APPLICATIONS,4000225573,32658.41
Department for Education,NATIONAL COLLEGE FOR TEACHING AND LEADERSHIP AGENCY,02/12/2015,Grants,Delivery Directorate,Grants to educational establishments or not for profit organisations including other businesses,BATH SPA UNIVERSITY,4000223265,32580.00
Department for Education,NATIONAL COLLEGE FOR TEACHING AND LEADERSHIP AGENCY,02/12/2015,Grants,Operations Directorate,Grants to educational establishments or not for profit organisations including other businesses,DONCASTER MBC,4000223279,32461.11
Department for Education,NATIONAL COLLEGE FOR TEACHING AND LEADERSHIP AGENCY,02/12/2015,Grants,Operations Directorate,Grants to educational establishments or not for profit organisations including other businesses,SOUTHEND HIGH SCHOOL FOR GIRLS,4000223248,32409.18
Department for Education,DEPARTMENT FOR EDUCATION,07/12/2015,Professional Services Consultancy and Contingent Labour,Information Technology Group,Costs related to temporary workers,METHODS CONSULTING LTD,4000223646,32400.00
Department for Education,NATIONAL COLLEGE FOR TEACHING AND LEADERSHIP AGENCY,02/12/2015,Grants,Operations Directorate,Grants to educational establishments or not for profit organisations including other businesses,MINSTHORPE COMMUNITY COLLEGE,4000223102,32310.00
Department for Education,DEPARTMENT FOR EDUCATION,24/12/2015,Grants,Children's Services and Departmental Strategy Safeguarding Group,Grants to educational establishments or not for profit organisations including other businesses,SAFE FAMILIES FOR CHILDREN,4000225504,32233.00
Department for Education,NATIONAL COLLEGE FOR TEACHING AND LEADERSHIP AGENCY,02/12/2015,Grants,Operations Directorate,Grants to educational establishments or not for profit organisations including other businesses,LIVERPOOL JOHN MOORES UNIVERSITY,4000223345,32051.07
Department for Education,DEPARTMENT FOR EDUCATION,11/12/2015,Professional Services Other,Children's Services and Departmental Strategy Safeguarding Group,Legal services provided externally (excluding Treasury Solicitor) ,BURGES SALMON COMPANY LTD,4000224118,32000.00
Department for Education,NATIONAL COLLEGE FOR TEACHING AND LEADERSHIP AGENCY,18/12/2015,Grants,Delivery Directorate,Grants to educational establishments or not for profit organisations including other businesses,EDGE HILL UNIVERSITY,4000224985,31891.00
Department for Education,DEPARTMENT FOR EDUCATION,24/12/2015,Grants,"Childcare, Special Educational Needs and Children's Strategy Group",Grants to educational establishments or not for profit organisations including other businesses,INSTITUTE OF WELLBEING LTD,4000225442,31802.08
Department for Education,DEPARTMENT FOR EDUCATION,11/12/2015,Programme costs,Assessment and Curriculum and General Qualifications Group,Funding to deliver policies (excluding consultancy) paid to third parties via a service delivery contract,THE POETRY ARCHIVE,4000224168,31800.00
Department for Education,NATIONAL COLLEGE FOR TEACHING AND LEADERSHIP AGENCY,23/12/2015,Programme costs,Research and Development Directorate,Funding to deliver policies (excluding consultancy) paid to third parties via a service delivery contract,CFBT EDUCATION TRUST,4000225282,31704.20
Department for Education,NATIONAL COLLEGE FOR TEACHING AND LEADERSHIP AGENCY,11/12/2015,Programme costs,Research and Development Directorate,Funding to deliver policies (excluding consultancy) paid to third parties via a service delivery contract,CFBT EDUCATION TRUST,4000224152,31700.00
Department for Education,NATIONAL COLLEGE FOR TEACHING AND LEADERSHIP AGENCY,02/12/2015,Grants,Operations Directorate,Grants to educational establishments or not for profit organisations including other businesses,LINCOLNSHIRE TEACHING SCHOOL ALLIANCE,4000223283,31698.00
Department for Education,NATIONAL COLLEGE FOR TEACHING AND LEADERSHIP AGENCY,02/12/2015,Grants,Operations Directorate,Grants to educational establishments or not for profit organisations including other businesses,PIONEERS PARTNERSHIP SCITT,4000223092,31680.00
Department for Education,DEPARTMENT FOR EDUCATION,16/12/2015,Grants,Children's Services and Departmental Strategy Safeguarding Group,Grants to local authorities outside aggregate external funding or aggregate exchequer grant,CALDERDALE MBC,4000224547,31566.00
Department for Education,NATIONAL COLLEGE FOR TEACHING AND LEADERSHIP AGENCY,02/12/2015,Grants,Operations Directorate,Grants to educational establishments or not for profit organisations including other businesses,NOTRE DAME HIGH SCHOOL,4000223318,31273.65
Department for Education,NATIONAL COLLEGE FOR TEACHING AND LEADERSHIP AGENCY,02/12/2015,Grants,Operations Directorate,Grants to educational establishments or not for profit organisations including other businesses,PENINSULA TEACHER TRAINING CORNWALL SCITT,4000223331,31244.94
Department for Education,NATIONAL COLLEGE FOR TEACHING AND LEADERSHIP AGENCY,02/12/2015,Grants,Operations Directorate,Grants to educational establishments or not for profit organisations including other businesses,MANCHESTER COMMUNICATION ACADEMY,4000223059,30960.00
Department for Education,DEPARTMENT FOR EDUCATION,16/12/2015,Professional Services Consultancy and Contingent Labour,Information Technology Group,Costs related to temporary workers,METHODS CONSULTING LTD,4000224693,30960.00
Department for Education,NATIONAL COLLEGE FOR TEACHING AND LEADERSHIP AGENCY,22/12/2015,Grants,Delivery Directorate,Grants to educational establishments or not for profit organisations including other businesses,CLAPTON GIRLS ACADEMY,4000225212,30834.00
Department for Education,STANDARDS AND TESTING AGENCY,17/12/2015,Professional Services Other,Test Development Division,"Fees / expenses of professionals, for example to implement advice or changes",AUSTRALIAN COUNCIL FOR EDUCATION RESEARCH,3000360,30773.00
Department for Education,NATIONAL COLLEGE FOR TEACHING AND LEADERSHIP AGENCY,02/12/2015,Grants,Operations Directorate,Grants to educational establishments or not for profit organisations including other businesses,LEICESTER & LEICESTERSHIRE SCI,4000223166,30690.00
Department for Education,NATIONAL COLLEGE FOR TEACHING AND LEADERSHIP AGENCY,02/12/2015,Grants,Operations Directorate,Grants to educational establishments or not for profit organisations including other businesses,THE ROYAL LATIN SCHOOL,4000223181,30627.18
Department for Education,NATIONAL COLLEGE FOR TEACHING AND LEADERSHIP AGENCY,02/12/2015,Communications,Operations Directorate,"Publicity, advertising, media advertising campaigns (excluding recruitment adverts)",CARAT,4000223260,30592.77
Department for Education,NATIONAL COLLEGE FOR TEACHING AND LEADERSHIP AGENCY,04/12/2015,Grants,Operations Directorate,Grants to educational establishments or not for profit organisations including other businesses,INSTITUTE OF MATHEMATICS & ITS APPLICATIONS,4000223549,30128.09
Department for Education,DEPARTMENT FOR EDUCATION,03/12/2015,Grants,Free School Group,Grants to educational establishments or not for profit organisations including other businesses,SCARBOROUGH UNIVERSITY TECHNICAL COLLEGE,4000223395,30000.00
Department for Education,DEPARTMENT FOR EDUCATION,03/12/2015,Grants,Free School Group,Grants to educational establishments or not for profit organisations including other businesses,LEEDS UTC LTD,4000223396,30000.00
Department for Education,DEPARTMENT FOR EDUCATION,03/12/2015,Grants,Free School Group,Grants to educational establishments or not for profit organisations including other businesses,TWYFORD CE ACADEMIES TRUST,4000223399,30000.00
Department for Education,DEPARTMENT FOR EDUCATION,03/12/2015,Grants,Free School Group,Grants to educational establishments or not for profit organisations including other businesses,WMG ACADEMY FOR YOUNG ENGINEERS SOLIHULL,4000223404,30000.00
Department for Education,DEPARTMENT FOR EDUCATION,03/12/2015,Grants,Free School Group,Grants to educational establishments or not for profit organisations including other businesses,WOOTTON PARK SCHOOL,4000223406,30000.00
Department for Education,DEPARTMENT FOR EDUCATION,03/12/2015,Grants,Free School Group,Grants to educational establishments or not for profit organisations including other businesses,THE GLOBAL ACADEMY UTC,4000223417,30000.00
Department for Education,DEPARTMENT FOR EDUCATION,03/12/2015,Grants,Free School Group,Grants to educational establishments or not for profit organisations including other businesses,THE ATAM ACADEMY,4000223420,30000.00
Department for Education,DEPARTMENT FOR EDUCATION,03/12/2015,Grants,Free School Group,Grants to educational establishments or not for profit organisations including other businesses,THE SASH 2 SCHOOL,4000223427,30000.00
Department for Education,DEPARTMENT FOR EDUCATION,03/12/2015,Grants,Free School Group,Grants to educational establishments or not for profit organisations including other businesses,ONE DEGREE ACADEMY,4000223428,30000.00
Department for Education,DEPARTMENT FOR EDUCATION,03/12/2015,Grants,Free School Group,Grants to educational establishments or not for profit organisations including other businesses,SOUTH BANK ENGINEERING UTC TRUST,4000223430,30000.00
Department for Education,DEPARTMENT FOR EDUCATION,03/12/2015,Grants,Free School Group,Grants to educational establishments or not for profit organisations including other businesses,South Durham UTC,4000223440,30000.00
Department for Education,DEPARTMENT FOR EDUCATION,03/12/2015,Grants,Free School Group,Grants to educational establishments or not for profit organisations including other businesses,BEDFORD TECHNICAL ACADEMY,4000223441,30000.00
Department for Education,DEPARTMENT FOR EDUCATION,03/12/2015,Grants,Free School Group,Grants to educational establishments or not for profit organisations including other businesses,UTC CREWE,4000223442,30000.00
Department for Education,DEPARTMENT FOR EDUCATION,03/12/2015,Grants,Free School Group,Grants to educational establishments or not for profit organisations including other businesses,DON VALLEY UTC ACADEMY TRUST,4000223451,30000.00
Department for Education,DEPARTMENT FOR EDUCATION,03/12/2015,Grants,Free School Group,Grants to educational establishments or not for profit organisations including other businesses,EDUCATION FOR THE 21ST CENTURY,4000223513,30000.00
Department for Education,DEPARTMENT FOR EDUCATION,03/12/2015,Grants,Free School Group,Grants to educational establishments or not for profit organisations including other businesses,BICESTER TECHNOLOGY STUDIO TRUST,4000223523,30000.00
Department for Education,NATIONAL COLLEGE FOR TEACHING AND LEADERSHIP AGENCY,08/12/2015,Grants,Delivery Directorate,Grants to educational establishments or not for profit organisations including other businesses,BARR BEACON LANGUAGE COLLEGE,4000223734,30000.00
Department for Education,NATIONAL COLLEGE FOR TEACHING AND LEADERSHIP AGENCY,22/12/2015,Grants,Delivery Directorate,"Grants paid to organisations including agencies, arms length bodies and educational establishments",ALLENBOURN MIDDLE SCHOOL,4000225152,30000.00
Department for Education,NATIONAL COLLEGE FOR TEACHING AND LEADERSHIP AGENCY,22/12/2015,Grants,Delivery Directorate,"Grants paid to organisations including agencies, arms length bodies and educational establishments",THE PENNINE TEACHING SCHOOL ALLIANCE,4000225210,30000.00
Department for Education,NATIONAL COLLEGE FOR TEACHING AND LEADERSHIP AGENCY,22/12/2015,Grants,Delivery Directorate,Grants to educational establishments or not for profit organisations including other businesses,IVYBRIDGE COMMUNITY COLLEGE TS ACCOUNT,4000225232,30000.00
Department for Education,DEPARTMENT FOR EDUCATION,09/12/2015,Grants,Adoption and Children in Care Division,Grants to local authorities / other establishments within aggregate external funding or aggregate exchequer grant,WAKEFIELD MDC,4000223864,29861.00
Department for Education,NATIONAL COLLEGE FOR TEACHING AND LEADERSHIP AGENCY,18/12/2015,Grants,Delivery Directorate,Grants to educational establishments or not for profit organisations including other businesses,EASTERN LEADERSHIP CENTRE,4000224938,29742.00
Department for Education,DEPARTMENT FOR EDUCATION,24/12/2015,Professional Services Consultancy and Contingent Labour,Information Technology Group,Costs related to temporary workers,CAPITA BUSINESS SERVICES LTD,4000225491,29711.40
Department for Education,DEPARTMENT FOR EDUCATION,11/12/2015,ICT,Information Technology Group,ICT Services,CERTES COMPUTING LTD,4000224230,29705.67
Department for Education,NATIONAL COLLEGE FOR TEACHING AND LEADERSHIP AGENCY,18/12/2015,Grants,Delivery Directorate,Grants to educational establishments or not for profit organisations including other businesses,WEST HERTFORDSHIRE TEACHING SCHOOLS PARTNERSHIP,4000224872,29193.00
Department for Education,NATIONAL COLLEGE FOR TEACHING AND LEADERSHIP AGENCY,02/12/2015,Grants,Operations Directorate,Grants to educational establishments or not for profit organisations including other businesses,HARRIS CITY ACADEMY,4000223098,29137.68
Department for Education,NATIONAL COLLEGE FOR TEACHING AND LEADERSHIP AGENCY,02/12/2015,Grants,Delivery Directorate,Grants to educational establishments or not for profit organisations including other businesses,UNIVERSITY OF GLOUCESTERSHIRE,4000223321,28980.00
Department for Education,NATIONAL COLLEGE FOR TEACHING AND LEADERSHIP AGENCY,02/12/2015,Grants,Operations Directorate,Grants to educational establishments or not for profit organisations including other businesses,NEWCASTLE COLLEGE GROUP,4000223125,28930.00
Department for Education,DEPARTMENT FOR EDUCATION,02/12/2015,Professional Services Consultancy and Contingent Labour,Information Technology Group,Costs related to temporary workers,PRO CEDURE LTD,4000223284,28800.00
Department for Education,NATIONAL COLLEGE FOR TEACHING AND LEADERSHIP AGENCY,03/12/2015,Grants,Operations Directorate,Grants to educational establishments or not for profit organisations including other businesses,UNIVERSITY OF WOLVERHAMPTON,4000223424,28800.00
Department for Education,DEPARTMENT FOR EDUCATION,01/12/2015,Professional Services Consultancy and Contingent Labour,Information Technology Group,Costs related to temporary workers,RUSSAM GMS LTD,4000222954,28620.00
Department for Education,DEPARTMENT FOR EDUCATION,22/12/2015,Professional Services Consultancy and Contingent Labour,Public Communications Group,Costs related to temporary workers,BROOK STREET (UK) LTD,4000225101,28593.47
Department for Education,DEPARTMENT FOR EDUCATION,02/12/2015,Professional Services Consultancy and Contingent Labour,Information Technology Group,Costs related to temporary workers,CADENCE PARTNERSHIP LLP,4000223373,28560.00
Department for Education,NATIONAL COLLEGE FOR TEACHING AND LEADERSHIP AGENCY,02/12/2015,Grants,Operations Directorate,Grants to educational establishments or not for profit organisations including other businesses,NORWICH CITY COLLEGE,4000223046,28305.00
Department for Education,DEPARTMENT FOR EDUCATION,16/12/2015,Grants,Children's Services and Departmental Strategy Safeguarding Group,Grants to local authorities outside aggregate external funding or aggregate exchequer grant,LONDON BOROUGH OF TOWER HAMLETS COUNCIL,4000224535,28207.00
Department for Education,DEPARTMENT FOR EDUCATION,03/12/2015,Grants,Free School Group,Grants to educational establishments or not for profit organisations including other businesses,HARROW ACADEMIES TRUST,4000223408,28125.00
Department for Education,NATIONAL COLLEGE FOR TEACHING AND LEADERSHIP AGENCY,22/12/2015,Grants,Delivery Directorate,Grants to educational establishments or not for profit organisations including other businesses,TRURO & PENWITH COLLEGE TS ACCOUNT,4000225123,28100.00
Department for Education,NATIONAL COLLEGE FOR TEACHING AND LEADERSHIP AGENCY,18/12/2015,Grants,Delivery Directorate,Grants to educational establishments or not for profit organisations including other businesses,TAUHEEDUL ISLAM BOYS HIGH SCHOOL,4000224960,27844.00
Department for Education,NATIONAL COLLEGE FOR TEACHING AND LEADERSHIP AGENCY,18/12/2015,Grants,Delivery Directorate,Grants to educational establishments or not for profit organisations including other businesses,ANGLIA RUSKIN UNIVERSITY SCHOLARSHIPS,4000224943,27600.00
Department for Education,NATIONAL COLLEGE FOR TEACHING AND LEADERSHIP AGENCY,08/12/2015,Grants,Delivery Directorate,"Grants paid to organisations including agencies, arms length bodies and educational establishments",CHALLNEY HIGH SCHOOL FOR BOYS,4000223776,27500.00
Department for Education,NATIONAL COLLEGE FOR TEACHING AND LEADERSHIP AGENCY,22/12/2015,Grants,Delivery Directorate,"Grants paid to organisations including agencies, arms length bodies and educational establishments",VAUXHALL SCHOOL,4000225199,27500.00
Department for Education,NATIONAL COLLEGE FOR TEACHING AND LEADERSHIP AGENCY,02/12/2015,Grants,Operations Directorate,Grants to educational establishments or not for profit organisations including other businesses,CHEADLE HULME HIGH SCHOOL,4000223201,27438.75
Department for Education,NATIONAL COLLEGE FOR TEACHING AND LEADERSHIP AGENCY,02/12/2015,Grants,Operations Directorate,Grants to educational establishments or not for profit organisations including other businesses,THE CAMBRIDGE PARTNERSHIP,4000223177,27218.04
Department for Education,NATIONAL COLLEGE FOR TEACHING AND LEADERSHIP AGENCY,02/12/2015,Grants,Operations Directorate,Grants to educational establishments or not for profit organisations including other businesses,CHEPPING VIEW PRIMARY SCHOOL,4000223202,27200.00
Department for Education,NATIONAL COLLEGE FOR TEACHING AND LEADERSHIP AGENCY,18/12/2015,Grants,Delivery Directorate,Grants to educational establishments or not for profit organisations including other businesses,BUCKINGHAMSHIRE LEARNING TRUST,4000224881,27028.00
Department for Education,NATIONAL COLLEGE FOR TEACHING AND LEADERSHIP AGENCY,01/12/2015,Grants,Delivery Directorate,Grants to educational establishments or not for profit organisations including other businesses,CHORLTON PARK PRIMARY SCHOOL,4000222893,27000.00
Department for Education,NATIONAL COLLEGE FOR TEACHING AND LEADERSHIP AGENCY,01/12/2015,Grants,Delivery Directorate,Grants to educational establishments or not for profit organisations including other businesses,TRURO & PENWITH COLLEGE TS ACCOUNT,4000222895,27000.00
Department for Education,NATIONAL COLLEGE FOR TEACHING AND LEADERSHIP AGENCY,01/12/2015,Grants,Delivery Directorate,Grants to educational establishments or not for profit organisations including other businesses,HISTON & IMPRINGTON JUNIOR SCHOOL,4000222903,27000.00
Department for Education,NATIONAL COLLEGE FOR TEACHING AND LEADERSHIP AGENCY,01/12/2015,Grants,Delivery Directorate,Grants to educational establishments or not for profit organisations including other businesses,CASTLE HILL SCHOOL,4000222919,27000.00
Department for Education,NATIONAL COLLEGE FOR TEACHING AND LEADERSHIP AGENCY,01/12/2015,Grants,Delivery Directorate,Grants to educational establishments or not for profit organisations including other businesses,THE COMPTON SCHOOL,4000222921,27000.00
Department for Education,DEPARTMENT FOR EDUCATION,01/12/2015,Grants,Adoption and Children in Care Division,Grants to local authorities / other establishments within aggregate external funding or aggregate exchequer grant,SHROPSHIRE COUNCIL,4000222959,27000.00
Department for Education,NATIONAL COLLEGE FOR TEACHING AND LEADERSHIP AGENCY,01/12/2015,Grants,Delivery Directorate,Grants to educational establishments or not for profit organisations including other businesses,THE ARTHUR TERRY SCHOOL SCITT,4000222981,27000.00
Department for Education,NATIONAL COLLEGE FOR TEACHING AND LEADERSHIP AGENCY,01/12/2015,Grants,Delivery Directorate,Grants to educational establishments or not for profit organisations including other businesses,COTGRAVE CANDLEBY LANE SCHOOL,4000223005,27000.00
Department for Education,NATIONAL COLLEGE FOR TEACHING AND LEADERSHIP AGENCY,01/12/2015,Grants,Delivery Directorate,Grants to educational establishments or not for profit organisations including other businesses,POUND HILL INFANT SCHOOL,4000223017,27000.00
Department for Education,DEPARTMENT FOR EDUCATION,07/12/2015,Grants,Adoption and Children in Care Division,Grants to local authorities / other establishments within aggregate external funding or aggregate exchequer grant,ST HELENS MBC,4000223660,27000.00
Department for Education,DEPARTMENT FOR EDUCATION,07/12/2015,Grants,Adoption and Children in Care Division,Grants to local authorities / other establishments within aggregate external funding or aggregate exchequer grant,KINGSTON UPON HULL COUNCIL,4000223670,27000.00
Department for Education,DEPARTMENT FOR EDUCATION,07/12/2015,Grants,Adoption and Children in Care Division,Grants to local authorities / other establishments within aggregate external funding or aggregate exchequer grant,CAMBRIDGESHIRE COUNTY COUNCIL,4000223672,27000.00
Department for Education,DEPARTMENT FOR EDUCATION,09/12/2015,Grants,Adoption and Children in Care Division,Grants to local authorities / other establishments within aggregate external funding or aggregate exchequer grant,GLOUCESTERSHIRE COUNTY COUNCIL,4000223989,27000.00
Department for Education,DEPARTMENT FOR EDUCATION,10/12/2015,Grants,Adoption and Children in Care Division,Grants to local authorities / other establishments within aggregate external funding or aggregate exchequer grant,LONDON BOROUGH OF GREENWICH,4000224067,27000.00
Department for Education,DEPARTMENT FOR EDUCATION,10/12/2015,Grants,Adoption and Children in Care Division,Grants to local authorities / other establishments within aggregate external funding or aggregate exchequer grant,OLDHAM MBC,4000224073,27000.00
Department for Education,DEPARTMENT FOR EDUCATION,10/12/2015,Grants,Adoption and Children in Care Division,Grants to local authorities / other establishments within aggregate external funding or aggregate exchequer grant,GATESHEAD MBC,4000224074,27000.00
Department for Education,DEPARTMENT FOR EDUCATION,17/12/2015,Grants,Children's Services and Departmental Strategy Safeguarding Group,Grants to local authorities / other establishments within aggregate external funding or aggregate exchequer grant,SOMERSET COUNTY COUNCIL,4000224741,27000.00
Department for Education,DEPARTMENT FOR EDUCATION,29/12/2015,Grants,Adoption and Children in Care Division,Grants to local authorities / other establishments within aggregate external funding or aggregate exchequer grant,SUNDERLAND CITY COUNCIL,4000225570,27000.00
Department for Education,NATIONAL COLLEGE FOR TEACHING AND LEADERSHIP AGENCY,02/12/2015,Grants,Operations Directorate,Grants to educational establishments or not for profit organisations including other businesses,DEYES HIGH SCHOOL,4000223096,26887.50
Department for Education,DEPARTMENT FOR EDUCATION,30/12/2015,Programme costs,Adoption and Children in Care Division,Funding to deliver policies (excluding consultancy) paid to third parties via a service delivery contract,FOSTERTALK LTD,4000225596,26772.09
Department for Education,DEPARTMENT FOR EDUCATION,16/12/2015,Grants,Children's Services and Departmental Strategy Safeguarding Group,Grants to educational establishments or not for profit organisations including other businesses,CORNERSTONE TRAINING & SUPPORT LTD,4000224642,26715.00
Department for Education,NATIONAL COLLEGE FOR TEACHING AND LEADERSHIP AGENCY,02/12/2015,Grants,Operations Directorate,Grants to educational establishments or not for profit organisations including other businesses,BLUECOAT ACADEMY,4000223198,26280.00
Department for Education,DEPARTMENT FOR EDUCATION,23/12/2015,Professional Services Other,Academies Delivery Group,"Fees / expenses of professionals, for example to implement advice or changes",CAPITA BUSINESS SERVICES LTD,4000225301,26244.85
Department for Education,DEPARTMENT FOR EDUCATION,15/12/2015,Professional Services Consultancy and Contingent Labour,Information Technology Group,Costs related to temporary workers,ALPINE CONSORTIUM,4000224405,26225.32
Department for Education,NATIONAL COLLEGE FOR TEACHING AND LEADERSHIP AGENCY,15/12/2015,ICT,Operations Directorate,Online data management,HESA SERVICES LTD,4000224409,26190.00
Department for Education,DEPARTMENT FOR EDUCATION,09/12/2015,Grants,Adoption and Children in Care Division,Grants to educational establishments or not for profit organisations including other businesses,ADOPTION UK,4000223962,26180.40
Department for Education,NATIONAL COLLEGE FOR TEACHING AND LEADERSHIP AGENCY,04/12/2015,Programme costs,Operations Directorate,Funding to deliver policies (excluding consultancy) paid to third parties via a service delivery contract,TEXUNA TECHNOLOGIES,4000223555,26146.20
Department for Education,DEPARTMENT FOR EDUCATION,17/12/2015,Grants,Children's Services and Departmental Strategy Safeguarding Group,Grants to local authorities / other establishments within aggregate external funding or aggregate exchequer grant,MANCHESTER CITY COUNCIL,4000224834,26000.00
Department for Education,NATIONAL COLLEGE FOR TEACHING AND LEADERSHIP AGENCY,29/12/2015,Grants,Operations Directorate,Grants to educational establishments or not for profit organisations including other businesses,ROYAL SOCIETY OF CHEMISTRY,4000225521,25818.64
Department for Education,NATIONAL COLLEGE FOR TEACHING AND LEADERSHIP AGENCY,02/12/2015,Grants,Operations Directorate,Grants to educational establishments or not for profit organisations including other businesses,TENDRING HUNDRES PRIMARY SCHOOL,4000223140,25740.00
Department for Education,DEPARTMENT FOR EDUCATION,24/12/2015,Programme costs,Teachers and Teaching Group,Funding to deliver policies (excluding consultancy) paid to third parties via a service delivery contract,GOVERNMENT ACTUARYS DEPARTMENT,4000225430,25558.71
Department for Education,NATIONAL COLLEGE FOR TEACHING AND LEADERSHIP AGENCY,18/12/2015,Grants,Delivery Directorate,Grants to educational establishments or not for profit organisations including other businesses,QUALITY THROUGH LEADERSHIP SCHOLARSHIPS,4000224942,25514.00
Department for Education,DEPARTMENT FOR EDUCATION,15/12/2015,Grants,"Childcare, Special Educational Needs and Children's Strategy Group",Grants to educational establishments or not for profit organisations including other businesses,CORAM CLC,4000224395,25504.08
Department for Education,NATIONAL COLLEGE FOR TEACHING AND LEADERSHIP AGENCY,02/12/2015,Grants,Delivery Directorate,Grants to educational establishments or not for profit organisations including other businesses,UNIVERSITY OF WINCHESTER,4000223114,25380.00
Department for Education,NATIONAL COLLEGE FOR TEACHING AND LEADERSHIP AGENCY,02/12/2015,Grants,Delivery Directorate,Grants to educational establishments or not for profit organisations including other businesses,THE UNIVERSITY OF READING,4000223134,25110.00
Department for Education,DEPARTMENT FOR EDUCATION,23/12/2015,Facilities,Property Asset Management Group,"Building maintenance and repair, including repainting, replacing flooring, etc.",INTERSERVE FACILITIES MANAGEMENT LTD,4000225303,25095.54
Department for Education,NATIONAL COLLEGE FOR TEACHING AND LEADERSHIP AGENCY,01/12/2015,Grants,Delivery Directorate,"Grants paid to organisations including agencies, arms length bodies and educational establishments",SHERINGHAM COMMUNITY PRIMARY SCHOOL,4000222875,25000.00
Department for Education,DEPARTMENT FOR EDUCATION,01/12/2015,Grants,Academies Delivery Group,Grants to educational establishments or not for profit organisations including other businesses,POOL HAYES ARTS & COMMUNITY SCHOOL,4000222885,25000.00
Department for Education,NATIONAL COLLEGE FOR TEACHING AND LEADERSHIP AGENCY,01/12/2015,Grants,Delivery Directorate,Grants to educational establishments or not for profit organisations including other businesses,GOSFORTH CENTRAL MIDDLE SCHOOL,4000222914,25000.00
Department for Education,DEPARTMENT FOR EDUCATION,01/12/2015,Grants,Academies Delivery Group,Grants to educational establishments or not for profit organisations including other businesses,THE ELLIOT FOUNDATION ACADEMIES TRUST,4000223020,25000.00
Department for Education,DEPARTMENT FOR EDUCATION,01/12/2015,Grants,Academies Delivery Group,Grants to educational establishments or not for profit organisations including other businesses,GLF Schools,4000223029,25000.00
Department for Education,DEPARTMENT FOR EDUCATION,03/12/2015,Grants,Free School Group,Grants to educational establishments or not for profit organisations including other businesses,DAVID ROSS EDUCATION TRUST,4000223480,25000.00
Department for Education,DEPARTMENT FOR EDUCATION,08/12/2015,Grants,Academies Delivery Group,Grants to educational establishments or not for profit organisations including other businesses,THE SENTRUST,4000223759,25000.00
Department for Education,DEPARTMENT FOR EDUCATION,08/12/2015,Miscellaneous Expenditure,"Childcare, Special Educational Needs and Children's Strategy Group",Tribunals and trials service fees,DEPARTMENT FOR COMMUNITIES & LOCAL GOVERNMENT,4000223769,25000.00
Department for Education,DEPARTMENT FOR EDUCATION,09/12/2015,Grants,Academies Delivery Group,Grants to educational establishments or not for profit organisations including other businesses,WESTON ALL SAINTS CofE PRIMARY SCHOOL,4000223915,25000.00
Department for Education,DEPARTMENT FOR EDUCATION,09/12/2015,Grants,Academies Delivery Group,Grants to educational establishments or not for profit organisations including other businesses,FINHAM PRIMARY SCHOOL,4000223954,25000.00
Department for Education,DEPARTMENT FOR EDUCATION,10/12/2015,Grants,Academies Delivery Group,Grants to educational establishments or not for profit organisations including other businesses,NORTH RIGTON CHURCH OF ENGLAND PRIMARY SCHOOL,4000224028,25000.00
Department for Education,DEPARTMENT FOR EDUCATION,10/12/2015,Grants,Academies Delivery Group,Grants to educational establishments or not for profit organisations including other businesses,PANNAL PRIMARY SCHOOL,4000224029,25000.00
Department for Education,DEPARTMENT FOR EDUCATION,10/12/2015,Grants,Free School Group,Grants to educational establishments or not for profit organisations including other businesses,THE WOLVERHAMPTON FREE SHCOOL,4000224030,25000.00
Department for Education,DEPARTMENT FOR EDUCATION,10/12/2015,Grants,Academies Delivery Group,Grants to educational establishments or not for profit organisations including other businesses,OATLANDS COMMUNITY INFANT SCHOOL,4000224090,25000.00
Department for Education,DEPARTMENT FOR EDUCATION,16/12/2015,Grants,Academies Delivery Group,Grants to educational establishments or not for profit organisations including other businesses,FURNESS PRIMARY SCHOOL,4000224648,25000.00
Department for Education,DEPARTMENT FOR EDUCATION,16/12/2015,Grants,Academies Delivery Group,Grants to educational establishments or not for profit organisations including other businesses,HEATHFIELD ACADEMY TRUST,4000224650,25000.00
Department for Education,DEPARTMENT FOR EDUCATION,17/12/2015,Grants,Children's Services and Departmental Strategy Safeguarding Group,Grants to local authorities / other establishments within aggregate external funding or aggregate exchequer grant,NOTTINGHAMSHIRE COUNTY COUNCIL,4000224730,25000.00
Department for Education,DEPARTMENT FOR EDUCATION,17/12/2015,Grants,Academies Delivery Group,Grants to educational establishments or not for profit organisations including other businesses,ST EDMUNDSBURY & IPSWICH DIOCESAN ACADEMY TRUST,4000224737,25000.00
Department for Education,DEPARTMENT FOR EDUCATION,17/12/2015,Grants,Academies Delivery Group,Grants to educational establishments or not for profit organisations including other businesses,PARALLEL LEARNING TRUST,4000224865,25000.00
Department for Education,DEPARTMENT FOR EDUCATION,21/12/2015,Grants,Academies Delivery Group,Grants to educational establishments or not for profit organisations including other businesses,GREAT WITLEY CE PRIMARY SCHOOL,4000224996,25000.00
Department for Education,DEPARTMENT FOR EDUCATION,21/12/2015,Grants,Academies Delivery Group,Grants to educational establishments or not for profit organisations including other businesses,THURSTON COFE VC PRIMARY SCHOOL SUFFOLK,4000224997,25000.00
Department for Education,DEPARTMENT FOR EDUCATION,21/12/2015,Grants,Academies Delivery Group,Grants to educational establishments or not for profit organisations including other businesses,NORTHWOOD BROOM COMMUNITY SCHOOL,4000225004,25000.00
Department for Education,DEPARTMENT FOR EDUCATION,21/12/2015,Grants,Academies Delivery Group,Grants to educational establishments or not for profit organisations including other businesses,THE LEIGH ACADEMIES TRUST,4000225011,25000.00
Department for Education,DEPARTMENT FOR EDUCATION,21/12/2015,Grants,Academies Delivery Group,Grants to educational establishments or not for profit organisations including other businesses,DERBY DIOCESAN ACADEMY TRUST,4000225018,25000.00
Department for Education,NATIONAL COLLEGE FOR TEACHING AND LEADERSHIP AGENCY,22/12/2015,Grants,Delivery Directorate,Grants to educational establishments or not for profit organisations including other businesses,HOLMES CHAPEL COMPREHENSIVE SCHOOL TS ACC,4000225076,25000.00
Department for Education,NATIONAL COLLEGE FOR TEACHING AND LEADERSHIP AGENCY,22/12/2015,Grants,Delivery Directorate,"Grants paid to organisations including agencies, arms length bodies and educational establishments",NINESTILES ACADEMY TRUST,4000225083,25000.00
Department for Education,DEPARTMENT FOR EDUCATION,24/12/2015,Grants,Academies Delivery Group,Grants to educational establishments or not for profit organisations including other businesses,THE PRIMARY ACADEMIES TRUST,4000225322,25000.00
Department for Education,DEPARTMENT FOR EDUCATION,24/12/2015,Grants,Academies Delivery Group,Grants to educational establishments or not for profit organisations including other businesses,ST AIDANS CATHOLIC PRIMARY SCHOOL,4000225324,25000.00
Department for Education,DEPARTMENT FOR EDUCATION,24/12/2015,Grants,Academies Delivery Group,Grants to educational establishments or not for profit organisations including other businesses,RIVERMEAD SCHOOL,4000225329,25000.00
Department for Education,DEPARTMENT FOR EDUCATION,24/12/2015,Grants,Academies Delivery Group,Grants to educational establishments or not for profit organisations including other businesses,EBOR ACADEMY TRUST,4000225485,25000.00
Department for Education,DEPARTMENT FOR EDUCATION,24/12/2015,Grants,Academies Delivery Group,Grants to educational establishments or not for profit organisations including other businesses,FLOREAT EDUCATION ACADEMIES TRUST,4000225503,25000.00
Department for Education,DEPARTMENT FOR EDUCATION,17/12/2015,ICT,Information Technology Group,ICT Software,COMPAREX UK LTD,4000224725,24979.58
Department for Education,NATIONAL COLLEGE FOR TEACHING AND LEADERSHIP AGENCY,02/12/2015,Grants,Delivery Directorate,Grants to educational establishments or not for profit organisations including other businesses,UNIVERSITY OF NORTHAMPTON,4000223182,24640.00
Department for Education,DEPARTMENT FOR EDUCATION,17/12/2015,Professional Services Other,Strategic Analysis and Research Group,Research and evaluation activities,CAMBRIDGE INFORMATION LTD,4000224846,24459.00
Department for Education,NATIONAL COLLEGE FOR TEACHING AND LEADERSHIP AGENCY,18/12/2015,Grants,Delivery Directorate,Grants to educational establishments or not for profit organisations including other businesses,EASTERN LEADERSHIP CENTRE,4000224938,24412.00
Department for Education,NATIONAL COLLEGE FOR TEACHING AND LEADERSHIP AGENCY,02/12/2015,Grants,Delivery Directorate,Grants to educational establishments or not for profit organisations including other businesses,MANCHESTER METROPOLITAN UNIVERSITY,4000223185,23940.00
Department for Education,NATIONAL COLLEGE FOR TEACHING AND LEADERSHIP AGENCY,02/12/2015,Grants,Delivery Directorate,Grants to educational establishments or not for profit organisations including other businesses,KINGSTON UNIVERSITY,4000223197,23940.00
Department for Education,NATIONAL COLLEGE FOR TEACHING AND LEADERSHIP AGENCY,03/12/2015,Grants,Delivery Directorate,Grants to educational establishments or not for profit organisations including other businesses,HIBERNIA COLLEGE UK,4000223464,23775.26
Department for Education,DEPARTMENT FOR EDUCATION,17/12/2015,Facilities,International Education Group,"Building maintenance and repair, including repainting, replacing flooring, etc.",DTZ MANAGEMENT SERVICES LTD,4000224849,23660.89
Department for Education,NATIONAL COLLEGE FOR TEACHING AND LEADERSHIP AGENCY,18/12/2015,Grants,Delivery Directorate,Grants to educational establishments or not for profit organisations including other businesses,INSPIRING LEADERS SCHOLARSHIPS,4000224940,23455.00
Department for Education,NATIONAL COLLEGE FOR TEACHING AND LEADERSHIP AGENCY,02/12/2015,Grants,Operations Directorate,Grants to educational establishments or not for profit organisations including other businesses,EDGE HILL UNIVERSITY,4000223299,23210.00
Department for Education,DEPARTMENT FOR EDUCATION,10/12/2015,Professional Services Consultancy and Contingent Labour,Information Technology Group,Costs related to temporary workers,RUSSAM GMS LTD,4000224088,22787.04
Department for Education,NATIONAL COLLEGE FOR TEACHING AND LEADERSHIP AGENCY,18/12/2015,Grants,Delivery Directorate,Grants to educational establishments or not for profit organisations including other businesses,LEADERSHIP LIVE SCHOLARSHIPS,4000224944,22627.00
Department for Education,NATIONAL COLLEGE FOR TEACHING AND LEADERSHIP AGENCY,22/12/2015,Grants,Delivery Directorate,Grants to educational establishments or not for profit organisations including other businesses,ST PAULS WAY TRUST SCHOOL,4000225196,22500.00
Department for Education,NATIONAL COLLEGE FOR TEACHING AND LEADERSHIP AGENCY,18/12/2015,Grants,Delivery Directorate,Grants to educational establishments or not for profit organisations including other businesses,ST BEDE'S CATHOLIC SCHOOL & SIXTH FORM CENTRE,4000224900,22228.00
Department for Education,STANDARDS AND TESTING AGENCY,11/12/2015,Print and Print Management,Test Operations Division,"Reprographic, photo and design goods and services (excluding photocopiers, multifunctional devices and printers)",PROLOG,4000224223,22192.60
Department for Education,NATIONAL COLLEGE FOR TEACHING AND LEADERSHIP AGENCY,02/12/2015,Grants,Delivery Directorate,Grants to educational establishments or not for profit organisations including other businesses,UNIVERSITY OF PLYMOUTH,4000223172,21870.00
Department for Education,NATIONAL COLLEGE FOR TEACHING AND LEADERSHIP AGENCY,18/12/2015,Grants,Delivery Directorate,Grants to educational establishments or not for profit organisations including other businesses,LEEDS BECKETT UNIVERSITY,4000224899,21699.00
Department for Education,NATIONAL COLLEGE FOR TEACHING AND LEADERSHIP AGENCY,18/12/2015,Grants,Delivery Directorate,Grants to educational establishments or not for profit organisations including other businesses,GEORGE SPENCER ACADEMY TRUST SCHOLARSHIPS,4000224941,21699.00
Department for Education,NATIONAL COLLEGE FOR TEACHING AND LEADERSHIP AGENCY,02/12/2015,Grants,Delivery Directorate,Grants to educational establishments or not for profit organisations including other businesses,SHEFFIELD HALLAM UNIVERSITY,4000223221,20880.00
Department for Education,NATIONAL COLLEGE FOR TEACHING AND LEADERSHIP AGENCY,18/12/2015,Grants,Delivery Directorate,Grants to educational establishments or not for profit organisations including other businesses,BUCKINGHAMSHIRE LEARNING TRUST,4000224881,20868.00
Department for Education,NATIONAL COLLEGE FOR TEACHING AND LEADERSHIP AGENCY,02/12/2015,Grants,Delivery Directorate,Grants to educational establishments or not for profit organisations including other businesses,UNIVERSITY OF WARWICK,4000223362,20400.00
Department for Education,NATIONAL COLLEGE FOR TEACHING AND LEADERSHIP AGENCY,02/12/2015,Grants,Delivery Directorate,Grants to educational establishments or not for profit organisations including other businesses,UNIVERSITY OF WOLVERHAMPTON,4000223273,20160.00
Department for Education,NATIONAL COLLEGE FOR TEACHING AND LEADERSHIP AGENCY,18/12/2015,Grants,Delivery Directorate,Grants to educational establishments or not for profit organisations including other businesses,LEEDS BECKETT UNIVERSITY,4000224899,20084.00
Department for Education,NATIONAL COLLEGE FOR TEACHING AND LEADERSHIP AGENCY,18/12/2015,Grants,Delivery Directorate,Grants to educational establishments or not for profit organisations including other businesses,GEORGE SPENCER ACADEMY TRUST SCHOLARSHIPS,4000224941,20084.00
Department for Education,NATIONAL COLLEGE FOR TEACHING AND LEADERSHIP AGENCY,08/12/2015,Grants,Delivery Directorate,"Grants paid to organisations including agencies, arms length bodies and educational establishments",TAPTON SCHOOL BCAP,4000223788,20000.00
Department for Education,NATIONAL COLLEGE FOR TEACHING AND LEADERSHIP AGENCY,22/12/2015,Grants,Delivery Directorate,"Grants paid to organisations including agencies, arms length bodies and educational establishments",MILLAIS SCHOOL,4000225093,20000.00
Department for Education,NATIONAL COLLEGE FOR TEACHING AND LEADERSHIP AGENCY,02/12/2015,Grants,Delivery Directorate,Grants to educational establishments or not for profit organisations including other businesses,UNIVERSITY OF DERBY,4000223131,19890.00
Department for Education,DEPARTMENT FOR EDUCATION,09/12/2015,Professional Services Consultancy and Contingent Labour,Information Technology Group,Costs related to temporary workers,RUSSAM GMS LTD,4000223924,19440.00
Department for Education,NATIONAL COLLEGE FOR TEACHING AND LEADERSHIP AGENCY,02/12/2015,Grants,Delivery Directorate,Grants to educational establishments or not for profit organisations including other businesses,UNIVERSITY OF SUNDERLAND,4000223252,19260.00
Department for Education,DEPARTMENT FOR EDUCATION,09/12/2015,Professional Services Consultancy and Contingent Labour,Information Technology Group,Costs related to temporary workers,ALPINE RESOURCING LTD,4000223926,18999.92
Department for Education,NATIONAL COLLEGE FOR TEACHING AND LEADERSHIP AGENCY,02/12/2015,Grants,Delivery Directorate,Grants to educational establishments or not for profit organisations including other businesses,UCL INSTITUTE OF EDUCATION,4000223350,18970.00
Department for Education,NATIONAL COLLEGE FOR TEACHING AND LEADERSHIP AGENCY,02/12/2015,Grants,Delivery Directorate,Grants to educational establishments or not for profit organisations including other businesses,UNIVERSITY OF BRIGHTON,4000223220,18900.00
Department for Education,NATIONAL COLLEGE FOR TEACHING AND LEADERSHIP AGENCY,02/12/2015,Grants,Delivery Directorate,Grants to educational establishments or not for profit organisations including other businesses,THE COLLEGE OF ST MARK & ST JOHN,4000223270,18540.00
Department for Education,DEPARTMENT FOR EDUCATION,09/12/2015,Professional Services Consultancy and Contingent Labour,Information Technology Group,Costs related to temporary workers,FDM GROUP LTD,4000223971,18516.00
Department for Education,NATIONAL COLLEGE FOR TEACHING AND LEADERSHIP AGENCY,02/12/2015,Grants,Delivery Directorate,Grants to educational establishments or not for profit organisations including other businesses,UNIVERSITY OF NORTHUMBRIA,4000223035,18450.00
Department for Education,NATIONAL COLLEGE FOR TEACHING AND LEADERSHIP AGENCY,18/12/2015,Grants,Delivery Directorate,Grants to educational establishments or not for profit organisations including other businesses,QUALITY THROUGH LEADERSHIP SCHOLARSHIPS,4000224942,18426.00
Department for Education,NATIONAL COLLEGE FOR TEACHING AND LEADERSHIP AGENCY,18/12/2015,Grants,Delivery Directorate,Grants to educational establishments or not for profit organisations including other businesses,TAUHEEDUL ISLAM BOYS HIGH SCHOOL,4000224960,18157.00
Department for Education,NATIONAL COLLEGE FOR TEACHING AND LEADERSHIP AGENCY,18/12/2015,Grants,Delivery Directorate,Grants to educational establishments or not for profit organisations including other businesses,SURREY TEACHING SCHOOLS NETWORK,4000224875,18154.00
Department for Education,NATIONAL COLLEGE FOR TEACHING AND LEADERSHIP AGENCY,18/12/2015,Grants,Delivery Directorate,Grants to educational establishments or not for profit organisations including other businesses,UNIVERSITY OF CUMBRIA,4000224975,17880.00
Department for Education,NATIONAL COLLEGE FOR TEACHING AND LEADERSHIP AGENCY,02/12/2015,Grants,Operations Directorate,Grants to educational establishments or not for profit organisations including other businesses,UNIVERSITY OF GREENWICH,4000223083,17600.00
Department for Education,NATIONAL COLLEGE FOR TEACHING AND LEADERSHIP AGENCY,22/12/2015,Grants,Delivery Directorate,"Grants paid to organisations including agencies, arms length bodies and educational establishments",REDHILL SCHOOL & SPECIALIST LANGUAGE COLLEGE,4000225157,17500.00
Department for Education,DEPARTMENT FOR EDUCATION,17/12/2015,Professional Services Consultancy and Contingent Labour,Information Technology Group,Costs related to temporary workers,RUSSAM GMS LTD,4000224869,17280.00
Department for Education,NATIONAL COLLEGE FOR TEACHING AND LEADERSHIP AGENCY,02/12/2015,Grants,Delivery Directorate,Grants to educational establishments or not for profit organisations including other businesses,CANTERBURY CHRIST CHURCH UNIVERSITY,4000223253,17100.00
Department for Education,NATIONAL COLLEGE FOR TEACHING AND LEADERSHIP AGENCY,02/12/2015,Grants,Operations Directorate,Grants to educational establishments or not for profit organisations including other businesses,UNIVERSITY OF HUDDERSFIELD,4000223249,16940.00
Department for Education,NATIONAL COLLEGE FOR TEACHING AND LEADERSHIP AGENCY,02/12/2015,Grants,Delivery Directorate,Grants to educational establishments or not for profit organisations including other businesses,UNIVERSITY OF HUDDERSFIELD,4000223249,16920.00
Department for Education,NATIONAL COLLEGE FOR TEACHING AND LEADERSHIP AGENCY,03/12/2015,Grants,Delivery Directorate,Grants to educational establishments or not for profit organisations including other businesses,UNIVERSITY OF WOLVERHAMPTON,4000223424,16400.00
Department for Education,NATIONAL COLLEGE FOR TEACHING AND LEADERSHIP AGENCY,03/12/2015,Professional Services Other,Delivery Directorate,"Fees / expenses of professionals, for example to implement advice or changes",TELEPERFORMANCE LTD,4000223503,15795.98
Department for Education,NATIONAL COLLEGE FOR TEACHING AND LEADERSHIP AGENCY,02/12/2015,Grants,Delivery Directorate,Grants to educational establishments or not for profit organisations including other businesses,UNIVERSITY OF SUSSEX,4000223155,15570.00
Department for Education,NATIONAL COLLEGE FOR TEACHING AND LEADERSHIP AGENCY,18/12/2015,Grants,Delivery Directorate,Grants to educational establishments or not for profit organisations including other businesses,INSPIRING LEADERS SCHOLARSHIPS,4000224940,15338.00
Department for Education,NATIONAL COLLEGE FOR TEACHING AND LEADERSHIP AGENCY,18/12/2015,Grants,Delivery Directorate,Grants to educational establishments or not for profit organisations including other businesses,ANGLIA RUSKIN UNIVERSITY SCHOLARSHIPS,4000224943,15224.00
Department for Education,NATIONAL COLLEGE FOR TEACHING AND LEADERSHIP AGENCY,15/12/2015,Grants,Delivery Directorate,Grants to educational establishments or not for profit organisations including other businesses,SKIPTON GIRLS HIGH SCHOOL TS ACCOUNT,4000224347,15000.00
Department for Education,NATIONAL COLLEGE FOR TEACHING AND LEADERSHIP AGENCY,15/12/2015,Grants,Delivery Directorate,Grants to educational establishments or not for profit organisations including other businesses,NINESTILES ACADEMY TRUST,4000224359,15000.00
Department for Education,DEPARTMENT FOR EDUCATION,09/12/2015,Professional Services Consultancy and Contingent Labour,Information Technology Group,Costs related to temporary workers,ALPINE RESOURCING LTD,4000223926,14960.88
Department for Education,DEPARTMENT FOR EDUCATION,03/12/2015,Professional Services Other,Property Asset Management Group,"Fees / expenses of professionals, for example to implement advice or changes",METHODS CONSULTING LTD,4000223402,14820.00
Department for Education,NATIONAL COLLEGE FOR TEACHING AND LEADERSHIP AGENCY,18/12/2015,Grants,Delivery Directorate,Grants to educational establishments or not for profit organisations including other businesses,FUTURE LEADERS CHARITABLE TRUST SCHOLARSHIPS,4000224957,14751.00
Department for Education,NATIONAL COLLEGE FOR TEACHING AND LEADERSHIP AGENCY,04/12/2015,Communications,Operations Directorate,"Publicity, advertising, media advertising campaigns (excluding recruitment adverts)",INFERNO LTD,4000223559,14725.00
Department for Education,DEPARTMENT FOR EDUCATION,03/12/2015,Professional Services Consultancy and Contingent Labour,Information Technology Group,Costs related to temporary workers,METHODS CONSULTING LTD,4000223402,14520.00
Department for Education,DEPARTMENT FOR EDUCATION,07/12/2015,Communications,Communications Group,Marketing services - printing and publication,PROLOG,4000223643,14422.80
Department for Education,DEPARTMENT FOR EDUCATION,11/12/2015,Communications,Communications Group,Marketing services - printing and publication,PROLOG,4000224223,14422.80
Department for Education,NATIONAL COLLEGE FOR TEACHING AND LEADERSHIP AGENCY,18/12/2015,Grants,Delivery Directorate,Grants to educational establishments or not for profit organisations including other businesses,LEAD MULTI ACADEMY TRUST SCHOLARSHIPS,4000224889,14412.00
Department for Education,NATIONAL COLLEGE FOR TEACHING AND LEADERSHIP AGENCY,18/12/2015,Grants,Delivery Directorate,Grants to educational establishments or not for profit organisations including other businesses,SURREY TEACHING SCHOOLS NETWORK,4000224875,14409.00
Department for Education,NATIONAL COLLEGE FOR TEACHING AND LEADERSHIP AGENCY,22/12/2015,Grants,Delivery Directorate,Grants to educational establishments or not for profit organisations including other businesses,TRURO & PENWITH COLLEGE TS ACCOUNT,4000225123,14393.00
Department for Education,NATIONAL COLLEGE FOR TEACHING AND LEADERSHIP AGENCY,02/12/2015,Grants,Operations Directorate,Grants to educational establishments or not for profit organisations including other businesses,E QUALITAS PROFESSIONAL SERVICES LTD,4000223157,13951.98
Department for Education,DEPARTMENT FOR EDUCATION,10/12/2015,Professional Services Consultancy and Contingent Labour,Information Technology Group,Costs related to temporary workers,METHODS CONSULTING LTD,4000224042,13860.00
Department for Education,NATIONAL COLLEGE FOR TEACHING AND LEADERSHIP AGENCY,02/12/2015,Grants,Operations Directorate,Grants to educational establishments or not for profit organisations including other businesses,UNIVERSITY OF WARWICK,4000223362,13435.40
Department for Education,NATIONAL COLLEGE FOR TEACHING AND LEADERSHIP AGENCY,18/12/2015,Grants,Delivery Directorate,Grants to educational establishments or not for profit organisations including other businesses,WEST HERTFORDSHIRE TEACHING SCHOOLS PARTNERSHIP,4000224872,13357.00
Department for Education,DEPARTMENT FOR EDUCATION,07/12/2015,Professional Services Consultancy and Contingent Labour,Information Technology Group,Costs related to temporary workers,RUSSAM GMS LTD,4000223687,13349.01
Department for Education,NATIONAL COLLEGE FOR TEACHING AND LEADERSHIP AGENCY,02/12/2015,Grants,Operations Directorate,Grants to educational establishments or not for profit organisations including other businesses,BIRMINGHAM CITY UNIVERSITY,4000223344,13200.00
Department for Education,NATIONAL COLLEGE FOR TEACHING AND LEADERSHIP AGENCY,02/12/2015,Grants,Delivery Directorate,Grants to educational establishments or not for profit organisations including other businesses,UNIVERSITY OF GREENWICH,4000223083,12650.00
Department for Education,NATIONAL COLLEGE FOR TEACHING AND LEADERSHIP AGENCY,01/12/2015,Grants,Delivery Directorate,"Grants paid to organisations including agencies, arms length bodies and educational establishments",HAMPTON HILL JUNIOR SCHOOL,4000222902,12500.00
Department for Education,NATIONAL COLLEGE FOR TEACHING AND LEADERSHIP AGENCY,08/12/2015,Grants,Delivery Directorate,"Grants paid to organisations including agencies, arms length bodies and educational establishments",ALEXANDRA PARK SCHOOL,4000223768,12500.00
Department for Education,DEPARTMENT FOR EDUCATION,24/12/2015,ICT,Education Funding Group,ICT Services,CAPGEMINI UK PLC,4000225428,12500.00
Department for Education,DEPARTMENT FOR EDUCATION,10/12/2015,Professional Services Consultancy and Contingent Labour,Information Technology Group,Costs related to temporary workers,RUSSAM GMS LTD,4000224088,12434.40
Department for Education,NATIONAL COLLEGE FOR TEACHING AND LEADERSHIP AGENCY,18/12/2015,Grants,Delivery Directorate,Grants to educational establishments or not for profit organisations including other businesses,ANGLIA RUSKIN UNIVERSITY SCHOLARSHIPS,4000224943,12314.00
Department for Education,NATIONAL COLLEGE FOR TEACHING AND LEADERSHIP AGENCY,18/12/2015,Grants,Delivery Directorate,Grants to educational establishments or not for profit organisations including other businesses,LEADERSHIP LIVE SCHOLARSHIPS,4000224944,12314.00
Department for Education,NATIONAL COLLEGE FOR TEACHING AND LEADERSHIP AGENCY,02/12/2015,Grants,Delivery Directorate,Grants to educational establishments or not for profit organisations including other businesses,UNIVERSITY OF WORCESTER,4000223053,12280.00
Department for Education,NATIONAL COLLEGE FOR TEACHING AND LEADERSHIP AGENCY,18/12/2015,Grants,Delivery Directorate,Grants to educational establishments or not for profit organisations including other businesses,LEADERSHIP LIVE SCHOLARSHIPS,4000224944,11948.00
Department for Education,DEPARTMENT FOR EDUCATION,03/12/2015,Professional Services Consultancy and Contingent Labour,Information Technology Group,Costs related to temporary workers,METHODS CONSULTING LTD,4000223402,11880.00
Department for Education,DEPARTMENT FOR EDUCATION,07/12/2015,Professional Services Consultancy and Contingent Labour,Information Technology Group,Costs related to temporary workers,RUSSAM GMS LTD,4000223687,11658.00
Department for Education,NATIONAL COLLEGE FOR TEACHING AND LEADERSHIP AGENCY,02/12/2015,Grants,Operations Directorate,Grants to educational establishments or not for profit organisations including other businesses,STAFFORDSHIRE UNIVERSITY,4000223130,11550.00
Department for Education,NATIONAL COLLEGE FOR TEACHING AND LEADERSHIP AGENCY,18/12/2015,Grants,Delivery Directorate,Grants to educational establishments or not for profit organisations including other businesses,LEAD MULTI ACADEMY TRUST SCHOLARSHIPS,4000224889,11346.00
Department for Education,NATIONAL COLLEGE FOR TEACHING AND LEADERSHIP AGENCY,02/12/2015,Grants,Delivery Directorate,Grants to educational establishments or not for profit organisations including other businesses,UNIVERSITY OF CHICHESTER,4000223119,11340.00
